Body Name,Body,Service Label,Service Code,CIPFA Detailed Expenditure Type,CIPFA Detailed Expenditure Code,Date,Transaction Number,Net Amount,Supplier Name
Nottinghamshire County Council,1111/1001,Children and Young People,CYP,Supplies & Services,DEA,02/07/2018,04-17049,780,ADCS Ltd
Nottinghamshire County Council,1111/1001,Adult Social Care and Health,ASCH,Third Party Payments,EGA,02/07/2018,04-17081,"1,518.12",Age Uk Nottm & Notts
Nottinghamshire County Council,1111/1001,Children and Young People,CYP,Premises Related,BAA,02/07/2018,04-10047,11030.11,ARC Property Services Partnership L
Nottinghamshire County Council,1111/1001,Adult Social Care and Health,ASCH,Premises Related,BAA,02/07/2018,04-10047,"2,925.71",ARC Property Services Partnership L
Nottinghamshire County Council,1111/1001,Highways,HIGHWAYS,Premises Related,BAA,02/07/2018,04-10047,1269.06,ARC Property Services Partnership L
Nottinghamshire County Council,1111/1001,Libraries,LIBRARIES,Premises Related,BAA,02/07/2018,04-10047,73.23,ARC Property Services Partnership L
Nottinghamshire County Council,1111/1001,Corporate Management,CORP_MAGT,Premises Related,BAA,02/07/2018,04-10047,22855.2,ARC Property Services Partnership L
Nottinghamshire County Council,1111/1001,Surplus or Deficit from Trading Undertak,TRADING,Premises Related,BAA,02/07/2018,04-10047,1469.43,ARC Property Services Partnership L
Nottinghamshire County Council,1111/1001,Surplus or Deficit from Trading Undertak,TRADING,Premises Related,BJA,02/07/2018,04-17059,7810,Art Cleaning Midlands Ltd
Nottinghamshire County Council,1111/1001,Corporate Management,CORP_MAGT,Premises Related,BDA,02/07/2018,04-10010,33375,Ashfield District Council
Nottinghamshire County Council,1111/1001,Adult Social Care and Health,ASCH,Transport Related,CDA,02/07/2018,04-17060,945,Autism East Midlands
Nottinghamshire County Council,1111/1001,Children and Young People,CYP,Premises Related,BDA,02/07/2018,04-10014,565,Bairstow Eves Nottingham T/A Countr
Nottinghamshire County Council,1111/1001,Insurance Revenue,INSURANCE,Supplies & Services,DEA,02/07/2018,04-17067,2750.4,Browne Jacobson Llp
Nottinghamshire County Council,1111/1001,Insurance Revenue,INSURANCE,Supplies & Services,DEA,02/07/2018,04-17068,2750.4,Browne Jacobson Llp
Nottinghamshire County Council,1111/1001,Insurance Revenue,INSURANCE,Supplies & Services,DEA,02/07/2018,04-17069,2750.4,Browne Jacobson Llp
Nottinghamshire County Council,1111/1001,Insurance Revenue,INSURANCE,Supplies & Services,DEA,02/07/2018,04-17070,2750.4,Browne Jacobson Llp
Nottinghamshire County Council,1111/1001,Insurance Revenue,INSURANCE,Supplies & Services,DEA,02/07/2018,04-17071,2750.4,Browne Jacobson Llp
Nottinghamshire County Council,1111/1001,Insurance Revenue,INSURANCE,Supplies & Services,DEA,02/07/2018,04-17072,2750.4,Browne Jacobson Llp
Nottinghamshire County Council,1111/1001,Insurance Revenue,INSURANCE,Supplies & Services,DEA,02/07/2018,04-17073,2750.4,Browne Jacobson Llp
Nottinghamshire County Council,1111/1001,Insurance Revenue,INSURANCE,Supplies & Services,DEA,02/07/2018,04-17075,2750.4,Browne Jacobson Llp
Nottinghamshire County Council,1111/1001,Insurance Revenue,INSURANCE,Supplies & Services,DEA,02/07/2018,04-17076,2750.4,Browne Jacobson Llp
Nottinghamshire County Council,1111/1001,Children and Young People,CYP,Premises Related,BDA,02/07/2018,04-10007,631,Derbyshire Dales District Council
Nottinghamshire County Council,1111/1001,Environmental,ENVIRON,Premises Related,BDA,02/07/2018,04-10009,1138.16,Docklands Waste Recycling Ltd
Nottinghamshire County Council,1111/1001,Adult Social Care and Health,ASCH,Third Party Payments,EBA,02/07/2018,04-17063,26489.04,Framework Housing Association
Nottinghamshire County Council,1111/1001,Adult Social Care and Health,ASCH,Third Party Payments,EBA,02/07/2018,04-17064,"47,975.50",Framework Housing Association
Nottinghamshire County Council,1111/1001,Adult Social Care and Health,ASCH,Third Party Payments,EBA,02/07/2018,04-17065,47379.45,Framework Housing Association
Nottinghamshire County Council,1111/1001,Central Service to the Public,CENT_SERV,Premises Related,BDA,02/07/2018,04-10012,3500,Gedling Borough Council
Nottinghamshire County Council,1111/1001,Children and Young People,CYP,Supplies & Services,DAA,02/07/2018,04-17077,"1,890.00",Gemma Books Ltd
Nottinghamshire County Council,1111/1001,Children and Young People,CYP,Premises Related,BAA,02/07/2018,04-17079,1120.62,Glentworth Security Ltd
Nottinghamshire County Council,1111/1001,Corporate Management,CORP_MAGT,Supplies & Services,DEA,02/07/2018,04-17078,1903.91,Glentworth Security Ltd
Nottinghamshire County Council,1111/1001,Corporate Management,CORP_MAGT,Premises Related,BDA,02/07/2018,04-10004,950,Gotham Memorial Hall & Recreation T
Nottinghamshire County Council,1111/1001,Children and Young People,CYP,Premises Related,BDA,02/07/2018,04-10006,840,High Peak Borough Council
Nottinghamshire County Council,1111/1001,Corporate Management,CORP_MAGT,Supplies & Services,DEA,02/07/2018,04-10053,2400,Information Commissioner
Nottinghamshire County Council,1111/1001,Children and Young People,CYP,Third Party Payments,EGA,02/07/2018,04-17080,"9,428.40",Jani Homes Ltd
Nottinghamshire County Council,1111/1001,Children and Young People,CYP,Premises Related,BDA,02/07/2018,04-10011,575,Jillings Estates Ltd
Nottinghamshire County Council,1111/1001,Children and Young People,CYP,Third Party Payments,EBA,02/07/2018,04-17066,13258.98,Liberty Leisure Ltd
Nottinghamshire County Council,1111/1001,Public Health,HEALTH,Third Party Payments,ECA,02/07/2018,04-10041,2340,Lincolnshire Community Health Servs
Nottinghamshire County Council,1111/1001,Highways,HIGHWAYS,Support Services,HAA,02/07/2018,04-10055,64651.62,Lincolnshire County Council
Nottinghamshire County Council,1111/1001,Surplus or Deficit from Trading Undertak,TRADING,Supplies & Services,DBA,02/07/2018,04-10046,1450.11,Pasta King Uk Ltd
Nottinghamshire County Council,1111/1001,Surplus or Deficit from Trading Undertak,TRADING,Supplies & Services,DEA,02/07/2018,04-10043,522.05,Phs Group Plc
Nottinghamshire County Council,1111/1001,Surplus or Deficit from Trading Undertak,TRADING,Supplies & Services,DEA,02/07/2018,04-10044,539.84,Phs Group Plc
Nottinghamshire County Council,1111/1001,Surplus or Deficit from Trading Undertak,TRADING,Supplies & Services,DEA,02/07/2018,04-10045,539.65,Phs Group Plc
Nottinghamshire County Council,1111/1001,Insurance Revenue,INSURANCE,Supplies & Services,DKA,02/07/2018,04-10040,11500,Plexus Law Ltd
Nottinghamshire County Council,1111/1001,Corporate Management,CORP_MAGT,Premises Related,BDA,02/07/2018,04-10005,15755,Rushcliffe Borough Council
Nottinghamshire County Council,1111/1001,Corporate Management,CORP_MAGT,Premises Related,BDA,02/07/2018,04-10008,6250,Rushcliffe Borough Council
Nottinghamshire County Council,1111/1001,Children and Young People,CYP,Supplies & Services,DEA,02/07/2018,04-17057,2590,Sarah Mann Shaw Ltd
Nottinghamshire County Council,1111/1001,Highways,HIGHWAYS,Supplies & Services,DAA,02/07/2018,04-17054,3598,Shelter Maintenance Ltd
Nottinghamshire County Council,1111/1001,Children and Young People,CYP,Premises Related,BDA,02/07/2018,04-10003,"8,294.00",Sherwood Forest Hosp Nhs Trust
Nottinghamshire County Council,1111/1001,Corporate Management,CORP_MAGT,Premises Related,BDA,02/07/2018,04-10013,11687,Sherwood Forest Hosp Nhs Trust
Nottinghamshire County Council,1111/1001,Children and Young People,CYP,Supplies & Services,DEA,02/07/2018,04-17088,4856,St Francis' Children's Society
Nottinghamshire County Council,1111/1001,Corporate Management,CORP_MAGT,Premises Related,BDA,02/07/2018,04-10001,1274,Sutton Bonnington Vill Hall Cmttee
Nottinghamshire County Council,1111/1001,Children and Young People,CYP,Supplies & Services,DEA,02/07/2018,04-17087,"1,600.00",Sylnar Ltd
Nottinghamshire County Council,1111/1001,Highways,HIGHWAYS,Transport Related,CCA,02/07/2018,04-10054,715.9,Town Cars (UK) Ltd
Nottinghamshire County Council,1111/1001,Adult Social Care and Health,ASCH,Supplies & Services,DDA,02/07/2018,04-10036,"1,904.84",Vodafone Ltd (Voice & Data)
Nottinghamshire County Council,1111/1001,Corporate Management,CORP_MAGT,Premises Related,BDA,02/07/2018,04-10002,1240.49,Welbeck Estates Company Ltd
Nottinghamshire County Council,1111/1001,Adult Social Care and Health,ASCH,Third Party Payments,EGA,02/07/2018,04-17058,"21,851.56",Witham Valley Care Group
Nottinghamshire County Council,1111/1001,Adult Social Care and Health,ASCH,Income,JDA,03/07/2018,04-10019,516.3,[Redacted]
Nottinghamshire County Council,1111/1001,Adult Social Care and Health,ASCH,Income,JDA,03/07/2018,04-10020,584.94,[Redacted]
Nottinghamshire County Council,1111/1001,Corporate Management,CORP_MAGT,Supplies & Services,DEA,03/07/2018,04-17062,506.25,[Redacted]
Nottinghamshire County Council,1111/1001,Corporate Management,CORP_MAGT,Supplies & Services,DEA,03/07/2018,04-17074,979.82,[Redacted]
Nottinghamshire County Council,1111/1001,Highways,HIGHWAYS,Supplies & Services,DAA,03/07/2018,04-17092,955.7,A Wandless Sign Services Ltd
Nottinghamshire County Council,1111/1001,Children and Young People,CYP,Third Party Payments,EGA,03/07/2018,04-17098,17692.01,Absolute Children�s Services Ltd
Nottinghamshire County Council,1111/1001,Adult Social Care and Health,ASCH,Third Party Payments,EGA,03/07/2018,04-10126,641.85,Agincare UK Ltd
Nottinghamshire County Council,1111/1001,Adult Social Care and Health,ASCH,Third Party Payments,EGA,03/07/2018,04-10127,565.87,Agincare UK Ltd
Nottinghamshire County Council,1111/1001,Adult Social Care and Health,ASCH,Third Party Payments,EGA,03/07/2018,04-10128,557.9,Agincare UK Ltd
Nottinghamshire County Council,1111/1001,Adult Social Care and Health,ASCH,Third Party Payments,EGA,03/07/2018,04-10129,603.59,Agincare UK Ltd
Nottinghamshire County Council,1111/1001,Adult Social Care and Health,ASCH,Third Party Payments,EGA,03/07/2018,04-10130,502.11,Agincare UK Ltd
Nottinghamshire County Council,1111/1001,Adult Social Care and Health,ASCH,Third Party Payments,EGA,03/07/2018,04-10120,1480.08,Amg Nursing & Care Services Ltd
Nottinghamshire County Council,1111/1001,Adult Social Care and Health,ASCH,Third Party Payments,EGA,03/07/2018,04-10121,1762,Amg Nursing & Care Services Ltd
Nottinghamshire County Council,1111/1001,Adult Social Care and Health,ASCH,Third Party Payments,EGA,03/07/2018,04-10122,986.72,Amg Nursing & Care Services Ltd
Nottinghamshire County Council,1111/1001,Adult Social Care and Health,ASCH,Third Party Payments,EGA,03/07/2018,04-10123,"1,303.88",Amg Nursing & Care Services Ltd
Nottinghamshire County Council,1111/1001,Adult Social Care and Health,ASCH,Third Party Payments,EGA,03/07/2018,04-10124,616.7,Amg Nursing & Care Services Ltd
Nottinghamshire County Council,1111/1001,Adult Social Care and Health,ASCH,Third Party Payments,EGA,03/07/2018,04-10125,986.72,Amg Nursing & Care Services Ltd
Nottinghamshire County Council,1111/1001,Adult Social Care and Health,ASCH,Third Party Payments,EGA,03/07/2018,04-10131,933.86,Amg Nursing & Care Services Ltd
Nottinghamshire County Council,1111/1001,Adult Social Care and Health,ASCH,Third Party Payments,EGA,03/07/2018,04-10132,1339.12,Amg Nursing & Care Services Ltd
Nottinghamshire County Council,1111/1001,Adult Social Care and Health,ASCH,Third Party Payments,EGA,03/07/2018,04-10133,"1,321.50",Amg Nursing & Care Services Ltd
Nottinghamshire County Council,1111/1001,Adult Social Care and Health,ASCH,Third Party Payments,EGA,03/07/2018,04-10148,527.41,Amg Nursing & Care Services Ltd
Nottinghamshire County Council,1111/1001,Adult Social Care and Health,ASCH,Third Party Payments,EGA,03/07/2018,04-10149,515,Amg Nursing & Care Services Ltd
Nottinghamshire County Council,1111/1001,Adult Social Care and Health,ASCH,Third Party Payments,EGA,03/07/2018,04-10150,508.8,Amg Nursing & Care Services Ltd
Nottinghamshire County Council,1111/1001,Adult Social Care and Health,ASCH,Third Party Payments,EGA,03/07/2018,04-10151,916.24,Amg Nursing & Care Services Ltd
Nottinghamshire County Council,1111/1001,Adult Social Care and Health,ASCH,Third Party Payments,EGA,03/07/2018,04-10152,916.24,Amg Nursing & Care Services Ltd
Nottinghamshire County Council,1111/1001,Adult Social Care and Health,ASCH,Third Party Payments,EGA,03/07/2018,04-10153,687.18,Amg Nursing & Care Services Ltd
Nottinghamshire County Council,1111/1001,Adult Social Care and Health,ASCH,Third Party Payments,EGA,03/07/2018,04-10154,907.43,Amg Nursing & Care Services Ltd
Nottinghamshire County Council,1111/1001,Adult Social Care and Health,ASCH,Third Party Payments,EGA,03/07/2018,04-10155,528.6,Amg Nursing & Care Services Ltd
Nottinghamshire County Council,1111/1001,Adult Social Care and Health,ASCH,Third Party Payments,EGA,03/07/2018,04-10156,634.32,Amg Nursing & Care Services Ltd
Nottinghamshire County Council,1111/1001,Adult Social Care and Health,ASCH,Third Party Payments,EGA,03/07/2018,04-10157,1462.46,Amg Nursing & Care Services Ltd
Nottinghamshire County Council,1111/1001,Adult Social Care and Health,ASCH,Third Party Payments,EGA,03/07/2018,04-10158,1374.36,Amg Nursing & Care Services Ltd
Nottinghamshire County Council,1111/1001,Adult Social Care and Health,ASCH,Third Party Payments,EGA,03/07/2018,04-10159,"1,074.82",Amg Nursing & Care Services Ltd
Nottinghamshire County Council,1111/1001,Adult Social Care and Health,ASCH,Third Party Payments,EGA,03/07/2018,04-10160,775.28,Amg Nursing & Care Services Ltd
Nottinghamshire County Council,1111/1001,Adult Social Care and Health,ASCH,Third Party Payments,EGA,03/07/2018,04-10161,634.32,Amg Nursing & Care Services Ltd
Nottinghamshire County Council,1111/1001,Adult Social Care and Health,ASCH,Third Party Payments,EGA,03/07/2018,04-10162,1198.16,Amg Nursing & Care Services Ltd
Nottinghamshire County Council,1111/1001,Adult Social Care and Health,ASCH,Third Party Payments,EGA,03/07/2018,04-10163,563.84,Amg Nursing & Care Services Ltd
Nottinghamshire County Council,1111/1001,Adult Social Care and Health,ASCH,Third Party Payments,EGA,03/07/2018,04-10164,810.52,Amg Nursing & Care Services Ltd
Nottinghamshire County Council,1111/1001,Adult Social Care and Health,ASCH,Third Party Payments,EGA,03/07/2018,04-10165,528.6,Amg Nursing & Care Services Ltd
Nottinghamshire County Council,1111/1001,Adult Social Care and Health,ASCH,Third Party Payments,EGA,03/07/2018,04-10166,"1,268.84",Amg Nursing & Care Services Ltd
Nottinghamshire County Council,1111/1001,Adult Social Care and Health,ASCH,Third Party Payments,EGA,03/07/2018,04-10167,1215.78,Amg Nursing & Care Services Ltd
Nottinghamshire County Council,1111/1001,Adult Social Care and Health,ASCH,Third Party Payments,EGA,03/07/2018,04-10168,1268.64,Amg Nursing & Care Services Ltd
Nottinghamshire County Council,1111/1001,Adult Social Care and Health,ASCH,Third Party Payments,EGA,03/07/2018,04-10169,951.48,Amg Nursing & Care Services Ltd
Nottinghamshire County Council,1111/1001,Adult Social Care and Health,ASCH,Third Party Payments,EGA,03/07/2018,04-10170,"1,268.64",Amg Nursing & Care Services Ltd
Nottinghamshire County Council,1111/1001,Adult Social Care and Health,ASCH,Third Party Payments,EGA,03/07/2018,04-10171,634.32,Amg Nursing & Care Services Ltd
Nottinghamshire County Council,1111/1001,Adult Social Care and Health,ASCH,Third Party Payments,EGA,03/07/2018,04-10172,1251.02,Amg Nursing & Care Services Ltd
Nottinghamshire County Council,1111/1001,Adult Social Care and Health,ASCH,Third Party Payments,EGA,03/07/2018,04-10173,1885.34,Amg Nursing & Care Services Ltd
Nottinghamshire County Council,1111/1001,Adult Social Care and Health,ASCH,Third Party Payments,EGA,03/07/2018,04-10174,986.72,Amg Nursing & Care Services Ltd
Nottinghamshire County Council,1111/1001,Adult Social Care and Health,ASCH,Third Party Payments,EGA,03/07/2018,04-10175,1973.44,Amg Nursing & Care Services Ltd
Nottinghamshire County Council,1111/1001,Adult Social Care and Health,ASCH,Third Party Payments,EGA,03/07/2018,04-10176,563.84,Amg Nursing & Care Services Ltd
Nottinghamshire County Council,1111/1001,Adult Social Care and Health,ASCH,Third Party Payments,EGA,03/07/2018,04-10177,986.72,Amg Nursing & Care Services Ltd
Nottinghamshire County Council,1111/1001,Surplus or Deficit from Trading Undertak,TRADING,Employee Related,AAA,03/07/2018,04-10001,"2,060.69",Banner Group Limited
Nottinghamshire County Council,1111/1001,Children and Young People,CYP,Third Party Payments,EDA,03/07/2018,04-10057,"119,398.00",Beech Academy
Nottinghamshire County Council,1111/1001,Children and Young People,CYP,Third Party Payments,EDA,03/07/2018,04-10058,8334,Beech Academy
Nottinghamshire County Council,1111/1001,Surplus or Deficit from Trading Undertak,TRADING,Supplies & Services,DAA,03/07/2018,04-10001,"1,405.89",Brian Clegg (Educational Products)
Nottinghamshire County Council,1111/1001,Adult Social Care and Health,ASCH,Third Party Payments,EGA,03/07/2018,04-10037,4107.6,Canal Vue (Eastgate)
Nottinghamshire County Council,1111/1001,Adult Social Care and Health,ASCH,Third Party Payments,EGA,03/07/2018,04-10038,4107.6,Canal Vue (Eastgate)
Nottinghamshire County Council,1111/1001,Adult Social Care and Health,ASCH,Third Party Payments,EGA,03/07/2018,04-10039,4385.92,Canal Vue (Eastgate)
Nottinghamshire County Council,1111/1001,Children and Young People,CYP,Supplies & Services,DAA,03/07/2018,04-10065,670,Cherubs Childcare Centre (Mansfield
Nottinghamshire County Council,1111/1001,Children and Young People,CYP,Supplies & Services,DEA,03/07/2018,04-17086,1581.25,Chris Few Consultancy Ltd
Nottinghamshire County Council,1111/1001,Surplus or Deficit from Trading Undertak,TRADING,Supplies & Services,DEA,03/07/2018,04-17083,2100,Dec Marketing Company Ltd
Nottinghamshire County Council,1111/1001,Adult Social Care and Health,ASCH,Third Party Payments,EGA,03/07/2018,04-10081,824.11,Direct Health (uk) Ltd
Nottinghamshire County Council,1111/1001,Adult Social Care and Health,ASCH,Third Party Payments,EGA,03/07/2018,04-10082,626.01,Direct Health (uk) Ltd
Nottinghamshire County Council,1111/1001,Adult Social Care and Health,ASCH,Third Party Payments,EGA,03/07/2018,04-10083,512.19,Direct Health (uk) Ltd
Nottinghamshire County Council,1111/1001,Adult Social Care and Health,ASCH,Third Party Payments,EGA,03/07/2018,04-10084,521.95,Direct Health (uk) Ltd
Nottinghamshire County Council,1111/1001,Adult Social Care and Health,ASCH,Third Party Payments,EGA,03/07/2018,04-10085,621.67,Direct Health (uk) Ltd
Nottinghamshire County Council,1111/1001,Adult Social Care and Health,ASCH,Third Party Payments,EGA,03/07/2018,04-10086,512.19,Direct Health (uk) Ltd
Nottinghamshire County Council,1111/1001,Adult Social Care and Health,ASCH,Third Party Payments,EGA,03/07/2018,04-10087,555.89,Direct Health (uk) Ltd
Nottinghamshire County Council,1111/1001,Adult Social Care and Health,ASCH,Third Party Payments,EGA,03/07/2018,04-10088,504.33,Direct Health (uk) Ltd
Nottinghamshire County Council,1111/1001,Adult Social Care and Health,ASCH,Third Party Payments,EGA,03/07/2018,04-10089,683.25,Direct Health (uk) Ltd
Nottinghamshire County Council,1111/1001,Surplus or Deficit from Trading Undertak,TRADING,Supplies & Services,DAA,03/07/2018,04-10001,684,Dualit Ltd
Nottinghamshire County Council,1111/1001,Adult Social Care and Health,ASCH,Third Party Payments,EGA,03/07/2018,04-10098,770.18,Forever Independent Ltd
Nottinghamshire County Council,1111/1001,Adult Social Care and Health,ASCH,Third Party Payments,EGA,03/07/2018,04-10099,781.06,Forever Independent Ltd
Nottinghamshire County Council,1111/1001,Adult Social Care and Health,ASCH,Third Party Payments,EGA,03/07/2018,04-10100,521.6,Forever Independent Ltd
Nottinghamshire County Council,1111/1001,Adult Social Care and Health,ASCH,Third Party Payments,EGA,03/07/2018,04-10101,684.6,Forever Independent Ltd
Nottinghamshire County Council,1111/1001,Adult Social Care and Health,ASCH,Third Party Payments,EGA,03/07/2018,04-10102,692.75,Forever Independent Ltd
Nottinghamshire County Council,1111/1001,Adult Social Care and Health,ASCH,Third Party Payments,EGA,03/07/2018,04-10103,880.2,Forever Independent Ltd
Nottinghamshire County Council,1111/1001,Adult Social Care and Health,ASCH,Third Party Payments,EGA,03/07/2018,04-10104,554.2,Forever Independent Ltd
Nottinghamshire County Council,1111/1001,Adult Social Care and Health,ASCH,Third Party Payments,EGA,03/07/2018,04-10105,1141,Forever Independent Ltd
Nottinghamshire County Council,1111/1001,Adult Social Care and Health,ASCH,Third Party Payments,EGA,03/07/2018,04-10106,782.4,Forever Independent Ltd
Nottinghamshire County Council,1111/1001,Adult Social Care and Health,ASCH,Third Party Payments,EGA,03/07/2018,04-10107,521.6,Forever Independent Ltd
Nottinghamshire County Council,1111/1001,Adult Social Care and Health,ASCH,Third Party Payments,EGA,03/07/2018,04-10108,520.32,Forever Independent Ltd
Nottinghamshire County Council,1111/1001,Adult Social Care and Health,ASCH,Third Party Payments,EGA,03/07/2018,04-10109,2119,Forever Independent Ltd
Nottinghamshire County Council,1111/1001,Adult Social Care and Health,ASCH,Third Party Payments,EGA,03/07/2018,04-10110,"1,035.05",Forever Independent Ltd
Nottinghamshire County Council,1111/1001,Adult Social Care and Health,ASCH,Third Party Payments,EGA,03/07/2018,04-10111,851.68,Forever Independent Ltd
Nottinghamshire County Council,1111/1001,Adult Social Care and Health,ASCH,Third Party Payments,EGA,03/07/2018,04-10112,505.3,Forever Independent Ltd
Nottinghamshire County Council,1111/1001,Adult Social Care and Health,ASCH,Third Party Payments,EGA,03/07/2018,04-10113,831.3,Forever Independent Ltd
Nottinghamshire County Council,1111/1001,Adult Social Care and Health,ASCH,Third Party Payments,EGA,03/07/2018,04-10114,815,Forever Independent Ltd
Nottinghamshire County Council,1111/1001,Adult Social Care and Health,ASCH,Third Party Payments,EGA,03/07/2018,04-10115,888.35,Forever Independent Ltd
Nottinghamshire County Council,1111/1001,Adult Social Care and Health,ASCH,Third Party Payments,EGA,03/07/2018,04-10116,892.64,Forever Independent Ltd
Nottinghamshire County Council,1111/1001,Adult Social Care and Health,ASCH,Third Party Payments,EGA,03/07/2018,04-10117,685.42,Forever Independent Ltd
Nottinghamshire County Council,1111/1001,Adult Social Care and Health,ASCH,Third Party Payments,EGA,03/07/2018,04-10118,980.63,Forever Independent Ltd
Nottinghamshire County Council,1111/1001,Adult Social Care and Health,ASCH,Third Party Payments,EGA,03/07/2018,04-10119,796.74,Forever Independent Ltd
Nottinghamshire County Council,1111/1001,Adult Social Care and Health,ASCH,Third Party Payments,EGA,03/07/2018,04-10134,513.45,Forever Independent Ltd
Nottinghamshire County Council,1111/1001,Adult Social Care and Health,ASCH,Third Party Payments,EGA,03/07/2018,04-10135,815,Forever Independent Ltd
Nottinghamshire County Council,1111/1001,Adult Social Care and Health,ASCH,Third Party Payments,EGA,03/07/2018,04-10137,1369.2,Forever Independent Ltd
Nottinghamshire County Council,1111/1001,Adult Social Care and Health,ASCH,Third Party Payments,EGA,03/07/2018,04-10138,774.25,Forever Independent Ltd
Nottinghamshire County Council,1111/1001,Adult Social Care and Health,ASCH,Third Party Payments,EGA,03/07/2018,04-10139,586.8,Forever Independent Ltd
Nottinghamshire County Council,1111/1001,Adult Social Care and Health,ASCH,Third Party Payments,EGA,03/07/2018,04-10186,676.45,Forever Independent Ltd
Nottinghamshire County Council,1111/1001,Adult Social Care and Health,ASCH,Third Party Payments,EGA,03/07/2018,04-10187,2053.8,Forever Independent Ltd
Nottinghamshire County Council,1111/1001,Adult Social Care and Health,ASCH,Third Party Payments,EGA,03/07/2018,04-10188,"1,026.90",Forever Independent Ltd
Nottinghamshire County Council,1111/1001,Adult Social Care and Health,ASCH,Third Party Payments,EGA,03/07/2018,04-10189,798.7,Forever Independent Ltd
Nottinghamshire County Council,1111/1001,Adult Social Care and Health,ASCH,Third Party Payments,EGA,03/07/2018,04-10190,815,Forever Independent Ltd
Nottinghamshire County Council,1111/1001,Adult Social Care and Health,ASCH,Third Party Payments,EGA,03/07/2018,04-10191,520.32,Forever Independent Ltd
Nottinghamshire County Council,1111/1001,Adult Social Care and Health,ASCH,Third Party Payments,EGA,03/07/2018,04-10198,1092.12,Forever Independent Ltd
Nottinghamshire County Council,1111/1001,Adult Social Care and Health,ASCH,Third Party Payments,EGA,03/07/2018,04-10140,524.89,Fosse Healthcare Ltd
Nottinghamshire County Council,1111/1001,Adult Social Care and Health,ASCH,Third Party Payments,EGA,03/07/2018,04-10141,549.52,Fosse Healthcare Ltd
Nottinghamshire County Council,1111/1001,Adult Social Care and Health,ASCH,Third Party Payments,EGA,03/07/2018,04-10142,509.93,Fosse Healthcare Ltd
Nottinghamshire County Council,1111/1001,Adult Social Care and Health,ASCH,Third Party Payments,EGA,03/07/2018,04-10143,644.76,Fosse Healthcare Ltd
Nottinghamshire County Council,1111/1001,Adult Social Care and Health,ASCH,Third Party Payments,EGA,03/07/2018,04-10144,516.14,Fosse Healthcare Ltd
Nottinghamshire County Council,1111/1001,Adult Social Care and Health,ASCH,Third Party Payments,EGA,03/07/2018,04-10145,548.63,Fosse Healthcare Ltd
Nottinghamshire County Council,1111/1001,Adult Social Care and Health,ASCH,Third Party Payments,EGA,03/07/2018,04-10146,504.06,Fosse Healthcare Ltd
Nottinghamshire County Council,1111/1001,Adult Social Care and Health,ASCH,Third Party Payments,EGA,03/07/2018,04-10147,702.39,Fosse Healthcare Ltd
Nottinghamshire County Council,1111/1001,Children and Young People,CYP,Third Party Payments,EDA,03/07/2018,04-10059,160816,Foxwood Academy
Nottinghamshire County Council,1111/1001,Adult Social Care and Health,ASCH,Third Party Payments,EGA,03/07/2018,04-10210,1850.52,GP Homecare Ltd T/A Radis Community
Nottinghamshire County Council,1111/1001,Adult Social Care and Health,ASCH,Third Party Payments,EGA,03/07/2018,04-10211,579.04,GP Homecare Ltd T/A Radis Community
Nottinghamshire County Council,1111/1001,Adult Social Care and Health,ASCH,Third Party Payments,EGA,03/07/2018,04-10212,725.48,GP Homecare Ltd T/A Radis Community
Nottinghamshire County Council,1111/1001,Children and Young People,CYP,Supplies & Services,DAA,03/07/2018,04-10066,947,Granby House Nursery
Nottinghamshire County Council,1111/1001,Corporate Management,CORP_MAGT,Supplies & Services,DDA,03/07/2018,04-17082,849,JGP Resourcing Ltd
Nottinghamshire County Council,1111/1001,Surplus or Deficit from Trading Undertak,TRADING,Supplies & Services,DKA,03/07/2018,04-10001,"1,881.60",Kimberly Clark European Services Lt
Nottinghamshire County Council,1111/1001,Adult Social Care and Health,ASCH,Third Party Payments,EGA,03/07/2018,04-10090,"1,072.00",Leen Valley Care Home (1st Care)
Nottinghamshire County Council,1111/1001,Adult Social Care and Health,ASCH,Third Party Payments,EGA,03/07/2018,04-10091,"2,232.00",Leen Valley Care Home (1st Care)
Nottinghamshire County Council,1111/1001,Adult Social Care and Health,ASCH,Third Party Payments,EGA,03/07/2018,04-10092,512,Leen Valley Care Home (1st Care)
Nottinghamshire County Council,1111/1001,Adult Social Care and Health,ASCH,Third Party Payments,EGA,03/07/2018,04-10093,896,Leen Valley Care Home (1st Care)
Nottinghamshire County Council,1111/1001,Adult Social Care and Health,ASCH,Third Party Payments,EGA,03/07/2018,04-10094,672,Leen Valley Care Home (1st Care)
Nottinghamshire County Council,1111/1001,Adult Social Care and Health,ASCH,Third Party Payments,EGA,03/07/2018,04-10095,724,Leen Valley Care Home (1st Care)
Nottinghamshire County Council,1111/1001,Adult Social Care and Health,ASCH,Third Party Payments,EGA,03/07/2018,04-10096,896,Leen Valley Care Home (1st Care)
Nottinghamshire County Council,1111/1001,Children and Young People,CYP,Supplies & Services,DAA,03/07/2018,04-10067,"1,205.00",Little Wrens Day Nursery & Pre Scho
Nottinghamshire County Council,1111/1001,Adult Social Care and Health,ASCH,Third Party Payments,EGA,03/07/2018,04-10070,564.84,Mears Homecare Ltd
Nottinghamshire County Council,1111/1001,Adult Social Care and Health,ASCH,Third Party Payments,EGA,03/07/2018,04-10071,541.31,Mears Homecare Ltd
Nottinghamshire County Council,1111/1001,Adult Social Care and Health,ASCH,Third Party Payments,EGA,03/07/2018,04-10072,509.93,Mears Homecare Ltd
Nottinghamshire County Council,1111/1001,Adult Social Care and Health,ASCH,Third Party Payments,EGA,03/07/2018,04-10073,549.15,Mears Homecare Ltd
Nottinghamshire County Council,1111/1001,Adult Social Care and Health,ASCH,Third Party Payments,EGA,03/07/2018,04-10074,543.66,Mears Homecare Ltd
Nottinghamshire County Council,1111/1001,Adult Social Care and Health,ASCH,Third Party Payments,EGA,03/07/2018,04-10075,523.78,Mears Homecare Ltd
Nottinghamshire County Council,1111/1001,Adult Social Care and Health,ASCH,Third Party Payments,EGA,03/07/2018,04-10076,643.29,Mears Homecare Ltd
Nottinghamshire County Council,1111/1001,Adult Social Care and Health,ASCH,Third Party Payments,EGA,03/07/2018,04-10077,685.91,Mears Homecare Ltd
Nottinghamshire County Council,1111/1001,Adult Social Care and Health,ASCH,Third Party Payments,EGA,03/07/2018,04-10078,635.45,Mears Homecare Ltd
Nottinghamshire County Council,1111/1001,Adult Social Care and Health,ASCH,Third Party Payments,EGA,03/07/2018,04-10079,510.45,Mears Homecare Ltd
Nottinghamshire County Council,1111/1001,Adult Social Care and Health,ASCH,Third Party Payments,EGA,03/07/2018,04-10080,541.31,Mears Homecare Ltd
Nottinghamshire County Council,1111/1001,Surplus or Deficit from Trading Undertak,TRADING,Supplies & Services,DAA,03/07/2018,04-10001,775.54,Metroplan Ltd
Nottinghamshire County Council,1111/1001,Surplus or Deficit from Trading Undertak,TRADING,Employee Related,AAA,03/07/2018,04-10001,895.2,Monarch Education Furniture
Nottinghamshire County Council,1111/1001,Children and Young People,CYP,Third Party Payments,EGA,03/07/2018,04-17097,"1,350.00",New Dawn Semi Independent Provider
Nottinghamshire County Council,1111/1001,Corporate Management,CORP_MAGT,Supplies & Services,DKA,03/07/2018,04-10069,2688.96,Newark Advertiser Company Ltd
Nottinghamshire County Council,1111/1001,Surplus or Deficit from Trading Undertak,TRADING,Premises Related,BJA,03/07/2018,04-10001,"5,862.28",Newell Rubbermaid Uk Ltd
Nottinghamshire County Council,1111/1001,Adult Social Care and Health,ASCH,Third Party Payments,EGA,03/07/2018,04-10195,1826.72,Percurra Ltd
Nottinghamshire County Council,1111/1001,Adult Social Care and Health,ASCH,Third Party Payments,EGA,03/07/2018,04-10196,2056.6,Percurra Ltd
Nottinghamshire County Council,1111/1001,Adult Social Care and Health,ASCH,Third Party Payments,EGA,03/07/2018,04-10197,648.59,Percurra Ltd
Nottinghamshire County Council,1111/1001,Corporate Management,CORP_MAGT,Employee Related,ABA,03/07/2018,04-10218,2839.38,Pluralsight
Nottinghamshire County Council,1111/1001,Adult Social Care and Health,ASCH,Third Party Payments,EGA,03/07/2018,04-10097,"1,108.15",Premier Nursing Agency Ltd
Nottinghamshire County Council,1111/1001,Surplus or Deficit from Trading Undertak,TRADING,Supplies & Services,DDA,03/07/2018,04-10001,712.52,Rapesco Office Products Plc
Nottinghamshire County Council,1111/1001,Children and Young People,CYP,Third Party Payments,EDA,03/07/2018,04-10056,"96,426.00",Redgate Primary Academy
Nottinghamshire County Council,1111/1001,Children and Young People,CYP,Supplies & Services,DAA,03/07/2018,04-10068,641,Serendipity's Day Nursery
Nottinghamshire County Council,1111/1001,Adult Social Care and Health,ASCH,Third Party Payments,EGA,03/07/2018,04-10192,558.76,The Human Support Group
Nottinghamshire County Council,1111/1001,Adult Social Care and Health,ASCH,Third Party Payments,EGA,03/07/2018,04-10193,577.28,The Human Support Group
Nottinghamshire County Council,1111/1001,Adult Social Care and Health,ASCH,Third Party Payments,EGA,03/07/2018,04-10194,"1,138.81",The Human Support Group
Nottinghamshire County Council,1111/1001,Surplus or Deficit from Trading Undertak,TRADING,Supplies & Services,DAA,03/07/2018,04-10001,"3,366.78",Vivid Laminating Technologies Ltd
Nottinghamshire County Council,1111/1001,Adult Social Care and Health,ASCH,Third Party Payments,EGA,03/07/2018,04-10199,1434.4,Westminster Homecare Ltd
Nottinghamshire County Council,1111/1001,Adult Social Care and Health,ASCH,Third Party Payments,EGA,03/07/2018,04-10200,1134.95,Westminster Homecare Ltd
Nottinghamshire County Council,1111/1001,Adult Social Care and Health,ASCH,Third Party Payments,EGA,03/07/2018,04-10201,975.73,Westminster Homecare Ltd
Nottinghamshire County Council,1111/1001,Adult Social Care and Health,ASCH,Third Party Payments,EGA,03/07/2018,04-10202,761.98,Westminster Homecare Ltd
Nottinghamshire County Council,1111/1001,Adult Social Care and Health,ASCH,Third Party Payments,EGA,03/07/2018,04-10203,"1,005.33",Westminster Homecare Ltd
Nottinghamshire County Council,1111/1001,Adult Social Care and Health,ASCH,Third Party Payments,EGA,03/07/2018,04-10204,1541.83,Westminster Homecare Ltd
Nottinghamshire County Council,1111/1001,Adult Social Care and Health,ASCH,Third Party Payments,EGA,03/07/2018,04-10205,567.55,Westminster Homecare Ltd
Nottinghamshire County Council,1111/1001,Adult Social Care and Health,ASCH,Third Party Payments,EGA,03/07/2018,04-10206,1102.55,Westminster Homecare Ltd
Nottinghamshire County Council,1111/1001,Adult Social Care and Health,ASCH,Third Party Payments,EGA,03/07/2018,04-10207,575.33,Westminster Homecare Ltd
Nottinghamshire County Council,1111/1001,Adult Social Care and Health,ASCH,Third Party Payments,EGA,03/07/2018,04-10208,1135.15,Westminster Homecare Ltd
Nottinghamshire County Council,1111/1001,Adult Social Care and Health,ASCH,Third Party Payments,EGA,03/07/2018,04-10209,2043.27,Westminster Homecare Ltd
Nottinghamshire County Council,1111/1001,Children and Young People,CYP,Third Party Payments,EDA,03/07/2018,04-10060,"204,892.00",Yeoman Park Academy
Nottinghamshire County Council,1111/1001,Children and Young People,CYP,Third Party Payments,EDA,03/07/2018,04-10061,1800,Yeoman Park Academy
Nottinghamshire County Council,1111/1001,Children and Young People,CYP,Supplies & Services,DEA,04/07/2018,04-17108,"1,246.00",[Redacted]
Nottinghamshire County Council,1111/1001,Adult Social Care and Health,ASCH,Income,JDA,04/07/2018,04-10018,980.92,[Redacted]
Nottinghamshire County Council,1111/1001,Adult Social Care and Health,ASCH,Income,JDA,04/07/2018,04-10021,1634.33,[Redacted]
Nottinghamshire County Council,1111/1001,Corporate Management,CORP_MAGT,Supplies & Services,DEA,04/07/2018,04-17061,556.88,[Redacted]
Nottinghamshire County Council,1111/1001,Corporate Management,CORP_MAGT,Supplies & Services,DEA,04/07/2018,04-17133,3150,[Redacted]
Nottinghamshire County Council,1111/1001,Planning and Development,PLAN_DEV,Supplies & Services,DEA,04/07/2018,04-17047,1750,Aecom Infrastructure & Environment
Nottinghamshire County Council,1111/1001,Corporate Management,CORP_MAGT,Premises Related,BJA,04/07/2018,04-17106,2400,Art Cleaning Midlands Ltd
Nottinghamshire County Council,1111/1001,Adult Social Care and Health,ASCH,Premises Related,BJA,04/07/2018,04-17132,3967,Ashfield District Council
Nottinghamshire County Council,1111/1001,Adult Social Care and Health,ASCH,Third Party Payments,EGA,04/07/2018,04-10136,538.65,Comfort Call Ltd
Nottinghamshire County Council,1111/1001,Adult Social Care and Health,ASCH,Third Party Payments,EGA,04/07/2018,04-10178,506.21,Comfort Call Ltd
Nottinghamshire County Council,1111/1001,Adult Social Care and Health,ASCH,Third Party Payments,EGA,04/07/2018,04-10179,549.85,Comfort Call Ltd
Nottinghamshire County Council,1111/1001,Adult Social Care and Health,ASCH,Third Party Payments,EGA,04/07/2018,04-10180,570.88,Comfort Call Ltd
Nottinghamshire County Council,1111/1001,Adult Social Care and Health,ASCH,Third Party Payments,EGA,04/07/2018,04-10181,564.06,Comfort Call Ltd
Nottinghamshire County Council,1111/1001,Adult Social Care and Health,ASCH,Third Party Payments,EGA,04/07/2018,04-10182,549.06,Comfort Call Ltd
Nottinghamshire County Council,1111/1001,Adult Social Care and Health,ASCH,Third Party Payments,EGA,04/07/2018,04-10183,562.45,Comfort Call Ltd
Nottinghamshire County Council,1111/1001,Adult Social Care and Health,ASCH,Third Party Payments,EGA,04/07/2018,04-10184,506.21,Comfort Call Ltd
Nottinghamshire County Council,1111/1001,Adult Social Care and Health,ASCH,Third Party Payments,EGA,04/07/2018,04-10185,867.78,Comfort Call Ltd
Nottinghamshire County Council,1111/1001,Children and Young People,CYP,Third Party Payments,EBA,04/07/2018,04-17128,110779.99,"Culture, Learning & Libraries (Midl"
Nottinghamshire County Council,1111/1001,Continuing Education,CONT_EDUC,Third Party Payments,EBA,04/07/2018,04-17129,239788.32,"Culture, Learning & Libraries (Midl"
Nottinghamshire County Council,1111/1001,Continuing Education,CONT_EDUC,Third Party Payments,EBA,04/07/2018,04-17130,2723.41,"Culture, Learning & Libraries (Midl"
Nottinghamshire County Council,1111/1001,Corporate Management,CORP_MAGT,Supplies & Services,DAA,04/07/2018,04-10235,578.76,Encapsulated Print Services
Nottinghamshire County Council,1111/1001,Public Health,HEALTH,Third Party Payments,EGA,04/07/2018,04-17143,4470.96,Friary Drop In Ltd
Nottinghamshire County Council,1111/1001,Children and Young People,CYP,Supplies & Services,DEA,04/07/2018,04-17113,2400,Global Mediation Ltd
Nottinghamshire County Council,1111/1001,Corporate Management,CORP_MAGT,Supplies & Services,DEA,04/07/2018,04-17112,1050,Handling Movement & Ergonomics Ltd
Nottinghamshire County Council,1111/1001,Children and Young People,CYP,Third Party Payments,EDA,04/07/2018,04-10215,5805,Holgate Academy
Nottinghamshire County Council,1111/1001,Children and Young People,CYP,Third Party Payments,EGA,04/07/2018,04-17045,1262.5,Hope House School Ltd
Nottinghamshire County Council,1111/1001,Children and Young People,CYP,Third Party Payments,EGA,04/07/2018,04-17046,"1,073.00",Hope House School Ltd
Nottinghamshire County Council,1111/1001,Children and Young People,CYP,Third Party Payments,EGA,04/07/2018,04-17055,"1,425.00",Hope House School Ltd
Nottinghamshire County Council,1111/1001,Children and Young People,CYP,Third Party Payments,EFA,04/07/2018,04-17048,"3,304.90",John Flamsteed Community School
Nottinghamshire County Council,1111/1001,Corporate Management,CORP_MAGT,Employee Related,ABA,04/07/2018,04-17051,2180.5,Kent County Council (HO)
Nottinghamshire County Council,1111/1001,Children and Young People,CYP,Third Party Payments,EDA,04/07/2018,04-10216,"7,386.00",National Church Of England Academy
Nottinghamshire County Council,1111/1001,Insurance Revenue,INSURANCE,Supplies & Services,DKA,04/07/2018,04-10035,10000,Nelsons Solicitors Llp
Nottinghamshire County Council,1111/1001,Insurance Revenue,INSURANCE,Supplies & Services,DEA,04/07/2018,04-10034,4110.5,Nottingham City Council
Nottinghamshire County Council,1111/1001,Children and Young People,CYP,Third Party Payments,EGA,04/07/2018,04-17141,"861,741.00",Nottinghamshire Healthcare Nhs F Tr
Nottinghamshire County Council,1111/1001,Corporate Management,CORP_MAGT,Premises Related,BDA,04/07/2018,04-17150,981.15,Notts County Football Club
Nottinghamshire County Council,1111/1001,Children and Young People,CYP,Supplies & Services,DEA,04/07/2018,04-10042,500,One Time Vendor
Nottinghamshire County Council,1111/1001,Leisure Services,LEISURE,Premises Related,BDA,04/07/2018,04-17050,12619.4,Parkwood Leisure Ltd
Nottinghamshire County Council,1111/1001,Adult Social Care and Health,ASCH,Third Party Payments,EHA,04/07/2018,04-17116,75684.17,Pohwer
Nottinghamshire County Council,1111/1001,Children and Young People,CYP,Third Party Payments,EFA,04/07/2018,04-17053,"9,914.00",Pollyteach Ltd
Nottinghamshire County Council,1111/1001,Children and Young People,CYP,Transfer Payments,GAA,04/07/2018,04-17115,1980,Rose Callan Education Services
Nottinghamshire County Council,1111/1001,Highways,HIGHWAYS,Supplies & Services,DFA,04/07/2018,04-17056,1393.54,Royal Mail
Nottinghamshire County Council,1111/1001,Children and Young People,CYP,Third Party Payments,EDA,04/07/2018,04-10214,"8,430.00",Selston High Academy
Nottinghamshire County Council,1111/1001,Children and Young People,CYP,Third Party Payments,EGA,04/07/2018,04-17131,11912.85,Sunrise Homes Services Ltd
Nottinghamshire County Council,1111/1001,Corporate Management,CORP_MAGT,Supplies & Services,DEA,04/07/2018,04-10237,1291,The Art Department
Nottinghamshire County Council,1111/1001,Corporate Management,CORP_MAGT,Supplies & Services,DEA,04/07/2018,04-10238,1450,The Art Department
Nottinghamshire County Council,1111/1001,Children and Young People,CYP,Third Party Payments,EDA,04/07/2018,04-10217,8379,The Kimberley School (Academy)
Nottinghamshire County Council,1111/1001,Public Health,HEALTH,Third Party Payments,ECA,04/07/2018,04-10239,675.36,The Rotherham NHS Foundation Trust
Nottinghamshire County Council,1111/1001,Corporate Management,CORP_MAGT,Supplies & Services,DHA,04/07/2018,04-17138,6639.3,Thomson Reuters
Nottinghamshire County Council,1111/1001,Corporate Management,CORP_MAGT,Supplies & Services,DHA,04/07/2018,04-17139,5280.24,Thomson Reuters
Nottinghamshire County Council,1111/1001,Adult Social Care and Health,ASCH,Premises Related,BDA,04/07/2018,04-17148,"36,250.00",Trustees Of The Sherwood Press Pens
Nottinghamshire County Council,1111/1001,Children and Young People,CYP,Transport Related,CAA,04/07/2018,04-10227,"1,442.99",Via East Midlands Ltd
Nottinghamshire County Council,1111/1001,Adult Social Care and Health,ASCH,Transport Related,CAA,04/07/2018,04-10227,"7,659.62",Via East Midlands Ltd
Nottinghamshire County Council,1111/1001,Highways,HIGHWAYS,Transport Related,CAA,04/07/2018,04-10227,29149.25,Via East Midlands Ltd
Nottinghamshire County Council,1111/1001,Environmental,ENVIRON,Transport Related,CAA,04/07/2018,04-10227,2240.03,Via East Midlands Ltd
Nottinghamshire County Council,1111/1001,Corporate Management,CORP_MAGT,Transport Related,CAA,04/07/2018,04-10227,383.12,Via East Midlands Ltd
Nottinghamshire County Council,1111/1001,Leisure Services,LEISURE,Transport Related,CAA,04/07/2018,04-10227,364.31,Via East Midlands Ltd
Nottinghamshire County Council,1111/1001,Surplus or Deficit from Trading Undertak,TRADING,Transport Related,CAA,04/07/2018,04-10227,15614.55,Via East Midlands Ltd
Nottinghamshire County Council,1111/1001,Children and Young People,CYP,Third Party Payments,EFA,04/07/2018,04-17052,"1,638.00",Whites Wood Academy
Nottinghamshire County Council,1111/1001,Children and Young People,CYP,Supplies & Services,DEA,05/07/2018,04-17161,891.4,[Redacted]
Nottinghamshire County Council,1111/1001,Children and Young People,CYP,Third Party Payments,EFA,05/07/2018,04-17149,914,[Redacted]
Nottinghamshire County Council,1111/1001,Children and Young People,CYP,Third Party Payments,EGA,05/07/2018,04-10252,528.06,[Redacted]
Nottinghamshire County Council,1111/1001,Children and Young People,CYP,Third Party Payments,EGA,05/07/2018,04-10258,621.91,[Redacted]
Nottinghamshire County Council,1111/1001,Children and Young People,CYP,Third Party Payments,EGA,05/07/2018,04-10265,821.34,[Redacted]
Nottinghamshire County Council,1111/1001,Children and Young People,CYP,Third Party Payments,EGA,05/07/2018,04-10268,529.98,[Redacted]
Nottinghamshire County Council,1111/1001,Children and Young People,CYP,Third Party Payments,EGA,05/07/2018,04-10269,887.39,[Redacted]
Nottinghamshire County Council,1111/1001,Children and Young People,CYP,Third Party Payments,EGA,05/07/2018,04-10312,648.96,[Redacted]
Nottinghamshire County Council,1111/1001,Children and Young People,CYP,Third Party Payments,EGA,05/07/2018,04-10314,605.69,[Redacted]
Nottinghamshire County Council,1111/1001,Children and Young People,CYP,Third Party Payments,EGA,05/07/2018,04-10321,511.06,[Redacted]
Nottinghamshire County Council,1111/1001,Children and Young People,CYP,Third Party Payments,EGA,05/07/2018,04-10324,1656.29,[Redacted]
Nottinghamshire County Council,1111/1001,Children and Young People,CYP,Third Party Payments,EGA,05/07/2018,04-10331,681.41,[Redacted]
Nottinghamshire County Council,1111/1001,Children and Young People,CYP,Third Party Payments,EGA,05/07/2018,04-10332,1385.05,[Redacted]
Nottinghamshire County Council,1111/1001,Children and Young People,CYP,Third Party Payments,EGA,05/07/2018,04-10333,973.44,[Redacted]
Nottinghamshire County Council,1111/1001,Children and Young People,CYP,Third Party Payments,EGA,05/07/2018,04-10344,605.69,[Redacted]
Nottinghamshire County Council,1111/1001,Children and Young People,CYP,Third Party Payments,EGA,05/07/2018,04-10347,758.68,[Redacted]
Nottinghamshire County Council,1111/1001,Children and Young People,CYP,Third Party Payments,EGA,05/07/2018,04-10348,560.51,[Redacted]
Nottinghamshire County Council,1111/1001,Children and Young People,CYP,Third Party Payments,EGA,05/07/2018,04-10351,1361.49,[Redacted]
Nottinghamshire County Council,1111/1001,Children and Young People,CYP,Third Party Payments,EGA,05/07/2018,04-10363,584.06,[Redacted]
Nottinghamshire County Council,1111/1001,Children and Young People,CYP,Third Party Payments,EGA,05/07/2018,04-10375,2028,[Redacted]
Nottinghamshire County Council,1111/1001,Children and Young People,CYP,Third Party Payments,EGA,05/07/2018,04-10393,854.33,[Redacted]
Nottinghamshire County Council,1111/1001,Children and Young People,CYP,Third Party Payments,EGA,05/07/2018,04-10395,690.3,[Redacted]
Nottinghamshire County Council,1111/1001,Children and Young People,CYP,Third Party Payments,EGA,05/07/2018,04-10396,612.56,[Redacted]
Nottinghamshire County Council,1111/1001,Children and Young People,CYP,Third Party Payments,EGA,05/07/2018,04-10402,569.4,[Redacted]
Nottinghamshire County Council,1111/1001,Children and Young People,CYP,Third Party Payments,EGA,05/07/2018,04-10403,1027.52,[Redacted]
Nottinghamshire County Council,1111/1001,Children and Young People,CYP,Third Party Payments,EGA,05/07/2018,04-10404,528.06,[Redacted]
Nottinghamshire County Council,1111/1001,Children and Young People,CYP,Third Party Payments,EGA,05/07/2018,04-10419,1014.15,[Redacted]
Nottinghamshire County Council,1111/1001,Children and Young People,CYP,Third Party Payments,EGA,05/07/2018,04-10421,771.42,[Redacted]
Nottinghamshire County Council,1111/1001,Children and Young People,CYP,Third Party Payments,EGA,05/07/2018,04-10428,1344.57,[Redacted]
Nottinghamshire County Council,1111/1001,Children and Young People,CYP,Third Party Payments,EGA,05/07/2018,04-10429,973.44,[Redacted]
Nottinghamshire County Council,1111/1001,Children and Young People,CYP,Third Party Payments,EGA,05/07/2018,04-10431,609.18,[Redacted]
Nottinghamshire County Council,1111/1001,Children and Young People,CYP,Third Party Payments,EGA,05/07/2018,04-10434,925.39,[Redacted]
Nottinghamshire County Council,1111/1001,Children and Young People,CYP,Third Party Payments,EGA,05/07/2018,04-10435,584.06,[Redacted]
Nottinghamshire County Council,1111/1001,Children and Young People,CYP,Third Party Payments,EGA,05/07/2018,04-10442,738.97,[Redacted]
Nottinghamshire County Council,1111/1001,Children and Young People,CYP,Third Party Payments,EGA,05/07/2018,04-10443,1090.49,[Redacted]
Nottinghamshire County Council,1111/1001,Children and Young People,CYP,Third Party Payments,EGA,05/07/2018,04-10444,3884.16,[Redacted]
Nottinghamshire County Council,1111/1001,Children and Young People,CYP,Third Party Payments,EGA,05/07/2018,04-10459,"2,271.36",[Redacted]
Nottinghamshire County Council,1111/1001,Children and Young People,CYP,Third Party Payments,EGA,05/07/2018,04-10465,811.2,[Redacted]
Nottinghamshire County Council,1111/1001,Children and Young People,CYP,Third Party Payments,EGA,05/07/2018,04-10470,648.96,[Redacted]
Nottinghamshire County Council,1111/1001,Children and Young People,CYP,Third Party Payments,EGA,05/07/2018,04-10487,933.66,[Redacted]
Nottinghamshire County Council,1111/1001,Children and Young People,CYP,Third Party Payments,EGA,05/07/2018,04-10488,1406.08,[Redacted]
Nottinghamshire County Council,1111/1001,Children and Young People,CYP,Third Party Payments,EGA,05/07/2018,04-10498,918.75,[Redacted]
Nottinghamshire County Council,1111/1001,Children and Young People,CYP,Third Party Payments,EGA,05/07/2018,04-10502,811.2,[Redacted]
Nottinghamshire County Council,1111/1001,Children and Young People,CYP,Third Party Payments,EGA,05/07/2018,04-10504,"2,442.32",[Redacted]
Nottinghamshire County Council,1111/1001,Children and Young People,CYP,Third Party Payments,EGA,05/07/2018,04-10515,852.54,[Redacted]
Nottinghamshire County Council,1111/1001,Children and Young People,CYP,Third Party Payments,EGA,05/07/2018,04-10516,757.12,[Redacted]
Nottinghamshire County Council,1111/1001,Children and Young People,CYP,Third Party Payments,EGA,05/07/2018,04-10519,567.84,[Redacted]
Nottinghamshire County Council,1111/1001,Children and Young People,CYP,Third Party Payments,EGA,05/07/2018,04-10526,1622.4,[Redacted]
Nottinghamshire County Council,1111/1001,Children and Young People,CYP,Third Party Payments,EGA,05/07/2018,04-10527,861.3,[Redacted]
Nottinghamshire County Council,1111/1001,Children and Young People,CYP,Third Party Payments,EGA,05/07/2018,04-10530,569.4,[Redacted]
Nottinghamshire County Council,1111/1001,Children and Young People,CYP,Third Party Payments,EGA,05/07/2018,04-10554,648.96,[Redacted]
Nottinghamshire County Council,1111/1001,Children and Young People,CYP,Third Party Payments,EGA,05/07/2018,04-10568,703.04,[Redacted]
Nottinghamshire County Council,1111/1001,Children and Young People,CYP,Third Party Payments,EGA,05/07/2018,04-10570,648.96,[Redacted]
Nottinghamshire County Council,1111/1001,Children and Young People,CYP,Third Party Payments,EGA,05/07/2018,04-10585,628.68,[Redacted]
Nottinghamshire County Council,1111/1001,Children and Young People,CYP,Third Party Payments,EGA,05/07/2018,04-10591,671.19,[Redacted]
Nottinghamshire County Council,1111/1001,Children and Young People,CYP,Third Party Payments,EGA,05/07/2018,04-10596,511.39,[Redacted]
Nottinghamshire County Council,1111/1001,Children and Young People,CYP,Third Party Payments,EGA,05/07/2018,04-10597,"4,238.91",[Redacted]
Nottinghamshire County Council,1111/1001,Children and Young People,CYP,Third Party Payments,EGA,05/07/2018,04-10599,955.55,[Redacted]
Nottinghamshire County Council,1111/1001,Children and Young People,CYP,Third Party Payments,EGA,05/07/2018,04-10600,"1,448.47",[Redacted]
Nottinghamshire County Council,1111/1001,Children and Young People,CYP,Third Party Payments,EGA,05/07/2018,04-10601,802.42,[Redacted]
Nottinghamshire County Council,1111/1001,Children and Young People,CYP,Transfer Payments,GAA,05/07/2018,04-17111,770,[Redacted]
Nottinghamshire County Council,1111/1001,Children and Young People,CYP,Third Party Payments,EGA,05/07/2018,04-10446,538.39,[Redacted]
Nottinghamshire County Council,1111/1001,Children and Young People,CYP,Third Party Payments,EGA,05/07/2018,04-10345,1503.42,[Redacted]
Nottinghamshire County Council,1111/1001,Surplus or Deficit from Trading Undertak,TRADING,Employee Related,AAA,05/07/2018,04-10001,"1,161.66",Advanced Business Software & Soluti
Nottinghamshire County Council,1111/1001,Children and Young People,CYP,Third Party Payments,EGA,05/07/2018,04-10415,"9,590.37",All Aboard Nursery Ltd
Nottinghamshire County Council,1111/1001,Children and Young People,CYP,Third Party Payments,EGA,05/07/2018,04-10520,"7,513.78",All Saints C Of E Primary School
Nottinghamshire County Council,1111/1001,Children and Young People,CYP,Third Party Payments,EGA,05/07/2018,04-10522,"1,453.77",Allsorts Playgroup
Nottinghamshire County Council,1111/1001,Children and Young People,CYP,Third Party Payments,EGA,05/07/2018,04-10263,"5,310.29",Alphabet House Day Nursery
Nottinghamshire County Council,1111/1001,Children and Young People,CYP,Third Party Payments,EGA,05/07/2018,04-10264,"4,462.10",Alphabet House Day Nursery
Nottinghamshire County Council,1111/1001,Children and Young People,CYP,Third Party Payments,EGA,05/07/2018,04-10416,"5,923.63",Alphabet House Day Nursery (Chilwel
Nottinghamshire County Council,1111/1001,Children and Young People,CYP,Third Party Payments,EGA,05/07/2018,04-10266,8862.32,Alphabet House Day Nursery WB
Nottinghamshire County Council,1111/1001,Children and Young People,CYP,Third Party Payments,EGA,05/07/2018,04-10523,"13,374.68",Alphabet House Day Nursery Worksop
Nottinghamshire County Council,1111/1001,Children and Young People,CYP,Third Party Payments,EGA,05/07/2018,04-10417,"12,560.88",Alphabet House Nursery
Nottinghamshire County Council,1111/1001,Children and Young People,CYP,Third Party Payments,EGA,05/07/2018,04-17091,787.6,Amg Nursing & Care Services Ltd
Nottinghamshire County Council,1111/1001,Children and Young People,CYP,Third Party Payments,EGA,05/07/2018,04-17142,579.88,Amg Nursing & Care Services Ltd
Nottinghamshire County Council,1111/1001,Children and Young People,CYP,Third Party Payments,EGA,05/07/2018,04-10267,"21,339.93",Applegarth Day Nurseries Ltd
Nottinghamshire County Council,1111/1001,Children and Young People,CYP,Third Party Payments,EGA,05/07/2018,04-10528,"6,936.86",Appleton Childcare Ltd
Nottinghamshire County Council,1111/1001,Children and Young People,CYP,Third Party Payments,EGA,05/07/2018,04-10533,648.96,Appletree House Childminding
Nottinghamshire County Council,1111/1001,Children and Young People,CYP,Premises Related,BAA,05/07/2018,04-10283,"8,172.69",ARC Property Services Partnership L
Nottinghamshire County Council,1111/1001,Adult Social Care and Health,ASCH,Premises Related,BAA,05/07/2018,04-10283,5102.94,ARC Property Services Partnership L
Nottinghamshire County Council,1111/1001,Adult Social Care and Health,ASCH,Premises Related,BAA,05/07/2018,04-10289,1633.21,ARC Property Services Partnership L
Nottinghamshire County Council,1111/1001,Highways,HIGHWAYS,Premises Related,BAA,05/07/2018,04-10283,806.17,ARC Property Services Partnership L
Nottinghamshire County Council,1111/1001,Corporate Management,CORP_MAGT,Premises Related,BAA,05/07/2018,04-10283,21998.44,ARC Property Services Partnership L
Nottinghamshire County Council,1111/1001,Corporate Management,CORP_MAGT,Premises Related,BBA,05/07/2018,04-10283,794.06,ARC Property Services Partnership L
Nottinghamshire County Council,1111/1001,Corporate Management,CORP_MAGT,Supplies & Services,DFA,05/07/2018,04-10283,115.23,ARC Property Services Partnership L
Nottinghamshire County Council,1111/1001,Children and Young People,CYP,Third Party Payments,EGA,05/07/2018,04-10535,10003.44,Arnold House Day Nursery
Nottinghamshire County Council,1111/1001,Children and Young People,CYP,Third Party Payments,EGA,05/07/2018,04-10536,3488.99,Arnold St Mary's Pre-School
Nottinghamshire County Council,1111/1001,Children and Young People,CYP,Third Party Payments,EGA,05/07/2018,04-10607,8221.72,Ashfield Plaza Day Nursery
Nottinghamshire County Council,1111/1001,Children and Young People,CYP,Third Party Payments,EGA,05/07/2018,04-10270,7682.32,Attenborough Church Pre-School
Nottinghamshire County Council,1111/1001,Children and Young People,CYP,Third Party Payments,EGA,05/07/2018,04-10537,11641.3,Aunty Sue's Day Care Ltd
Nottinghamshire County Council,1111/1001,Children and Young People,CYP,Third Party Payments,EGA,05/07/2018,04-10538,5682.2,Awsworth Schoolhouse Day Nursery
Nottinghamshire County Council,1111/1001,Children and Young People,CYP,Third Party Payments,EGA,05/07/2018,04-10325,13505.41,Balderton Pre-School
Nottinghamshire County Council,1111/1001,Children and Young People,CYP,Third Party Payments,EGA,05/07/2018,04-10541,11766.91,Balderton Village Day Nursery
Nottinghamshire County Council,1111/1001,Corporate Management,CORP_MAGT,Supplies & Services,DHA,05/07/2018,04-17145,975,Basemap Ltd
Nottinghamshire County Council,1111/1001,Children and Young People,CYP,Third Party Payments,EGA,05/07/2018,04-10272,10290.8,Beacon Hill Day Nursery
Nottinghamshire County Council,1111/1001,Corporate Management,CORP_MAGT,Supplies & Services,DEA,05/07/2018,04-10236,1150,Beeline Advertising Products Ltd
Nottinghamshire County Council,1111/1001,Children and Young People,CYP,Third Party Payments,EGA,05/07/2018,04-10274,8802.13,Beeston Nursery
Nottinghamshire County Council,1111/1001,Children and Young People,CYP,Third Party Payments,EGA,05/07/2018,04-10338,540.8,Belvoir House Childminding
Nottinghamshire County Council,1111/1001,Surplus or Deficit from Trading Undertak,TRADING,Supplies & Services,DDA,05/07/2018,04-10001,681.68,Bic Uk Ltd
Nottinghamshire County Council,1111/1001,Children and Young People,CYP,Third Party Payments,EGA,05/07/2018,04-10543,"6,630.20",Bingham Day Nursery & Pre School
Nottinghamshire County Council,1111/1001,Children and Young People,CYP,Third Party Payments,EGA,05/07/2018,04-10313,7403.06,Bircotes Pre-School
Nottinghamshire County Council,1111/1001,Children and Young People,CYP,Third Party Payments,EGA,05/07/2018,04-10418,17793.42,Bizzy Kidz
Nottinghamshire County Council,1111/1001,Surplus or Deficit from Trading Undertak,TRADING,Supplies & Services,DDA,05/07/2018,04-10001,513.92,Bostik Ltd
Nottinghamshire County Council,1111/1001,Children and Young People,CYP,Third Party Payments,EGA,05/07/2018,04-10545,8032.44,Bramcote Pre-School Playgroup
Nottinghamshire County Council,1111/1001,Children and Young People,CYP,Third Party Payments,EGA,05/07/2018,04-10546,"1,919.84",Bramley Pips Nursery Ltd
Nottinghamshire County Council,1111/1001,Children and Young People,CYP,Third Party Payments,EGA,05/07/2018,04-10317,3805.31,Breedon House Nurseries Ltd
Nottinghamshire County Council,1111/1001,Children and Young People,CYP,Third Party Payments,EGA,05/07/2018,04-10320,21332.64,Breedon House Nurseries Ltd
Nottinghamshire County Council,1111/1001,Surplus or Deficit from Trading Undertak,TRADING,Supplies & Services,DAA,05/07/2018,04-10001,569.92,Brian Clegg (Educational Products)
Nottinghamshire County Council,1111/1001,Children and Young People,CYP,Third Party Payments,EGA,05/07/2018,04-10290,10285.79,Bright Sparks Day Nursery
Nottinghamshire County Council,1111/1001,Children and Young People,CYP,Third Party Payments,EGA,05/07/2018,04-10291,8646.3,Bright Stars Childcare
Nottinghamshire County Council,1111/1001,Children and Young People,CYP,Third Party Payments,EGA,05/07/2018,04-10547,"12,072.10",Brooklyn Day Nursery
Nottinghamshire County Council,1111/1001,Children and Young People,CYP,Third Party Payments,EGA,05/07/2018,04-10548,"6,187.01",Bullpit Road Nursery
Nottinghamshire County Council,1111/1001,Surplus or Deficit from Trading Undertak,TRADING,Premises Related,BJA,05/07/2018,04-10001,"1,569.99",Bunzl Cleaning & Hygiene Supplies
Nottinghamshire County Council,1111/1001,Surplus or Deficit from Trading Undertak,TRADING,Premises Related,BJA,05/07/2018,04-10001,"1,907.20",Bunzl Cleaning & Hygiene Supplies
Nottinghamshire County Council,1111/1001,Children and Young People,CYP,Third Party Payments,EGA,05/07/2018,04-10549,17231.91,Busy Bees (Daybrook)
Nottinghamshire County Council,1111/1001,Children and Young People,CYP,Third Party Payments,EGA,05/07/2018,04-10550,"7,807.22",Busy Bees Nursery
Nottinghamshire County Council,1111/1001,Children and Young People,CYP,Third Party Payments,EGA,05/07/2018,04-10292,7448.66,Buttercross Pre School
Nottinghamshire County Council,1111/1001,Children and Young People,CYP,Third Party Payments,EGA,05/07/2018,04-10604,852.54,Butterflies Childminding Services
Nottinghamshire County Council,1111/1001,Children and Young People,CYP,Third Party Payments,EGA,05/07/2018,04-10293,"6,558.77",Butterflies Nursery (West Notts Col
Nottinghamshire County Council,1111/1001,Children and Young People,CYP,Third Party Payments,EGA,05/07/2018,04-10294,"14,214.38",Cared 4 Ltd T/A Brookhill House Day
Nottinghamshire County Council,1111/1001,Children and Young People,CYP,Third Party Payments,EGA,05/07/2018,04-10517,"16,828.19",Carlton & Gedling Day Nursery
Nottinghamshire County Council,1111/1001,Children and Young People,CYP,Third Party Payments,EGA,05/07/2018,04-10552,7357.27,Carlton Preschool Playgroup
Nottinghamshire County Council,1111/1001,Children and Young People,CYP,Third Party Payments,EGA,05/07/2018,04-10606,11810.99,Carnarvon Pre-School
Nottinghamshire County Council,1111/1001,Children and Young People,CYP,Third Party Payments,EGA,05/07/2018,04-10553,"3,712.99",Carousel Under 5'S Playgroup
Nottinghamshire County Council,1111/1001,Surplus or Deficit from Trading Undertak,TRADING,Supplies & Services,DAA,05/07/2018,04-10001,527.5,Catering Supplies Wakefield Ltd
Nottinghamshire County Council,1111/1001,Surplus or Deficit from Trading Undertak,TRADING,Supplies & Services,DAA,05/07/2018,04-10001,619.63,Catering Supplies Wakefield Ltd
Nottinghamshire County Council,1111/1001,Children and Young People,CYP,Third Party Payments,EGA,05/07/2018,04-10295,8415.3,Cedar House Day Nursery
Nottinghamshire County Council,1111/1001,Children and Young People,CYP,Third Party Payments,EGA,05/07/2018,04-10556,912.03,Cheeky Monkeys Childminding
Nottinghamshire County Council,1111/1001,Children and Young People,CYP,Third Party Payments,EGA,05/07/2018,04-10296,6138.19,Cheeky Monkeys Day Nursery
Nottinghamshire County Council,1111/1001,Children and Young People,CYP,Third Party Payments,EGA,05/07/2018,04-10559,9513.27,Cherubs (Sutton In Ashfield) Childm
Nottinghamshire County Council,1111/1001,Children and Young People,CYP,Third Party Payments,EGA,05/07/2018,04-10422,14305.74,Cherubs Childcare Centre (Mansfield
Nottinghamshire County Council,1111/1001,Children and Young People,CYP,Third Party Payments,EGA,05/07/2018,04-10305,"8,983.78",Cherubs Childcare Centre Ladybrook
Nottinghamshire County Council,1111/1001,Children and Young People,CYP,Third Party Payments,EGA,05/07/2018,04-10306,"7,761.05",Cherubs Childrens Centre Pleasley
Nottinghamshire County Council,1111/1001,Children and Young People,CYP,Third Party Payments,EGA,05/07/2018,04-10307,"18,379.40",Cherubs Childrens Centre Wynndale
Nottinghamshire County Council,1111/1001,Children and Young People,CYP,Third Party Payments,EGA,05/07/2018,04-10308,31810.98,Cherubs Day Nursery
Nottinghamshire County Council,1111/1001,Children and Young People,CYP,Third Party Payments,EGA,05/07/2018,04-10309,10012.75,Cherubs Ryton Park
Nottinghamshire County Council,1111/1001,Children and Young People,CYP,Third Party Payments,EGA,05/07/2018,04-10560,"1,459.33",Chetwynd Little Troopers Nursery &
Nottinghamshire County Council,1111/1001,Children and Young People,CYP,Third Party Payments,EGA,05/07/2018,04-10323,2899.68,Child First (Welbeck) (Childminding
Nottinghamshire County Council,1111/1001,Children and Young People,CYP,Third Party Payments,EGA,05/07/2018,04-10297,14096.01,Children 1st @ Breedon House
Nottinghamshire County Council,1111/1001,Children and Young People,CYP,Third Party Payments,EGA,05/07/2018,04-10298,11074.6,Children 1st @ Newark Centre
Nottinghamshire County Council,1111/1001,Children and Young People,CYP,Third Party Payments,EGA,05/07/2018,04-10562,6224.2,Childrens House Childcare Ltd
Nottinghamshire County Council,1111/1001,Children and Young People,CYP,Third Party Payments,EGA,05/07/2018,04-10564,"5,536.04",Christchurch Hall Pre-School Playgr
Nottinghamshire County Council,1111/1001,Children and Young People,CYP,Third Party Payments,EGA,05/07/2018,04-10611,8922.34,Claremont Early Years Ltd
Nottinghamshire County Council,1111/1001,Children and Young People,CYP,Third Party Payments,EGA,05/07/2018,04-10299,4845.49,Collingham & District Pre-School
Nottinghamshire County Council,1111/1001,Children and Young People,CYP,Third Party Payments,EGA,05/07/2018,04-10565,2822.97,Colwick Pre School Playgroup
Nottinghamshire County Council,1111/1001,Surplus or Deficit from Trading Undertak,TRADING,Supplies & Services,DAA,05/07/2018,04-10001,"1,231.23",Combined Office Interiors Ltd
Nottinghamshire County Council,1111/1001,Children and Young People,CYP,Supplies & Services,DAA,05/07/2018,04-17099,328.96,Complete Office Solutions (UK) Ltd
Nottinghamshire County Council,1111/1001,Children and Young People,CYP,Supplies & Services,DAA,05/07/2018,04-17102,330.29,Complete Office Solutions (UK) Ltd
Nottinghamshire County Council,1111/1001,Children and Young People,CYP,Supplies & Services,DEA,05/07/2018,04-17099,50,Complete Office Solutions (UK) Ltd
Nottinghamshire County Council,1111/1001,Children and Young People,CYP,Supplies & Services,DFA,05/07/2018,04-17099,225.28,Complete Office Solutions (UK) Ltd
Nottinghamshire County Council,1111/1001,Children and Young People,CYP,Supplies & Services,DFA,05/07/2018,04-17102,225.28,Complete Office Solutions (UK) Ltd
Nottinghamshire County Council,1111/1001,Children and Young People,CYP,Third Party Payments,EGA,05/07/2018,04-10567,"1,915.21",Costock Pre School
Nottinghamshire County Council,1111/1001,Children and Young People,CYP,Third Party Payments,EGA,05/07/2018,04-10300,10706.19,Coteswood House School
Nottinghamshire County Council,1111/1001,Children and Young People,CYP,Third Party Payments,EGA,05/07/2018,04-10301,"4,837.75",Country Kids Day Nursery
Nottinghamshire County Council,1111/1001,Children and Young People,CYP,Third Party Payments,EGA,05/07/2018,04-10302,5581.16,Cranmer Pre-School
Nottinghamshire County Council,1111/1001,Children and Young People,CYP,Third Party Payments,EGA,05/07/2018,04-10322,6234.92,Creative Hands Childcare
Nottinghamshire County Council,1111/1001,Children and Young People,CYP,Third Party Payments,EGA,05/07/2018,04-10310,6041.64,Crossdale Busy Bees Pre-School
Nottinghamshire County Council,1111/1001,Children and Young People,CYP,Third Party Payments,EGA,05/07/2018,04-10569,10805.64,Daisies Day Nursery
Nottinghamshire County Council,1111/1001,Children and Young People,CYP,Third Party Payments,EGA,05/07/2018,04-10571,14811.35,Daisies Day Nursery
Nottinghamshire County Council,1111/1001,Children and Young People,CYP,Third Party Payments,EGA,05/07/2018,04-10311,"12,936.29",Discovery Day Nursery
Nottinghamshire County Council,1111/1001,Children and Young People,CYP,Third Party Payments,EGA,05/07/2018,04-10576,5810.19,Early Learners Centre Day Nursery
Nottinghamshire County Council,1111/1001,Children and Young People,CYP,Third Party Payments,EGA,05/07/2018,04-10577,6572.63,Early Years Playgroup
Nottinghamshire County Council,1111/1001,Children and Young People,CYP,Third Party Payments,EGA,05/07/2018,04-10579,14499.77,East Leake Day Nursery & Pre-School
Nottinghamshire County Council,1111/1001,Children and Young People,CYP,Third Party Payments,EGA,05/07/2018,04-10581,"4,949.38",East Leake Pre-School Playgroup
Nottinghamshire County Council,1111/1001,Surplus or Deficit from Trading Undertak,TRADING,Supplies & Services,DAA,05/07/2018,04-10001,"1,586.28",Eastpoint
Nottinghamshire County Council,1111/1001,Children and Young People,CYP,Third Party Payments,EGA,05/07/2018,04-10407,"12,319.93",Edwalton Day Nursery
Nottinghamshire County Council,1111/1001,Children and Young People,CYP,Third Party Payments,EGA,05/07/2018,04-10497,1506.9,Elston Pre-school
Nottinghamshire County Council,1111/1001,Children and Young People,CYP,Third Party Payments,EGA,05/07/2018,04-10462,983.77,Emma's Enchanted Garden Childcare
Nottinghamshire County Council,1111/1001,Children and Young People,CYP,Third Party Payments,EGA,05/07/2018,04-10496,"1,056.12",Explorers Childcare
Nottinghamshire County Council,1111/1001,Children and Young People,CYP,Third Party Payments,EGA,05/07/2018,04-10494,"5,843.47",Farnsfield Pre-School
Nottinghamshire County Council,1111/1001,Children and Young People,CYP,Third Party Payments,EGA,05/07/2018,04-10493,"20,956.11",Fernwood Day Nursery Ltd
Nottinghamshire County Council,1111/1001,Children and Young People,CYP,Third Party Payments,EGA,05/07/2018,04-10425,522.97,Fionas Childminding Services
Nottinghamshire County Council,1111/1001,Children and Young People,CYP,Third Party Payments,EGA,05/07/2018,04-10490,4858.71,Fledglings Playgroup
Nottinghamshire County Council,1111/1001,Children and Young People,CYP,Third Party Payments,EGA,05/07/2018,04-10439,12945.2,Fun Farm Day Nursery
Nottinghamshire County Council,1111/1001,Children and Young People,CYP,Third Party Payments,EGA,05/07/2018,04-10471,3448.38,Gognas Day Nursery Ltd
Nottinghamshire County Council,1111/1001,Children and Young People,CYP,Third Party Payments,EGA,05/07/2018,04-10279,"11,537.96",Good Foundations Day Nursery
Nottinghamshire County Council,1111/1001,Children and Young People,CYP,Third Party Payments,EGA,05/07/2018,04-10278,"5,991.02",Good Shepherd Pre-School
Nottinghamshire County Council,1111/1001,Children and Young People,CYP,Third Party Payments,EGA,05/07/2018,04-10484,5472.48,Gotham Pre-School Playgroup
Nottinghamshire County Council,1111/1001,Children and Young People,CYP,Third Party Payments,EGA,05/07/2018,04-10277,12138.65,Granby House Nursery
Nottinghamshire County Council,1111/1001,Children and Young People,CYP,Third Party Payments,EGA,05/07/2018,04-10275,"1,056.12",Green Tot Childcare
Nottinghamshire County Council,1111/1001,Children and Young People,CYP,Third Party Payments,EGA,05/07/2018,04-10588,24770.03,Grosvenor House Day Nursery
Nottinghamshire County Council,1111/1001,Surplus or Deficit from Trading Undertak,TRADING,Supplies & Services,DDA,05/07/2018,04-10001,724.8,Grosvenor House Papers Ltd
Nottinghamshire County Council,1111/1001,Surplus or Deficit from Trading Undertak,TRADING,Supplies & Services,DDA,05/07/2018,04-10001,"6,393.51",Hamelin Brands Ltd
Nottinghamshire County Council,1111/1001,Children and Young People,CYP,Third Party Payments,EGA,05/07/2018,04-10482,8766.07,Happy Days Childcare Services Ltd
Nottinghamshire County Council,1111/1001,Children and Young People,CYP,Third Party Payments,EGA,05/07/2018,04-10518,1704.2,Happy Munchkins Pre School
Nottinghamshire County Council,1111/1001,Children and Young People,CYP,Third Party Payments,EGA,05/07/2018,04-10271,5201.24,Haywood Road Pre-School Playgroup
Nottinghamshire County Council,1111/1001,Children and Young People,CYP,Third Party Payments,EGA,05/07/2018,04-10475,5051.1,Hermitage Pre-School
Nottinghamshire County Council,1111/1001,Children and Young People,CYP,Third Party Payments,EGA,05/07/2018,04-10432,2244.32,Hickling Pre-School
Nottinghamshire County Council,1111/1001,Children and Young People,CYP,Third Party Payments,EGA,05/07/2018,04-10474,6704.46,Highfields School & Nursery
Nottinghamshire County Council,1111/1001,Children and Young People,CYP,Third Party Payments,EGA,05/07/2018,04-10469,"10,532.51",Hollies Day Nurseries
Nottinghamshire County Council,1111/1001,Children and Young People,CYP,Third Party Payments,EGA,05/07/2018,04-10468,"12,062.04",Hollies Day Nurseries Limited
Nottinghamshire County Council,1111/1001,Children and Young People,CYP,Third Party Payments,EGA,05/07/2018,04-10467,8890.69,Hollies Day Nursery (Loughborough R
Nottinghamshire County Council,1111/1001,Children and Young People,CYP,Third Party Payments,EGA,05/07/2018,04-10602,995.67,Home From Home Childcare
Nottinghamshire County Council,1111/1001,Children and Young People,CYP,Third Party Payments,EGA,05/07/2018,04-10521,"7,303.63",Homestead Day Nursery Ltd
Nottinghamshire County Council,1111/1001,Children and Young People,CYP,Third Party Payments,EGA,05/07/2018,04-10466,"5,864.00",Honey Pot Day Private Day Nursery L
Nottinghamshire County Council,1111/1001,Children and Young People,CYP,Third Party Payments,EGA,05/07/2018,04-10433,3282.65,Horsendale Playgroup
Nottinghamshire County Council,1111/1001,Children and Young People,CYP,Third Party Payments,EGA,05/07/2018,04-10464,10471.53,Hucknall Day Nursery
Nottinghamshire County Council,1111/1001,Children and Young People,CYP,Third Party Payments,EGA,05/07/2018,04-10463,"6,767.99",Hucknall Pre-School Playgroup
Nottinghamshire County Council,1111/1001,Children and Young People,CYP,Third Party Payments,EGA,05/07/2018,04-10461,"2,102.63",Inham Park Pre School Playgroup
Nottinghamshire County Council,1111/1001,Children and Young People,CYP,Third Party Payments,EGA,05/07/2018,04-10346,975,Jammie Dodgers Childminding Group
Nottinghamshire County Council,1111/1001,Children and Young People,CYP,Third Party Payments,EGA,05/07/2018,04-10512,911.52,Jenny's Jelly Tots
Nottinghamshire County Council,1111/1001,Children and Young People,CYP,Third Party Payments,EGA,05/07/2018,04-10460,4311.25,Jesters Childcare Ltd
Nottinghamshire County Council,1111/1001,Children and Young People,CYP,Third Party Payments,EGA,05/07/2018,04-10458,2876.88,Jubilee House Christian School
Nottinghamshire County Council,1111/1001,Children and Young People,CYP,Third Party Payments,EGA,05/07/2018,04-10262,9651.13,Jumacare Ltd T/A Church House Nurse
Nottinghamshire County Council,1111/1001,Children and Young People,CYP,Third Party Payments,EGA,05/07/2018,04-10427,519.17,Karen's Childminding
Nottinghamshire County Council,1111/1001,Children and Young People,CYP,Third Party Payments,EGA,05/07/2018,04-10457,8534.17,Kidzgrove
Nottinghamshire County Council,1111/1001,Children and Young People,CYP,Third Party Payments,EGA,05/07/2018,04-10261,9817.6,Killisick Pre-School
Nottinghamshire County Council,1111/1001,Children and Young People,CYP,Third Party Payments,EGA,05/07/2018,04-10260,3594.97,Kimberley Pre-School Playgroup
Nottinghamshire County Council,1111/1001,Surplus or Deficit from Trading Undertak,TRADING,Supplies & Services,DKA,05/07/2018,04-10001,"1,132.06",Kimberly Clark European Services Lt
Nottinghamshire County Council,1111/1001,Children and Young People,CYP,Third Party Payments,EGA,05/07/2018,04-10456,"9,216.03",Kingfisher Day Nursery
Nottinghamshire County Council,1111/1001,Children and Young People,CYP,Third Party Payments,EGA,05/07/2018,04-10575,1056.12,Kylees Childminding Services
Nottinghamshire County Council,1111/1001,Children and Young People,CYP,Third Party Payments,EGA,05/07/2018,04-10406,569.4,L & K's Little Kingdom
Nottinghamshire County Council,1111/1001,Children and Young People,CYP,Third Party Payments,EGA,05/07/2018,04-10259,"4,683.33",Lady Bay Pre School Playgroup
Nottinghamshire County Council,1111/1001,Children and Young People,CYP,Third Party Payments,EGA,05/07/2018,04-10273,"1,135.68",Ladybird Childminding
Nottinghamshire County Council,1111/1001,Children and Young People,CYP,Third Party Payments,EGA,05/07/2018,04-10257,"7,855.05",Lambley Day Nursery Ltd
Nottinghamshire County Council,1111/1001,Children and Young People,CYP,Third Party Payments,EGA,05/07/2018,04-10455,"4,596.77",Leahurst Road Pre-School
Nottinghamshire County Council,1111/1001,Children and Young People,CYP,Third Party Payments,EGA,05/07/2018,04-10255,"6,108.18",Learning Ladder Childcare Ltd
Nottinghamshire County Council,1111/1001,Children and Young People,CYP,Third Party Payments,EGA,05/07/2018,04-10454,"18,428.18",Leen Mills Pre School Playgroup
Nottinghamshire County Council,1111/1001,Children and Young People,CYP,Third Party Payments,EGA,05/07/2018,04-10254,11920.58,Leos Childrens Nurseries Ltd
Nottinghamshire County Council,1111/1001,Children and Young People,CYP,Third Party Payments,EGA,05/07/2018,04-10453,"6,838.38",Leo's Childrens Nurseries Ltd
Nottinghamshire County Council,1111/1001,Children and Young People,CYP,Third Party Payments,EGA,05/07/2018,04-10452,"4,860.79",Lime Trees Day Nursery Ltd (Carlton
Nottinghamshire County Council,1111/1001,Children and Young People,CYP,Third Party Payments,EGA,05/07/2018,04-10251,"5,861.24",Little Acorns Shireoaks
Nottinghamshire County Council,1111/1001,Children and Young People,CYP,Third Party Payments,EGA,05/07/2018,04-10250,1613.44,Little Adventures Forest School Ltd
Nottinghamshire County Council,1111/1001,Children and Young People,CYP,Third Party Payments,EGA,05/07/2018,04-10448,6237.81,Little Baths Ltd T/A Little PLums D
Nottinghamshire County Council,1111/1001,Children and Young People,CYP,Third Party Payments,EGA,05/07/2018,04-10249,6747.58,Little Beans Childcare Ltd
Nottinghamshire County Council,1111/1001,Children and Young People,CYP,Third Party Payments,EGA,05/07/2018,04-10451,16874.22,Little Bears Day Nursery
Nottinghamshire County Council,1111/1001,Children and Young People,CYP,Third Party Payments,EGA,05/07/2018,04-10248,4358.37,Little Friends Day Nursery
Nottinghamshire County Council,1111/1001,Children and Young People,CYP,Third Party Payments,EGA,05/07/2018,04-10397,1330.37,Little House Childcare of Brinsley
Nottinghamshire County Council,1111/1001,Children and Young People,CYP,Third Party Payments,EGA,05/07/2018,04-10605,"1,308.25",Little House Of Horrors
Nottinghamshire County Council,1111/1001,Children and Young People,CYP,Third Party Payments,EGA,05/07/2018,04-10247,"6,111.93",Little Kites Playgroup
Nottinghamshire County Council,1111/1001,Children and Young People,CYP,Third Party Payments,EGA,05/07/2018,04-10246,"8,251.60",Little Lambs Day Nursery
Nottinghamshire County Council,1111/1001,Children and Young People,CYP,Third Party Payments,EGA,05/07/2018,04-10525,1703.52,Little Lula's Childminding
Nottinghamshire County Council,1111/1001,Children and Young People,CYP,Third Party Payments,EGA,05/07/2018,04-10245,9610.75,Little Millers Day Nursery
Nottinghamshire County Council,1111/1001,Children and Young People,CYP,Third Party Payments,EGA,05/07/2018,04-10450,10120.25,Little Nippers Pre-School
Nottinghamshire County Council,1111/1001,Children and Young People,CYP,Third Party Payments,EGA,05/07/2018,04-10449,16468.92,Little Oaks Nursery
Nottinghamshire County Council,1111/1001,Children and Young People,CYP,Third Party Payments,EGA,05/07/2018,04-10513,774.91,Little Steps Childcare
Nottinghamshire County Council,1111/1001,Children and Young People,CYP,Third Party Payments,EGA,05/07/2018,04-10447,2902.04,Little Toes Day Nursery
Nottinghamshire County Council,1111/1001,Children and Young People,CYP,Third Party Payments,EGA,05/07/2018,04-10276,554.22,Little Tots
Nottinghamshire County Council,1111/1001,Children and Young People,CYP,Third Party Payments,EGA,05/07/2018,04-10524,548.1,Little Wrens Day Nursery & Pre Scho
Nottinghamshire County Council,1111/1001,Children and Young People,CYP,Third Party Payments,EGA,05/07/2018,04-10282,"9,846.91",Longdale Nursery School
Nottinghamshire County Council,1111/1001,Children and Young People,CYP,Third Party Payments,EGA,05/07/2018,04-10445,4536.57,Lowater Street Play  & Pre School
Nottinghamshire County Council,1111/1001,Children and Young People,CYP,Third Party Payments,EGA,05/07/2018,04-10243,7221.77,Lowdham & Epperstone Pre-School
Nottinghamshire County Council,1111/1001,Children and Young People,CYP,Third Party Payments,EGA,05/07/2018,04-10242,3235.05,Luan's Little People
Nottinghamshire County Council,1111/1001,Children and Young People,CYP,Third Party Payments,EGA,05/07/2018,04-10241,2998.63,Luan's Little People Ltd
Nottinghamshire County Council,1111/1001,Children and Young People,CYP,Third Party Payments,EGA,05/07/2018,04-10256,"1,297.92",Luans Little Stars
Nottinghamshire County Council,1111/1001,Children and Young People,CYP,Third Party Payments,EGA,05/07/2018,04-10603,1199.25,Making Memories Childminding
Nottinghamshire County Council,1111/1001,Children and Young People,CYP,Third Party Payments,EGA,05/07/2018,04-10315,9527.65,Mapperley Day Nursery
Nottinghamshire County Council,1111/1001,Children and Young People,CYP,Third Party Payments,EGA,05/07/2018,04-10349,7079.07,Millfield Nursery School
Nottinghamshire County Council,1111/1001,Children and Young People,CYP,Third Party Payments,EGA,05/07/2018,04-10423,1297.92,Mini-me Childcare
Nottinghamshire County Council,1111/1001,Children and Young People,CYP,Third Party Payments,EGA,05/07/2018,04-10350,"3,232.85",Misson Pre-School
Nottinghamshire County Council,1111/1001,Surplus or Deficit from Trading Undertak,TRADING,Employee Related,AAA,05/07/2018,04-10001,827.29,Monarch Education Furniture
Nottinghamshire County Council,1111/1001,Children and Young People,CYP,Third Party Payments,EGA,05/07/2018,04-10514,700.08,Mornington Childcare Services
Nottinghamshire County Council,1111/1001,Children and Young People,CYP,Third Party Payments,EGA,05/07/2018,04-10398,6291.28,Mulberry Bush Day Nursery
Nottinghamshire County Council,1111/1001,Insurance Revenue,INSURANCE,Supplies & Services,DKA,05/07/2018,04-10410,5000,Nelsons Solicitors Llp
Nottinghamshire County Council,1111/1001,Children and Young People,CYP,Third Party Payments,EGA,05/07/2018,04-10352,3796.69,Netherfield Pre School Ltd
Nottinghamshire County Council,1111/1001,Children and Young People,CYP,Third Party Payments,EGA,05/07/2018,04-10353,"5,349.11",Noahs Ark Playgroup
Nottinghamshire County Council,1111/1001,Children and Young People,CYP,Third Party Payments,EGA,05/07/2018,04-10253,3423.75,North Leverton Pre-School Playgroup
Nottinghamshire County Council,1111/1001,Children and Young People,CYP,Third Party Payments,EGA,05/07/2018,04-10354,3873.57,North Muskham Playgroup
Nottinghamshire County Council,1111/1001,Children and Young People,CYP,Third Party Payments,EGA,05/07/2018,04-17140,664,North Notts Crossroads Care
Nottinghamshire County Council,1111/1001,Children and Young People,CYP,Third Party Payments,EGA,05/07/2018,04-10355,"17,303.32",Oceans Day Nursery
Nottinghamshire County Council,1111/1001,Children and Young People,CYP,Third Party Payments,EFA,05/07/2018,04-10472,1365,One Time Vendor
Nottinghamshire County Council,1111/1001,Adult Social Care and Health,ASCH,Third Party Payments,EGA,05/07/2018,04-17105,832.8,Open Door 1
Nottinghamshire County Council,1111/1001,Children and Young People,CYP,Third Party Payments,EGA,05/07/2018,04-10473,2205.13,Orchard School Nursery
Nottinghamshire County Council,1111/1001,Children and Young People,CYP,Third Party Payments,EGA,05/07/2018,04-10356,"13,034.95",Papermoon Day Nursery
Nottinghamshire County Council,1111/1001,Children and Young People,CYP,Third Party Payments,EGA,05/07/2018,04-10357,"17,518.44",Papermoon Day Nursery
Nottinghamshire County Council,1111/1001,Children and Young People,CYP,Third Party Payments,EGA,05/07/2018,04-10476,12516.49,Papermoon Day Nursery
Nottinghamshire County Council,1111/1001,Children and Young People,CYP,Third Party Payments,EGA,05/07/2018,04-10477,"28,074.95",Papermoon Day Nursery Sutton In Ash
Nottinghamshire County Council,1111/1001,Children and Young People,CYP,Third Party Payments,EGA,05/07/2018,04-10478,9400.54,Papplewick Pre-School Playgroup
Nottinghamshire County Council,1111/1001,Children and Young People,CYP,Third Party Payments,EGA,05/07/2018,04-10479,"4,606.29",Pea Pod Day Nursery Ltd
Nottinghamshire County Council,1111/1001,Children and Young People,CYP,Third Party Payments,EGA,05/07/2018,04-10358,2765.14,Penguin Palace Nursery CIC
Nottinghamshire County Council,1111/1001,Children and Young People,CYP,Third Party Payments,EGA,05/07/2018,04-10359,15233.01,Phoenix Park Nursery
Nottinghamshire County Council,1111/1001,Surplus or Deficit from Trading Undertak,TRADING,Supplies & Services,DEA,05/07/2018,04-10400,518.02,Phs Group Plc
Nottinghamshire County Council,1111/1001,Children and Young People,CYP,Third Party Payments,EGA,05/07/2018,04-10360,6029.91,Pippins Pre-School
Nottinghamshire County Council,1111/1001,Surplus or Deficit from Trading Undertak,TRADING,Supplies & Services,DFA,05/07/2018,04-10001,699.65,Platinum It Supplies Ltd
Nottinghamshire County Council,1111/1001,Children and Young People,CYP,Third Party Payments,EGA,05/07/2018,04-10361,1946.88,Plumtree School
Nottinghamshire County Council,1111/1001,Adult Social Care and Health,ASCH,Third Party Payments,EHA,05/07/2018,04-17165,75684.17,Pohwer
Nottinghamshire County Council,1111/1001,Children and Young People,CYP,Third Party Payments,EFA,05/07/2018,04-17147,3774,Pollyteach Ltd
Nottinghamshire County Council,1111/1001,Children and Young People,CYP,Third Party Payments,EGA,05/07/2018,04-10480,4486.08,Portland Place Pre-School
Nottinghamshire County Council,1111/1001,Children and Young People,CYP,Third Party Payments,EGA,05/07/2018,04-10481,"2,669.47",Prebend Pre-School Playgroup
Nottinghamshire County Council,1111/1001,Children and Young People,CYP,Third Party Payments,EGA,05/07/2018,04-10362,7549.13,Pre-School 345
Nottinghamshire County Council,1111/1001,Children and Young People,CYP,Third Party Payments,EGA,05/07/2018,04-10598,3612.18,Pretty Windows Ltd
Nottinghamshire County Council,1111/1001,Children and Young People,CYP,Third Party Payments,EGA,05/07/2018,04-17152,767.25,Progress Adult Living Services LLP
Nottinghamshire County Council,1111/1001,Children and Young People,CYP,Third Party Payments,EGA,05/07/2018,04-10316,7191.99,PSLA Newstead Childcare (HO)
Nottinghamshire County Council,1111/1001,Children and Young People,CYP,Third Party Payments,EGA,05/07/2018,04-10436,3769.52,PSLA Newstead Childcare (HO)
Nottinghamshire County Council,1111/1001,Children and Young People,CYP,Third Party Payments,EGA,05/07/2018,04-10437,5884.96,PSLA Newstead Childcare (HO)
Nottinghamshire County Council,1111/1001,Children and Young People,CYP,Third Party Payments,EGA,05/07/2018,04-10438,3460.86,PSLA Newstead Childcare (HO)
Nottinghamshire County Council,1111/1001,Children and Young People,CYP,Third Party Payments,EGA,05/07/2018,04-10440,"4,152.51",PSLA Newstead Childcare (HO)
Nottinghamshire County Council,1111/1001,Children and Young People,CYP,Third Party Payments,EGA,05/07/2018,04-10441,4876.72,PSLA Newstead Childcare (HO)
Nottinghamshire County Council,1111/1001,Children and Young People,CYP,Third Party Payments,EGA,05/07/2018,04-10551,10022.22,PSLA Newstead Childcare (HO)
Nottinghamshire County Council,1111/1001,Children and Young People,CYP,Third Party Payments,EGA,05/07/2018,04-10608,2860.72,PSLA Newstead Childcare (HO)
Nottinghamshire County Council,1111/1001,Children and Young People,CYP,Third Party Payments,EGA,05/07/2018,04-10610,8109.65,PSLA Newstead Childcare (HO)
Nottinghamshire County Council,1111/1001,Children and Young People,CYP,Third Party Payments,EGA,05/07/2018,04-10364,6816.65,Puddleducks Pre-School
Nottinghamshire County Council,1111/1001,Children and Young People,CYP,Third Party Payments,EGA,05/07/2018,04-10365,"6,260.61",Pump Farm Day Nursery
Nottinghamshire County Council,1111/1001,Children and Young People,CYP,Third Party Payments,EGA,05/07/2018,04-10529,"5,687.36",Quinton Day Nurseries T/A Honey Bee
Nottinghamshire County Council,1111/1001,Children and Young People,CYP,Third Party Payments,EGA,05/07/2018,04-10430,1297.92,Rachel & Philip's Home From Home Ch
Nottinghamshire County Council,1111/1001,Children and Young People,CYP,Third Party Payments,EGA,05/07/2018,04-10483,8597.54,Radcliffe On Trent Day Nursery
Nottinghamshire County Council,1111/1001,Children and Young People,CYP,Third Party Payments,EGA,05/07/2018,04-10366,8423.21,Radcliffe On Trent Pre School Playg
Nottinghamshire County Council,1111/1001,Children and Young People,CYP,Third Party Payments,EGA,05/07/2018,04-10367,"7,445.52",Railway Children Playgroup
Nottinghamshire County Council,1111/1001,Children and Young People,CYP,Third Party Payments,EGA,05/07/2018,04-10368,3983.85,Rainbow Day Nursery
Nottinghamshire County Council,1111/1001,Children and Young People,CYP,Third Party Payments,EGA,05/07/2018,04-10369,6825.03,Rainbows Day Nursery
Nottinghamshire County Council,1111/1001,Children and Young People,CYP,Third Party Payments,EGA,05/07/2018,04-10371,4417.19,Ranskill Nursery
Nottinghamshire County Council,1111/1001,Children and Young People,CYP,Third Party Payments,EGA,05/07/2018,04-10373,5732.01,Ravenshead Pre-School Playgroup
Nottinghamshire County Council,1111/1001,Surplus or Deficit from Trading Undertak,TRADING,Premises Related,BJA,05/07/2018,04-10001,"1,206.73",Robert Scott & Sons Ltd
Nottinghamshire County Council,1111/1001,Children and Young People,CYP,Third Party Payments,EGA,05/07/2018,04-10503,"10,223.73",Rocking Horse Nursery Butlers Hill
Nottinghamshire County Council,1111/1001,Children and Young People,CYP,Third Party Payments,EGA,05/07/2018,04-10505,"12,047.10",Ruddington Nursery & Pre-School
Nottinghamshire County Council,1111/1001,Children and Young People,CYP,Third Party Payments,EGA,05/07/2018,04-10377,3909.98,Rushcliffe Pre-School (Nottingham)
Nottinghamshire County Council,1111/1001,Children and Young People,CYP,Third Party Payments,EGA,05/07/2018,04-10506,5528.05,Ryan House Day Nursery
Nottinghamshire County Council,1111/1001,Children and Young People,CYP,Third Party Payments,EGA,05/07/2018,04-10507,14093.26,Safe Haven Day Nursery
Nottinghamshire County Council,1111/1001,Children and Young People,CYP,Third Party Payments,EGA,05/07/2018,04-10378,2977.83,Salterford House School
Nottinghamshire County Council,1111/1001,Children and Young People,CYP,Third Party Payments,EGA,05/07/2018,04-10508,2631.2,Saville House School
Nottinghamshire County Council,1111/1001,Children and Young People,CYP,Third Party Payments,EGA,05/07/2018,04-10426,5648.82,Sconce Hills Pre-School Playgroup
Nottinghamshire County Council,1111/1001,Surplus or Deficit from Trading Undertak,TRADING,Premises Related,BJA,05/07/2018,04-10001,"1,568.00",Scot Young Research Ltd
Nottinghamshire County Council,1111/1001,Children and Young People,CYP,Third Party Payments,EGA,05/07/2018,04-10380,"8,203.67",Scotts Wood Private Day Nursery
Nottinghamshire County Council,1111/1001,Children and Young People,CYP,Third Party Payments,EGA,05/07/2018,04-10509,11051.3,Scottswood Pdn Ltd
Nottinghamshire County Council,1111/1001,Children and Young People,CYP,Third Party Payments,EGA,05/07/2018,04-10510,"10,546.03",Secret Garden Childcare Ltd
Nottinghamshire County Council,1111/1001,Surplus or Deficit from Trading Undertak,TRADING,Premises Related,BJA,05/07/2018,04-10001,681.12,Selden Research Ltd
Nottinghamshire County Council,1111/1001,Children and Young People,CYP,Third Party Payments,EGA,05/07/2018,04-10383,13311.5,Serendipity's Day Nursery
Nottinghamshire County Council,1111/1001,Children and Young People,CYP,Third Party Payments,EGA,05/07/2018,04-10384,15072.27,Serendipity's Day Nursery
Nottinghamshire County Council,1111/1001,Children and Young People,CYP,Third Party Payments,EGA,05/07/2018,04-10386,6442.14,Serendipity's Day Nursery
Nottinghamshire County Council,1111/1001,Children and Young People,CYP,Third Party Payments,EGA,05/07/2018,04-10511,22623.82,Serendipity's Day Nursery
Nottinghamshire County Council,1111/1001,Children and Young People,CYP,Third Party Payments,EGA,05/07/2018,04-10387,"15,898.12",Shaping Futures Day Nursery
Nottinghamshire County Council,1111/1001,Children and Young People,CYP,Third Party Payments,EGA,05/07/2018,04-10389,"8,372.32",Shaping Futures Day Nursery
Nottinghamshire County Council,1111/1001,Children and Young People,CYP,Third Party Payments,EGA,05/07/2018,04-10573,852.54,Sharons Childminding
Nottinghamshire County Council,1111/1001,Surplus or Deficit from Trading Undertak,TRADING,Supplies & Services,DDA,05/07/2018,04-10001,897,Slater Harrison & Company Ltd
Nottinghamshire County Council,1111/1001,Surplus or Deficit from Trading Undertak,TRADING,Supplies & Services,DDA,05/07/2018,04-10001,"1,155.27",Slater Harrison & Company Ltd
Nottinghamshire County Council,1111/1001,Surplus or Deficit from Trading Undertak,TRADING,Supplies & Services,DDA,05/07/2018,04-10001,"1,713.42",Slater Harrison & Company Ltd
Nottinghamshire County Council,1111/1001,Surplus or Deficit from Trading Undertak,TRADING,Supplies & Services,DDA,05/07/2018,04-10001,921,Slater Harrison & Company Ltd
Nottinghamshire County Council,1111/1001,Surplus or Deficit from Trading Undertak,TRADING,Supplies & Services,DDA,05/07/2018,04-10001,"1,570.29",Slater Harrison & Company Ltd
Nottinghamshire County Council,1111/1001,Children and Young People,CYP,Third Party Payments,EGA,05/07/2018,04-10342,"8,063.74",Smarties Private Day Nursery
Nottinghamshire County Council,1111/1001,Surplus or Deficit from Trading Undertak,TRADING,Supplies & Services,DDA,05/07/2018,04-10001,525.18,Snopake Ltd
Nottinghamshire County Council,1111/1001,Children and Young People,CYP,Third Party Payments,EGA,05/07/2018,04-10485,3836.49,Southfields Pre-School
Nottinghamshire County Council,1111/1001,Children and Young People,CYP,Third Party Payments,EGA,05/07/2018,04-10326,1901.78,Southwell Pre-School
Nottinghamshire County Council,1111/1001,Children and Young People,CYP,Third Party Payments,EGA,05/07/2018,04-10486,4556.32,Sparkle Daycare
Nottinghamshire County Council,1111/1001,Children and Young People,CYP,Third Party Payments,EGA,05/07/2018,04-10341,"1,766.82",Speckled Frogs Pre-School
Nottinghamshire County Council,1111/1001,Children and Young People,CYP,Third Party Payments,EGA,05/07/2018,04-10340,"2,752.68",St Giles Pre-school
Nottinghamshire County Council,1111/1001,Children and Young People,CYP,Third Party Payments,EGA,05/07/2018,04-10489,6975.51,St Johns Playgroup
Nottinghamshire County Council,1111/1001,Children and Young People,CYP,Third Party Payments,EGA,05/07/2018,04-10491,5473.62,St Mary's Pre-School
Nottinghamshire County Council,1111/1001,Children and Young People,CYP,Third Party Payments,EGA,05/07/2018,04-10280,3830.82,St Peter's Early Years
Nottinghamshire County Council,1111/1001,Surplus or Deficit from Trading Undertak,TRADING,Supplies & Services,DDA,05/07/2018,04-10001,784.4,Stabilo International Gmbh
Nottinghamshire County Council,1111/1001,Surplus or Deficit from Trading Undertak,TRADING,Supplies & Services,DDA,05/07/2018,04-10001,"4,143.85",Staedtler Uk Ltd
Nottinghamshire County Council,1111/1001,Children and Young People,CYP,Third Party Payments,EGA,05/07/2018,04-10339,"12,253.08",Stapleford Day Nursery
Nottinghamshire County Council,1111/1001,Children and Young People,CYP,Third Party Payments,EGA,05/07/2018,04-10335,7669.17,Staunton Montessori Nursery School
Nottinghamshire County Council,1111/1001,Children and Young People,CYP,Third Party Payments,EGA,05/07/2018,04-10330,1807.49,Sunbeams Pre-School
Nottinghamshire County Council,1111/1001,Children and Young People,CYP,Third Party Payments,EGA,05/07/2018,04-10501,"7,760.88",Sunnydale Nursery Ltd
Nottinghamshire County Council,1111/1001,Children and Young People,CYP,Third Party Payments,EGA,05/07/2018,04-10420,852.54,Sunrayz Childcare
Nottinghamshire County Council,1111/1001,Children and Young People,CYP,Third Party Payments,EGA,05/07/2018,04-10329,"4,281.43",Sutton Bonington Playgroup
Nottinghamshire County Council,1111/1001,Children and Young People,CYP,Third Party Payments,EGA,05/07/2018,04-10492,5032.31,Sutton Centre Under 5'S Playgroup
Nottinghamshire County Council,1111/1001,Children and Young People,CYP,Third Party Payments,EGA,05/07/2018,04-10500,731.01,Sweet Pea's Childminding
Nottinghamshire County Council,1111/1001,Children and Young People,CYP,Third Party Payments,EGA,05/07/2018,04-10405,811.2,The Cornerhouse Childminding
Nottinghamshire County Council,1111/1001,Children and Young People,CYP,Third Party Payments,EGA,05/07/2018,04-10594,"8,704.82",The Enchanted Garden Day Nursery
Nottinghamshire County Council,1111/1001,Children and Young People,CYP,Third Party Payments,EGA,05/07/2018,04-10408,"10,834.20",The Learning Tree Day Nursery 2
Nottinghamshire County Council,1111/1001,Children and Young People,CYP,Third Party Payments,EGA,05/07/2018,04-10424,19787.6,The Learning Tree Nursery
Nottinghamshire County Council,1111/1001,Children and Young People,CYP,Third Party Payments,EGA,05/07/2018,04-10409,"8,409.26",The Lime Trees
Nottinghamshire County Council,1111/1001,Children and Young People,CYP,Third Party Payments,EGA,05/07/2018,04-10413,2268.37,The Lime Trees
Nottinghamshire County Council,1111/1001,Children and Young People,CYP,Third Party Payments,EGA,05/07/2018,04-10414,8485.1,The Lime Trees
Nottinghamshire County Council,1111/1001,Children and Young People,CYP,Third Party Payments,EGA,05/07/2018,04-10328,2158.65,The Lime Trees (Forest Town)
Nottinghamshire County Council,1111/1001,Children and Young People,CYP,Third Party Payments,EGA,05/07/2018,04-10593,"18,178.38",The Orange Tree Day Nursery
Nottinghamshire County Council,1111/1001,Children and Young People,CYP,Third Party Payments,EGA,05/07/2018,04-10495,"21,515.68",The Orchard Day Nursery
Nottinghamshire County Council,1111/1001,Children and Young People,CYP,Third Party Payments,EGA,05/07/2018,04-10394,28617.65,The Rocking Horse Child Care Centre
Nottinghamshire County Council,1111/1001,Children and Young People,CYP,Third Party Payments,EGA,05/07/2018,04-10412,11654.57,The Secret Garden Private Day Nurse
Nottinghamshire County Council,1111/1001,Children and Young People,CYP,Third Party Payments,EGA,05/07/2018,04-10411,"4,536.35",The West Bridgford Day Nursery
Nottinghamshire County Council,1111/1001,Children and Young People,CYP,Third Party Payments,EGA,05/07/2018,04-10592,3817.39,Thrumpton Kids Clubs
Nottinghamshire County Council,1111/1001,Children and Young People,CYP,Third Party Payments,EGA,05/07/2018,04-10499,610.74,Tinas Childminding
Nottinghamshire County Council,1111/1001,Children and Young People,CYP,Third Party Payments,EGA,05/07/2018,04-10590,"8,149.11",Tiny Talkers Day Nursery
Nottinghamshire County Council,1111/1001,Children and Young People,CYP,Third Party Payments,EGA,05/07/2018,04-10334,7155.05,Tiny Teddies Day Nursery
Nottinghamshire County Council,1111/1001,Children and Young People,CYP,Third Party Payments,EGA,05/07/2018,04-10534,567.84,Tiny Tots Childcare
Nottinghamshire County Council,1111/1001,Children and Young People,CYP,Third Party Payments,EGA,05/07/2018,04-10589,3725.98,Tiny Tots Playgroup
Nottinghamshire County Council,1111/1001,Children and Young People,CYP,Third Party Payments,EGA,05/07/2018,04-10587,"15,358.80",Tiny World Mansfield
Nottinghamshire County Council,1111/1001,Children and Young People,CYP,Third Party Payments,EGA,05/07/2018,04-10336,8113.31,Toddlers University (Bee)
Nottinghamshire County Council,1111/1001,Children and Young People,CYP,Third Party Payments,EGA,05/07/2018,04-10337,5541.27,Tollerton Playgroup
Nottinghamshire County Council,1111/1001,Children and Young People,CYP,Third Party Payments,EGA,05/07/2018,04-10586,"1,622.40",Toton Tots Pre-School
Nottinghamshire County Council,1111/1001,Children and Young People,CYP,Third Party Payments,EGA,05/07/2018,04-10370,2927.49,Townrow Tiny Tots Day Nursery Ltd
Nottinghamshire County Council,1111/1001,Children and Young People,CYP,Third Party Payments,EGA,05/07/2018,04-10372,3362.77,Townrow Tiny Tots Day Nursery Ltd
Nottinghamshire County Council,1111/1001,Children and Young People,CYP,Third Party Payments,EGA,05/07/2018,04-10584,2974.91,Townrow Tiny Tots Day Nursery Ltd
Nottinghamshire County Council,1111/1001,Children and Young People,CYP,Third Party Payments,EGA,05/07/2018,04-10609,11715.93,Treetops Nurseries Ltd
Nottinghamshire County Council,1111/1001,Children and Young People,CYP,Third Party Payments,EGA,05/07/2018,04-10582,"9,773.35",Treetops Nursery
Nottinghamshire County Council,1111/1001,Children and Young People,CYP,Third Party Payments,EGA,05/07/2018,04-10580,20050.81,Treetops Nursery (Clipstone)
Nottinghamshire County Council,1111/1001,Children and Young People,CYP,Third Party Payments,EGA,05/07/2018,04-10578,"3,464.30",Trowell Pre School
Nottinghamshire County Council,1111/1001,Children and Young People,CYP,Third Party Payments,EGA,05/07/2018,04-10574,"4,247.41",Upton Crickets Day Nursery
Nottinghamshire County Council,1111/1001,Children and Young People,CYP,Third Party Payments,EGA,05/07/2018,04-10572,"15,570.82",Village Day Nursery
Nottinghamshire County Council,1111/1001,Unallocated,UNALLOC.,Supplies & Services,DFA,05/07/2018,04-10244,1187.85,Vodafone Ltd (Voice & Data)
Nottinghamshire County Council,1111/1001,Children and Young People,CYP,Third Party Payments,EGA,05/07/2018,04-10374,5611.44,Walesby School Playgroup
Nottinghamshire County Council,1111/1001,Children and Young People,CYP,Third Party Payments,EGA,05/07/2018,04-10376,4459.52,Watnall Pre-School Playgroup
Nottinghamshire County Council,1111/1001,Children and Young People,CYP,Third Party Payments,EGA,05/07/2018,04-10327,"10,594.27",Weaverthorpe Pre-School Playgroup
Nottinghamshire County Council,1111/1001,Children and Young People,CYP,Third Party Payments,EGA,05/07/2018,04-10595,4816.38,Wellin Lane Playgroup
Nottinghamshire County Council,1111/1001,Children and Young People,CYP,Third Party Payments,EGA,05/07/2018,04-10566,1935.65,Wellow House School
Nottinghamshire County Council,1111/1001,Children and Young People,CYP,Third Party Payments,EGA,05/07/2018,04-10563,7700.99,West Bridgford Out Of School Care L
Nottinghamshire County Council,1111/1001,Children and Young People,CYP,Third Party Payments,EGA,05/07/2018,04-10561,"3,639.33",West Street Pre-School
Nottinghamshire County Council,1111/1001,Children and Young People,CYP,Third Party Payments,EGA,05/07/2018,04-10558,10361.45,Westbourne House Nursery School
Nottinghamshire County Council,1111/1001,Children and Young People,CYP,Third Party Payments,EGA,05/07/2018,04-10557,10915.22,Westdale Pre-School
Nottinghamshire County Council,1111/1001,Children and Young People,CYP,Third Party Payments,EGA,05/07/2018,04-10555,15003.23,Whitehouse Day Nursery
Nottinghamshire County Council,1111/1001,Children and Young People,CYP,Third Party Payments,EGA,05/07/2018,04-10379,"2,122.65",Willoughby On The Wolds Playgroup
Nottinghamshire County Council,1111/1001,Children and Young People,CYP,Third Party Payments,EGA,05/07/2018,04-10381,"4,030.20",Willow Brook Pre-School
Nottinghamshire County Council,1111/1001,Children and Young People,CYP,Third Party Payments,EGA,05/07/2018,04-10399,"4,045.96",Willow Childcare & Training Ltd
Nottinghamshire County Council,1111/1001,Children and Young People,CYP,Third Party Payments,EGA,05/07/2018,04-10382,"8,163.83",Willow Pre-School Playgroup
Nottinghamshire County Council,1111/1001,Children and Young People,CYP,Third Party Payments,EGA,05/07/2018,04-10385,4934.1,Windmill Kindergarten Playgroup
Nottinghamshire County Council,1111/1001,Children and Young People,CYP,Third Party Payments,EGA,05/07/2018,04-10544,"10,698.06",Wishing Well Day Nursery
Nottinghamshire County Council,1111/1001,Children and Young People,CYP,Third Party Payments,EGA,05/07/2018,04-10401,"8,607.37",Wolds Childcare Ltd
Nottinghamshire County Council,1111/1001,Children and Young People,CYP,Third Party Payments,EGA,05/07/2018,04-10542,3707.76,Wolds Day Nursery @ Stragglethorpe
Nottinghamshire County Council,1111/1001,Children and Young People,CYP,Third Party Payments,EGA,05/07/2018,04-10540,8761.19,Wollaton Village Day Nurseries
Nottinghamshire County Council,1111/1001,Children and Young People,CYP,Third Party Payments,EGA,05/07/2018,04-10539,21028.21,Wollaton Village Day Nurseries Ltd.
Nottinghamshire County Council,1111/1001,Children and Young People,CYP,Third Party Payments,EGA,05/07/2018,04-10388,6021.83,Woodborough Village Pre School
Nottinghamshire County Council,1111/1001,Children and Young People,CYP,Third Party Payments,EGA,05/07/2018,04-10390,"23,295.09",Woodthorpe Day Nursery Ltd
Nottinghamshire County Council,1111/1001,Children and Young People,CYP,Third Party Payments,EGA,05/07/2018,04-10391,"4,759.04",Worksop College
Nottinghamshire County Council,1111/1001,Children and Young People,CYP,Third Party Payments,EGA,05/07/2018,04-10343,"1,960.33",Yew Tree Childcare
Nottinghamshire County Council,1111/1001,Children and Young People,CYP,Third Party Payments,EGA,05/07/2018,04-10392,4971.12,Young Rascals Day Nursery
Nottinghamshire County Council,1111/1001,Children and Young People,CYP,Third Party Payments,EGA,05/07/2018,04-10532,2774.65,Zoes Childcare Ltd
Nottinghamshire County Council,1111/1001,Children and Young People,CYP,Third Party Payments,EGA,05/07/2018,04-10531,5783.62,Zoe's Childcare Ltd
Nottinghamshire County Council,1111/1001,Children and Young People,CYP,Supplies & Services,DEA,06/07/2018,04-17179,2700,[Redacted]
Nottinghamshire County Council,1111/1001,Adult Social Care and Health,ASCH,Third Party Payments,EGA,06/07/2018,04-10809,997.88,[Redacted]
Nottinghamshire County Council,1111/1001,Adult Social Care and Health,ASCH,Third Party Payments,EGA,06/07/2018,04-10810,"1,219.88",[Redacted]
Nottinghamshire County Council,1111/1001,Adult Social Care and Health,ASCH,Third Party Payments,EGA,06/07/2018,04-10811,1837.08,[Redacted]
Nottinghamshire County Council,1111/1001,Adult Social Care and Health,ASCH,Third Party Payments,EGA,06/07/2018,04-10812,1137.8,[Redacted]
Nottinghamshire County Council,1111/1001,Adult Social Care and Health,ASCH,Third Party Payments,EGA,06/07/2018,04-10813,1332.24,[Redacted]
Nottinghamshire County Council,1111/1001,Adult Social Care and Health,ASCH,Third Party Payments,EGA,06/07/2018,04-10814,964.12,[Redacted]
Nottinghamshire County Council,1111/1001,Adult Social Care and Health,ASCH,Third Party Payments,EGA,06/07/2018,04-10815,1936.88,[Redacted]
Nottinghamshire County Council,1111/1001,Adult Social Care and Health,ASCH,Third Party Payments,EGA,06/07/2018,04-10816,1851.6,[Redacted]
Nottinghamshire County Council,1111/1001,Adult Social Care and Health,ASCH,Third Party Payments,EGA,06/07/2018,04-10817,"2,479.76",[Redacted]
Nottinghamshire County Council,1111/1001,Adult Social Care and Health,ASCH,Third Party Payments,EGA,06/07/2018,04-10818,"1,182.20",[Redacted]
Nottinghamshire County Council,1111/1001,Adult Social Care and Health,ASCH,Third Party Payments,EGA,06/07/2018,04-10819,"1,561.60",[Redacted]
Nottinghamshire County Council,1111/1001,Adult Social Care and Health,ASCH,Third Party Payments,EGA,06/07/2018,04-10820,1415.6,[Redacted]
Nottinghamshire County Council,1111/1001,Adult Social Care and Health,ASCH,Third Party Payments,EGA,06/07/2018,04-10821,1059.04,[Redacted]
Nottinghamshire County Council,1111/1001,Adult Social Care and Health,ASCH,Third Party Payments,EGA,06/07/2018,04-10822,1304.92,[Redacted]
Nottinghamshire County Council,1111/1001,Adult Social Care and Health,ASCH,Third Party Payments,EGA,06/07/2018,04-12514,5587.2,[Redacted]
Nottinghamshire County Council,1111/1001,Adult Social Care and Health,ASCH,Third Party Payments,EGA,06/07/2018,04-10627,"2,222.04",Acacia Care Cent (HC One)
Nottinghamshire County Council,1111/1001,Adult Social Care and Health,ASCH,Third Party Payments,EGA,06/07/2018,04-10675,2222.04,Acacia Care Cent (HC One)
Nottinghamshire County Council,1111/1001,Adult Social Care and Health,ASCH,Third Party Payments,EGA,06/07/2018,04-10698,2222.04,Acacia Care Cent (HC One)
Nottinghamshire County Council,1111/1001,Adult Social Care and Health,ASCH,Third Party Payments,EGA,06/07/2018,04-10699,"2,222.04",Acacia Care Cent (HC One)
Nottinghamshire County Council,1111/1001,Adult Social Care and Health,ASCH,Third Party Payments,EGA,06/07/2018,04-10740,"2,222.04",Acacia Care Cent (HC One)
Nottinghamshire County Council,1111/1001,Adult Social Care and Health,ASCH,Third Party Payments,EGA,06/07/2018,04-10795,"2,222.04",Acacia Care Cent (HC One)
Nottinghamshire County Council,1111/1001,Adult Social Care and Health,ASCH,Third Party Payments,EGA,06/07/2018,04-10807,2222.04,Acacia Care Cent (HC One)
Nottinghamshire County Council,1111/1001,Adult Social Care and Health,ASCH,Third Party Payments,EGA,06/07/2018,04-11771,"21,389.36",Acacia Hall (Kisimul)
Nottinghamshire County Council,1111/1001,Adult Social Care and Health,ASCH,Third Party Payments,EGA,06/07/2018,04-11788,"12,048.36",Acacia Hall (Kisimul)
Nottinghamshire County Council,1111/1001,Adult Social Care and Health,ASCH,Third Party Payments,EGA,06/07/2018,04-11806,"13,368.44",Acacia Hall (Kisimul)
Nottinghamshire County Council,1111/1001,Adult Social Care and Health,ASCH,Third Party Payments,EGA,06/07/2018,04-10639,2456,Acer Court Care Home
Nottinghamshire County Council,1111/1001,Adult Social Care and Health,ASCH,Third Party Payments,EGA,06/07/2018,04-10652,"2,256.00",Acer Court Care Home
Nottinghamshire County Council,1111/1001,Adult Social Care and Health,ASCH,Third Party Payments,EGA,06/07/2018,04-10653,2536,Acer Court Care Home
Nottinghamshire County Council,1111/1001,Adult Social Care and Health,ASCH,Third Party Payments,EGA,06/07/2018,04-10657,2256,Acer Court Care Home
Nottinghamshire County Council,1111/1001,Adult Social Care and Health,ASCH,Third Party Payments,EGA,06/07/2018,04-10660,2536,Acer Court Care Home
Nottinghamshire County Council,1111/1001,Adult Social Care and Health,ASCH,Third Party Payments,EGA,06/07/2018,04-10674,2256,Acer Court Care Home
Nottinghamshire County Council,1111/1001,Adult Social Care and Health,ASCH,Third Party Payments,EGA,06/07/2018,04-10701,2256,Acer Court Care Home
Nottinghamshire County Council,1111/1001,Adult Social Care and Health,ASCH,Third Party Payments,EGA,06/07/2018,04-10709,2544.2,Acer Court Care Home
Nottinghamshire County Council,1111/1001,Adult Social Care and Health,ASCH,Third Party Payments,EGA,06/07/2018,04-10717,2536,Acer Court Care Home
Nottinghamshire County Council,1111/1001,Adult Social Care and Health,ASCH,Third Party Payments,EGA,06/07/2018,04-10719,"2,536.00",Acer Court Care Home
Nottinghamshire County Council,1111/1001,Adult Social Care and Health,ASCH,Third Party Payments,EGA,06/07/2018,04-10733,"2,256.00",Acer Court Care Home
Nottinghamshire County Council,1111/1001,Adult Social Care and Health,ASCH,Third Party Payments,EGA,06/07/2018,04-10772,"2,256.00",Acer Court Care Home
Nottinghamshire County Council,1111/1001,Adult Social Care and Health,ASCH,Third Party Payments,EGA,06/07/2018,04-10775,"2,256.00",Acer Court Care Home
Nottinghamshire County Council,1111/1001,Adult Social Care and Health,ASCH,Third Party Payments,EGA,06/07/2018,04-10778,2536,Acer Court Care Home
Nottinghamshire County Council,1111/1001,Adult Social Care and Health,ASCH,Third Party Payments,EGA,06/07/2018,04-10785,"2,256.00",Acer Court Care Home
Nottinghamshire County Council,1111/1001,Adult Social Care and Health,ASCH,Third Party Payments,EGA,06/07/2018,04-10808,"2,456.00",Acer Court Care Home
Nottinghamshire County Council,1111/1001,Children and Young People,CYP,Third Party Payments,EGA,06/07/2018,04-17193,3036.27,Acorn Fostering Services Ltd
Nottinghamshire County Council,1111/1001,Adult Social Care and Health,ASCH,Third Party Payments,EGA,06/07/2018,04-10768,2668,Acorn House
Nottinghamshire County Council,1111/1001,Adult Social Care and Health,ASCH,Third Party Payments,EGA,06/07/2018,04-10769,2222.04,Acorn House
Nottinghamshire County Council,1111/1001,Adult Social Care and Health,ASCH,Third Party Payments,EGA,06/07/2018,04-10656,"6,662.00",Adams House
Nottinghamshire County Council,1111/1001,Adult Social Care and Health,ASCH,Third Party Payments,EGA,06/07/2018,04-10678,7780,Adams House
Nottinghamshire County Council,1111/1001,Adult Social Care and Health,ASCH,Third Party Payments,EGA,06/07/2018,04-10679,12680,Adams House
Nottinghamshire County Council,1111/1001,Adult Social Care and Health,ASCH,Third Party Payments,EGA,06/07/2018,04-10710,6480.64,Adams House
Nottinghamshire County Council,1111/1001,Adult Social Care and Health,ASCH,Third Party Payments,EGA,06/07/2018,04-10715,6787.76,Adams House
Nottinghamshire County Council,1111/1001,Adult Social Care and Health,ASCH,Third Party Payments,EGA,06/07/2018,04-10732,"5,682.16",Adams House
Nottinghamshire County Council,1111/1001,Adult Social Care and Health,ASCH,Third Party Payments,EGA,06/07/2018,04-10743,"6,183.36",Adams House
Nottinghamshire County Council,1111/1001,Adult Social Care and Health,ASCH,Third Party Payments,EGA,06/07/2018,04-10766,"6,787.76",Adams House
Nottinghamshire County Council,1111/1001,Adult Social Care and Health,ASCH,Third Party Payments,EGA,06/07/2018,04-10621,"1,972.00",Adbolton Hall Nursing Home (MPS)
Nottinghamshire County Council,1111/1001,Adult Social Care and Health,ASCH,Third Party Payments,EGA,06/07/2018,04-10643,1972,Adbolton Hall Nursing Home (MPS)
Nottinghamshire County Council,1111/1001,Adult Social Care and Health,ASCH,Third Party Payments,EGA,06/07/2018,04-10646,2172,Adbolton Hall Nursing Home (MPS)
Nottinghamshire County Council,1111/1001,Adult Social Care and Health,ASCH,Third Party Payments,EGA,06/07/2018,04-10676,"1,972.00",Adbolton Hall Nursing Home (MPS)
Nottinghamshire County Council,1111/1001,Adult Social Care and Health,ASCH,Third Party Payments,EGA,06/07/2018,04-10687,"3,451.00",Adbolton Hall Nursing Home (MPS)
Nottinghamshire County Council,1111/1001,Adult Social Care and Health,ASCH,Third Party Payments,EGA,06/07/2018,04-10690,"1,972.00",Adbolton Hall Nursing Home (MPS)
Nottinghamshire County Council,1111/1001,Adult Social Care and Health,ASCH,Third Party Payments,EGA,06/07/2018,04-10702,"1,972.00",Adbolton Hall Nursing Home (MPS)
Nottinghamshire County Council,1111/1001,Adult Social Care and Health,ASCH,Third Party Payments,EGA,06/07/2018,04-10704,"1,816.00",Adbolton Hall Nursing Home (MPS)
Nottinghamshire County Council,1111/1001,Adult Social Care and Health,ASCH,Third Party Payments,EGA,06/07/2018,04-10718,1972,Adbolton Hall Nursing Home (MPS)
Nottinghamshire County Council,1111/1001,Adult Social Care and Health,ASCH,Third Party Payments,EGA,06/07/2018,04-10727,1972,Adbolton Hall Nursing Home (MPS)
Nottinghamshire County Council,1111/1001,Adult Social Care and Health,ASCH,Third Party Payments,EGA,06/07/2018,04-10735,"1,816.00",Adbolton Hall Nursing Home (MPS)
Nottinghamshire County Council,1111/1001,Adult Social Care and Health,ASCH,Third Party Payments,EGA,06/07/2018,04-10738,1972,Adbolton Hall Nursing Home (MPS)
Nottinghamshire County Council,1111/1001,Adult Social Care and Health,ASCH,Third Party Payments,EGA,06/07/2018,04-10741,1816,Adbolton Hall Nursing Home (MPS)
Nottinghamshire County Council,1111/1001,Adult Social Care and Health,ASCH,Third Party Payments,EGA,06/07/2018,04-10763,"1,972.00",Adbolton Hall Nursing Home (MPS)
Nottinghamshire County Council,1111/1001,Adult Social Care and Health,ASCH,Third Party Payments,EGA,06/07/2018,04-10781,"2,374.24",Adbolton Hall Nursing Home (MPS)
Nottinghamshire County Council,1111/1001,Adult Social Care and Health,ASCH,Third Party Payments,EGA,06/07/2018,04-10797,"1,972.00",Adbolton Hall Nursing Home (MPS)
Nottinghamshire County Council,1111/1001,Adult Social Care and Health,ASCH,Third Party Payments,EGA,06/07/2018,04-10644,2496,Albemarle Court
Nottinghamshire County Council,1111/1001,Adult Social Care and Health,ASCH,Third Party Payments,EGA,06/07/2018,04-10659,2496,Albemarle Court
Nottinghamshire County Council,1111/1001,Adult Social Care and Health,ASCH,Third Party Payments,EGA,06/07/2018,04-10663,2496,Albemarle Court
Nottinghamshire County Council,1111/1001,Adult Social Care and Health,ASCH,Third Party Payments,EGA,06/07/2018,04-10671,"2,628.00",Albemarle Court
Nottinghamshire County Council,1111/1001,Adult Social Care and Health,ASCH,Third Party Payments,EGA,06/07/2018,04-10689,"2,256.00",Albemarle Court
Nottinghamshire County Council,1111/1001,Adult Social Care and Health,ASCH,Third Party Payments,EGA,06/07/2018,04-10714,2496,Albemarle Court
Nottinghamshire County Council,1111/1001,Adult Social Care and Health,ASCH,Third Party Payments,EGA,06/07/2018,04-10784,2496,Albemarle Court
Nottinghamshire County Council,1111/1001,Adult Social Care and Health,ASCH,Third Party Payments,EGA,06/07/2018,04-10801,564,Albemarle Court
Nottinghamshire County Council,1111/1001,Adult Social Care and Health,ASCH,Third Party Payments,EGA,06/07/2018,04-10638,2196,Albemarle Hall Nursing Home
Nottinghamshire County Council,1111/1001,Adult Social Care and Health,ASCH,Third Party Payments,EGA,06/07/2018,04-10726,2260,Albemarle Hall Nursing Home
Nottinghamshire County Council,1111/1001,Adult Social Care and Health,ASCH,Third Party Payments,EGA,06/07/2018,04-10744,"2,260.00",Albemarle Hall Nursing Home
Nottinghamshire County Council,1111/1001,Adult Social Care and Health,ASCH,Third Party Payments,EGA,06/07/2018,04-10752,"2,260.00",Albemarle Hall Nursing Home
Nottinghamshire County Council,1111/1001,Adult Social Care and Health,ASCH,Third Party Payments,EGA,06/07/2018,04-10758,"2,412.00",Albemarle Hall Nursing Home
Nottinghamshire County Council,1111/1001,Adult Social Care and Health,ASCH,Third Party Payments,EGA,06/07/2018,04-10779,"2,260.00",Albemarle Hall Nursing Home
Nottinghamshire County Council,1111/1001,Adult Social Care and Health,ASCH,Third Party Payments,EGA,06/07/2018,04-10633,"2,856.00",Alder House
Nottinghamshire County Council,1111/1001,Adult Social Care and Health,ASCH,Third Party Payments,EGA,06/07/2018,04-10677,"2,736.00",Alder House
Nottinghamshire County Council,1111/1001,Adult Social Care and Health,ASCH,Third Party Payments,EGA,06/07/2018,04-10688,2736,Alder House
Nottinghamshire County Council,1111/1001,Adult Social Care and Health,ASCH,Third Party Payments,EGA,06/07/2018,04-10695,"2,736.00",Alder House
Nottinghamshire County Council,1111/1001,Adult Social Care and Health,ASCH,Third Party Payments,EGA,06/07/2018,04-10751,2856,Alder House
Nottinghamshire County Council,1111/1001,Adult Social Care and Health,ASCH,Third Party Payments,EGA,06/07/2018,04-10796,2456,Alder House
Nottinghamshire County Council,1111/1001,Adult Social Care and Health,ASCH,Third Party Payments,EGA,06/07/2018,04-10800,"4,186.04",Alfred Minto House Residential Home
Nottinghamshire County Council,1111/1001,Adult Social Care and Health,ASCH,Third Party Payments,EGA,06/07/2018,04-10805,4186.04,Alfred Minto House Residential Home
Nottinghamshire County Council,1111/1001,Adult Social Care and Health,ASCH,Third Party Payments,EGA,06/07/2018,04-10626,2132.72,Amathea Care Centre (MHA)
Nottinghamshire County Council,1111/1001,Adult Social Care and Health,ASCH,Third Party Payments,EGA,06/07/2018,04-10655,"16,898.64",Ancaladh House (Kisimul)
Nottinghamshire County Council,1111/1001,Adult Social Care and Health,ASCH,Third Party Payments,EGA,06/07/2018,04-10667,"12,990.84",Ancaladh House (Kisimul)
Nottinghamshire County Council,1111/1001,Adult Social Care and Health,ASCH,Third Party Payments,EGA,06/07/2018,04-10686,"10,587.56",Ancaladh House (Kisimul)
Nottinghamshire County Council,1111/1001,Children and Young People,CYP,Third Party Payments,EGA,06/07/2018,04-17186,3391.09,Anglia Fostering Agency Ltd
Nottinghamshire County Council,1111/1001,Adult Social Care and Health,ASCH,Third Party Payments,EGA,06/07/2018,04-11777,"8,812.00",Applewood House (Lifeways)
Nottinghamshire County Council,1111/1001,Adult Social Care and Health,ASCH,Third Party Payments,EGA,06/07/2018,04-11817,"8,398.28",Applewood House (Lifeways)
Nottinghamshire County Council,1111/1001,Adult Social Care and Health,ASCH,Third Party Payments,EGA,06/07/2018,04-10630,6380.44,Ash Villa (MGB)
Nottinghamshire County Council,1111/1001,Adult Social Care and Health,ASCH,Third Party Payments,EGA,06/07/2018,04-10654,"11,667.00",Ash Villa (MGB)
Nottinghamshire County Council,1111/1001,Adult Social Care and Health,ASCH,Third Party Payments,EGA,06/07/2018,04-10748,4969.72,Ash Villa (MGB)
Nottinghamshire County Council,1111/1001,Adult Social Care and Health,ASCH,Third Party Payments,EGA,06/07/2018,04-10783,6468.76,Ash Villa (MGB)
Nottinghamshire County Council,1111/1001,Adult Social Care and Health,ASCH,Third Party Payments,EGA,06/07/2018,04-10635,"8,116.00",Ashcombe Court (Accomplish)
Nottinghamshire County Council,1111/1001,Adult Social Care and Health,ASCH,Third Party Payments,EGA,06/07/2018,04-10620,2672,Ashcroft Care Home
Nottinghamshire County Council,1111/1001,Adult Social Care and Health,ASCH,Third Party Payments,EGA,06/07/2018,04-10631,2256,Ashcroft Care Home
Nottinghamshire County Council,1111/1001,Adult Social Care and Health,ASCH,Third Party Payments,EGA,06/07/2018,04-10634,"2,672.00",Ashcroft Care Home
Nottinghamshire County Council,1111/1001,Adult Social Care and Health,ASCH,Third Party Payments,EGA,06/07/2018,04-10640,"2,640.44",Ashcroft Care Home
Nottinghamshire County Council,1111/1001,Adult Social Care and Health,ASCH,Third Party Payments,EGA,06/07/2018,04-10641,2792,Ashcroft Care Home
Nottinghamshire County Council,1111/1001,Adult Social Care and Health,ASCH,Third Party Payments,EGA,06/07/2018,04-10645,"2,496.00",Ashcroft Care Home
Nottinghamshire County Council,1111/1001,Adult Social Care and Health,ASCH,Third Party Payments,EGA,06/07/2018,04-10649,"2,672.00",Ashcroft Care Home
Nottinghamshire County Council,1111/1001,Adult Social Care and Health,ASCH,Third Party Payments,EGA,06/07/2018,04-10650,2672,Ashcroft Care Home
Nottinghamshire County Council,1111/1001,Adult Social Care and Health,ASCH,Third Party Payments,EGA,06/07/2018,04-10651,"3,232.00",Ashcroft Care Home
Nottinghamshire County Council,1111/1001,Adult Social Care and Health,ASCH,Third Party Payments,EGA,06/07/2018,04-10664,"2,256.00",Ashcroft Care Home
Nottinghamshire County Council,1111/1001,Adult Social Care and Health,ASCH,Third Party Payments,EGA,06/07/2018,04-10672,"2,576.00",Ashcroft Care Home
Nottinghamshire County Council,1111/1001,Adult Social Care and Health,ASCH,Third Party Payments,EGA,06/07/2018,04-10693,"2,671.80",Ashcroft Care Home
Nottinghamshire County Council,1111/1001,Adult Social Care and Health,ASCH,Third Party Payments,EGA,06/07/2018,04-10694,2672,Ashcroft Care Home
Nottinghamshire County Council,1111/1001,Adult Social Care and Health,ASCH,Third Party Payments,EGA,06/07/2018,04-10700,2456,Ashcroft Care Home
Nottinghamshire County Council,1111/1001,Adult Social Care and Health,ASCH,Third Party Payments,EGA,06/07/2018,04-10703,2672,Ashcroft Care Home
Nottinghamshire County Council,1111/1001,Adult Social Care and Health,ASCH,Third Party Payments,EGA,06/07/2018,04-10705,2672,Ashcroft Care Home
Nottinghamshire County Council,1111/1001,Adult Social Care and Health,ASCH,Third Party Payments,EGA,06/07/2018,04-10707,2496,Ashcroft Care Home
Nottinghamshire County Council,1111/1001,Adult Social Care and Health,ASCH,Third Party Payments,EGA,06/07/2018,04-10708,2672,Ashcroft Care Home
Nottinghamshire County Council,1111/1001,Adult Social Care and Health,ASCH,Third Party Payments,EGA,06/07/2018,04-10712,"2,792.00",Ashcroft Care Home
Nottinghamshire County Council,1111/1001,Adult Social Care and Health,ASCH,Third Party Payments,EGA,06/07/2018,04-10720,"2,496.00",Ashcroft Care Home
Nottinghamshire County Council,1111/1001,Adult Social Care and Health,ASCH,Third Party Payments,EGA,06/07/2018,04-10722,"2,576.00",Ashcroft Care Home
Nottinghamshire County Council,1111/1001,Adult Social Care and Health,ASCH,Third Party Payments,EGA,06/07/2018,04-10723,2672,Ashcroft Care Home
Nottinghamshire County Council,1111/1001,Adult Social Care and Health,ASCH,Third Party Payments,EGA,06/07/2018,04-10728,2496,Ashcroft Care Home
Nottinghamshire County Council,1111/1001,Adult Social Care and Health,ASCH,Third Party Payments,EGA,06/07/2018,04-10737,2456,Ashcroft Care Home
Nottinghamshire County Council,1111/1001,Adult Social Care and Health,ASCH,Third Party Payments,EGA,06/07/2018,04-10747,"2,672.00",Ashcroft Care Home
Nottinghamshire County Council,1111/1001,Adult Social Care and Health,ASCH,Third Party Payments,EGA,06/07/2018,04-10754,"2,576.00",Ashcroft Care Home
Nottinghamshire County Council,1111/1001,Adult Social Care and Health,ASCH,Third Party Payments,EGA,06/07/2018,04-10756,2456,Ashcroft Care Home
Nottinghamshire County Council,1111/1001,Adult Social Care and Health,ASCH,Third Party Payments,EGA,06/07/2018,04-10762,2256,Ashcroft Care Home
Nottinghamshire County Council,1111/1001,Adult Social Care and Health,ASCH,Third Party Payments,EGA,06/07/2018,04-10774,"2,456.00",Ashcroft Care Home
Nottinghamshire County Council,1111/1001,Adult Social Care and Health,ASCH,Third Party Payments,EGA,06/07/2018,04-10777,2672,Ashcroft Care Home
Nottinghamshire County Council,1111/1001,Adult Social Care and Health,ASCH,Third Party Payments,EGA,06/07/2018,04-10780,"2,456.00",Ashcroft Care Home
Nottinghamshire County Council,1111/1001,Adult Social Care and Health,ASCH,Third Party Payments,EGA,06/07/2018,04-10787,"2,672.00",Ashcroft Care Home
Nottinghamshire County Council,1111/1001,Adult Social Care and Health,ASCH,Third Party Payments,EGA,06/07/2018,04-10791,2256,Ashcroft Care Home
Nottinghamshire County Council,1111/1001,Adult Social Care and Health,ASCH,Third Party Payments,EGA,06/07/2018,04-10697,"2,576.00",Ashdale Care Home (Isys)
Nottinghamshire County Council,1111/1001,Adult Social Care and Health,ASCH,Third Party Payments,EGA,06/07/2018,04-10731,"2,632.00",Ashdale Care Home (Isys)
Nottinghamshire County Council,1111/1001,Adult Social Care and Health,ASCH,Third Party Payments,EGA,06/07/2018,04-10750,2496,Ashdale Care Home (Isys)
Nottinghamshire County Council,1111/1001,Adult Social Care and Health,ASCH,Third Party Payments,EGA,06/07/2018,04-10761,2632,Ashdale Care Home (Isys)
Nottinghamshire County Council,1111/1001,Adult Social Care and Health,ASCH,Third Party Payments,EGA,06/07/2018,04-10794,2496,Ashdale Care Home (Isys)
Nottinghamshire County Council,1111/1001,Adult Social Care and Health,ASCH,Third Party Payments,EGA,06/07/2018,04-10804,2580,Ashdale Care Home (Isys)
Nottinghamshire County Council,1111/1001,Adult Social Care and Health,ASCH,Third Party Payments,EGA,06/07/2018,04-10696,"2,076.00",Ashdown Care Ltd
Nottinghamshire County Council,1111/1001,Adult Social Care and Health,ASCH,Third Party Payments,EGA,06/07/2018,04-10624,2380,Ashfield Nursing Home
Nottinghamshire County Council,1111/1001,Adult Social Care and Health,ASCH,Third Party Payments,EGA,06/07/2018,04-10648,"2,140.00",Ashfield Nursing Home
Nottinghamshire County Council,1111/1001,Adult Social Care and Health,ASCH,Third Party Payments,EGA,06/07/2018,04-10662,2380,Ashfield Nursing Home
Nottinghamshire County Council,1111/1001,Adult Social Care and Health,ASCH,Third Party Payments,EGA,06/07/2018,04-10673,"2,380.00",Ashfield Nursing Home
Nottinghamshire County Council,1111/1001,Adult Social Care and Health,ASCH,Third Party Payments,EGA,06/07/2018,04-10680,"2,380.00",Ashfield Nursing Home
Nottinghamshire County Council,1111/1001,Adult Social Care and Health,ASCH,Third Party Payments,EGA,06/07/2018,04-10681,"2,380.00",Ashfield Nursing Home
Nottinghamshire County Council,1111/1001,Adult Social Care and Health,ASCH,Third Party Payments,EGA,06/07/2018,04-10682,"2,380.00",Ashfield Nursing Home
Nottinghamshire County Council,1111/1001,Adult Social Care and Health,ASCH,Third Party Payments,EGA,06/07/2018,04-10691,"2,380.00",Ashfield Nursing Home
Nottinghamshire County Council,1111/1001,Adult Social Care and Health,ASCH,Third Party Payments,EGA,06/07/2018,04-10724,"2,380.00",Ashfield Nursing Home
Nottinghamshire County Council,1111/1001,Adult Social Care and Health,ASCH,Third Party Payments,EGA,06/07/2018,04-10729,2380,Ashfield Nursing Home
Nottinghamshire County Council,1111/1001,Adult Social Care and Health,ASCH,Third Party Payments,EGA,06/07/2018,04-10734,"2,380.00",Ashfield Nursing Home
Nottinghamshire County Council,1111/1001,Adult Social Care and Health,ASCH,Third Party Payments,EGA,06/07/2018,04-10759,"2,380.00",Ashfield Nursing Home
Nottinghamshire County Council,1111/1001,Adult Social Care and Health,ASCH,Third Party Payments,EGA,06/07/2018,04-10760,2380,Ashfield Nursing Home
Nottinghamshire County Council,1111/1001,Adult Social Care and Health,ASCH,Third Party Payments,EGA,06/07/2018,04-10764,"2,380.00",Ashfield Nursing Home
Nottinghamshire County Council,1111/1001,Adult Social Care and Health,ASCH,Third Party Payments,EGA,06/07/2018,04-10782,2384.8,Ashfield Nursing Home
Nottinghamshire County Council,1111/1001,Adult Social Care and Health,ASCH,Third Party Payments,EGA,06/07/2018,04-10786,2380,Ashfield Nursing Home
Nottinghamshire County Council,1111/1001,Adult Social Care and Health,ASCH,Third Party Payments,EGA,06/07/2018,04-10803,2380,Ashfield Nursing Home
Nottinghamshire County Council,1111/1001,Adult Social Care and Health,ASCH,Third Party Payments,EGA,06/07/2018,04-10647,"2,533.32",Ashfields Residential Home
Nottinghamshire County Council,1111/1001,Adult Social Care and Health,ASCH,Third Party Payments,EGA,06/07/2018,04-10790,2283.96,Ashford Lodge Nursing Home
Nottinghamshire County Council,1111/1001,Adult Social Care and Health,ASCH,Third Party Payments,EGA,06/07/2018,04-12084,"4,610.00",Ashlands Road (NCHA)
Nottinghamshire County Council,1111/1001,Adult Social Care and Health,ASCH,Third Party Payments,EGA,06/07/2018,04-12085,"5,552.36",Ashlands Road (NCHA)
Nottinghamshire County Council,1111/1001,Adult Social Care and Health,ASCH,Third Party Payments,EGA,06/07/2018,04-12123,"4,482.84",Ashlands Road (NCHA)
Nottinghamshire County Council,1111/1001,Adult Social Care and Health,ASCH,Third Party Payments,EGA,06/07/2018,04-12128,"6,759.44",Ashlands Road (NCHA)
Nottinghamshire County Council,1111/1001,Adult Social Care and Health,ASCH,Third Party Payments,EGA,06/07/2018,04-12179,"4,051.56",Ashlands Road (NCHA)
Nottinghamshire County Council,1111/1001,Adult Social Care and Health,ASCH,Third Party Payments,EGA,06/07/2018,04-12193,"3,594.72",Ashlands Road (NCHA)
Nottinghamshire County Council,1111/1001,Adult Social Care and Health,ASCH,Third Party Payments,EGA,06/07/2018,04-12207,"6,792.72",Ashlands Road (NCHA)
Nottinghamshire County Council,1111/1001,Adult Social Care and Health,ASCH,Third Party Payments,EGA,06/07/2018,04-12230,"5,830.88",Ashlands Road (NCHA)
Nottinghamshire County Council,1111/1001,Adult Social Care and Health,ASCH,Third Party Payments,EGA,06/07/2018,04-12253,"5,561.08",Ashlands Road (NCHA)
Nottinghamshire County Council,1111/1001,Adult Social Care and Health,ASCH,Third Party Payments,EGA,06/07/2018,04-10755,2859.04,Ashley Court Care Home
Nottinghamshire County Council,1111/1001,Adult Social Care and Health,ASCH,Third Party Payments,EGA,06/07/2018,04-10622,"2,732.00",Ashley House Nursing Home
Nottinghamshire County Council,1111/1001,Adult Social Care and Health,ASCH,Third Party Payments,EGA,06/07/2018,04-10623,2516,Ashley House Nursing Home
Nottinghamshire County Council,1111/1001,Adult Social Care and Health,ASCH,Third Party Payments,EGA,06/07/2018,04-10629,"2,672.00",Ashley House Nursing Home
Nottinghamshire County Council,1111/1001,Adult Social Care and Health,ASCH,Third Party Payments,EGA,06/07/2018,04-10636,2496,Ashley House Nursing Home
Nottinghamshire County Council,1111/1001,Adult Social Care and Health,ASCH,Third Party Payments,EGA,06/07/2018,04-10637,"2,672.00",Ashley House Nursing Home
Nottinghamshire County Council,1111/1001,Adult Social Care and Health,ASCH,Third Party Payments,EGA,06/07/2018,04-10658,2672,Ashley House Nursing Home
Nottinghamshire County Council,1111/1001,Adult Social Care and Health,ASCH,Third Party Payments,EGA,06/07/2018,04-10661,"2,712.00",Ashley House Nursing Home
Nottinghamshire County Council,1111/1001,Adult Social Care and Health,ASCH,Third Party Payments,EGA,06/07/2018,04-10668,2752,Ashley House Nursing Home
Nottinghamshire County Council,1111/1001,Adult Social Care and Health,ASCH,Third Party Payments,EGA,06/07/2018,04-10669,"2,672.00",Ashley House Nursing Home
Nottinghamshire County Council,1111/1001,Adult Social Care and Health,ASCH,Third Party Payments,EGA,06/07/2018,04-10670,"2,672.00",Ashley House Nursing Home
Nottinghamshire County Council,1111/1001,Adult Social Care and Health,ASCH,Third Party Payments,EGA,06/07/2018,04-10683,"2,672.00",Ashley House Nursing Home
Nottinghamshire County Council,1111/1001,Adult Social Care and Health,ASCH,Third Party Payments,EGA,06/07/2018,04-10684,"2,496.00",Ashley House Nursing Home
Nottinghamshire County Council,1111/1001,Adult Social Care and Health,ASCH,Third Party Payments,EGA,06/07/2018,04-10711,2712,Ashley House Nursing Home
Nottinghamshire County Council,1111/1001,Adult Social Care and Health,ASCH,Third Party Payments,EGA,06/07/2018,04-10721,"2,456.00",Ashley House Nursing Home
Nottinghamshire County Council,1111/1001,Adult Social Care and Health,ASCH,Third Party Payments,EGA,06/07/2018,04-10742,"2,672.00",Ashley House Nursing Home
Nottinghamshire County Council,1111/1001,Adult Social Care and Health,ASCH,Third Party Payments,EGA,06/07/2018,04-10745,"2,338.28",Ashley House Nursing Home
Nottinghamshire County Council,1111/1001,Adult Social Care and Health,ASCH,Third Party Payments,EGA,06/07/2018,04-10749,"2,672.00",Ashley House Nursing Home
Nottinghamshire County Council,1111/1001,Adult Social Care and Health,ASCH,Third Party Payments,EGA,06/07/2018,04-10753,2732,Ashley House Nursing Home
Nottinghamshire County Council,1111/1001,Adult Social Care and Health,ASCH,Third Party Payments,EGA,06/07/2018,04-10757,"2,672.00",Ashley House Nursing Home
Nottinghamshire County Council,1111/1001,Adult Social Care and Health,ASCH,Third Party Payments,EGA,06/07/2018,04-10765,"2,496.00",Ashley House Nursing Home
Nottinghamshire County Council,1111/1001,Adult Social Care and Health,ASCH,Third Party Payments,EGA,06/07/2018,04-10770,"2,672.00",Ashley House Nursing Home
Nottinghamshire County Council,1111/1001,Adult Social Care and Health,ASCH,Third Party Payments,EGA,06/07/2018,04-10773,2672,Ashley House Nursing Home
Nottinghamshire County Council,1111/1001,Adult Social Care and Health,ASCH,Third Party Payments,EGA,06/07/2018,04-10776,2672,Ashley House Nursing Home
Nottinghamshire County Council,1111/1001,Adult Social Care and Health,ASCH,Third Party Payments,EGA,06/07/2018,04-10788,"2,692.00",Ashley House Nursing Home
Nottinghamshire County Council,1111/1001,Adult Social Care and Health,ASCH,Third Party Payments,EGA,06/07/2018,04-10789,"2,752.00",Ashley House Nursing Home
Nottinghamshire County Council,1111/1001,Adult Social Care and Health,ASCH,Third Party Payments,EGA,06/07/2018,04-10793,2672,Ashley House Nursing Home
Nottinghamshire County Council,1111/1001,Adult Social Care and Health,ASCH,Third Party Payments,EGA,06/07/2018,04-10798,"2,732.00",Ashley House Nursing Home
Nottinghamshire County Council,1111/1001,Adult Social Care and Health,ASCH,Third Party Payments,EGA,06/07/2018,04-10799,2672,Ashley House Nursing Home
Nottinghamshire County Council,1111/1001,Adult Social Care and Health,ASCH,Third Party Payments,EGA,06/07/2018,04-10802,"2,672.00",Ashley House Nursing Home
Nottinghamshire County Council,1111/1001,Adult Social Care and Health,ASCH,Third Party Payments,EGA,06/07/2018,04-10806,"2,672.00",Ashley House Nursing Home
Nottinghamshire County Council,1111/1001,Adult Social Care and Health,ASCH,Third Party Payments,EGA,06/07/2018,04-10685,2384,Ashton Court
Nottinghamshire County Council,1111/1001,Adult Social Care and Health,ASCH,Third Party Payments,EGA,06/07/2018,04-10692,2384,Ashton Court
Nottinghamshire County Council,1111/1001,Adult Social Care and Health,ASCH,Third Party Payments,EGA,06/07/2018,04-10706,"2,384.00",Ashton Court
Nottinghamshire County Council,1111/1001,Adult Social Care and Health,ASCH,Third Party Payments,EGA,06/07/2018,04-10713,2192,Ashton Court
Nottinghamshire County Council,1111/1001,Adult Social Care and Health,ASCH,Third Party Payments,EGA,06/07/2018,04-10725,"2,384.00",Ashton Court
Nottinghamshire County Council,1111/1001,Adult Social Care and Health,ASCH,Third Party Payments,EGA,06/07/2018,04-10730,"2,192.00",Ashton Court
Nottinghamshire County Council,1111/1001,Adult Social Care and Health,ASCH,Third Party Payments,EGA,06/07/2018,04-10736,"2,384.00",Ashton Court
Nottinghamshire County Council,1111/1001,Adult Social Care and Health,ASCH,Third Party Payments,EGA,06/07/2018,04-10767,"2,384.00",Ashton Court
Nottinghamshire County Council,1111/1001,Adult Social Care and Health,ASCH,Third Party Payments,EGA,06/07/2018,04-10792,2384,Ashton Court
Nottinghamshire County Council,1111/1001,Adult Social Care and Health,ASCH,Third Party Payments,EGA,06/07/2018,04-10619,843.14,Aslockton Hall Nursing Home
Nottinghamshire County Council,1111/1001,Adult Social Care and Health,ASCH,Third Party Payments,EGA,06/07/2018,04-10625,"2,571.00",Aslockton Hall Nursing Home
Nottinghamshire County Council,1111/1001,Adult Social Care and Health,ASCH,Third Party Payments,EGA,06/07/2018,04-10665,"2,282.00",Aslockton Hall Nursing Home
Nottinghamshire County Council,1111/1001,Adult Social Care and Health,ASCH,Third Party Payments,EGA,06/07/2018,04-10771,2224,Aslockton Hall Nursing Home
Nottinghamshire County Council,1111/1001,Adult Social Care and Health,ASCH,Third Party Payments,EGA,06/07/2018,04-10855,"2,456.00",Baily House
Nottinghamshire County Council,1111/1001,Adult Social Care and Health,ASCH,Third Party Payments,EGA,06/07/2018,04-10857,"2,376.00",Baily House
Nottinghamshire County Council,1111/1001,Adult Social Care and Health,ASCH,Third Party Payments,EGA,06/07/2018,04-10861,2256,Baily House
Nottinghamshire County Council,1111/1001,Adult Social Care and Health,ASCH,Third Party Payments,EGA,06/07/2018,04-10891,2336,Baily House
Nottinghamshire County Council,1111/1001,Adult Social Care and Health,ASCH,Third Party Payments,EGA,06/07/2018,04-10899,2256,Baily House
Nottinghamshire County Council,1111/1001,Adult Social Care and Health,ASCH,Third Party Payments,EGA,06/07/2018,04-10903,2256,Baily House
Nottinghamshire County Council,1111/1001,Adult Social Care and Health,ASCH,Third Party Payments,EGA,06/07/2018,04-10905,2297.36,Baily House
Nottinghamshire County Council,1111/1001,Adult Social Care and Health,ASCH,Third Party Payments,EGA,06/07/2018,04-10919,2256,Baily House
Nottinghamshire County Council,1111/1001,Adult Social Care and Health,ASCH,Third Party Payments,EGA,06/07/2018,04-10926,2376,Baily House
Nottinghamshire County Council,1111/1001,Adult Social Care and Health,ASCH,Third Party Payments,EGA,06/07/2018,04-10934,2376,Baily House
Nottinghamshire County Council,1111/1001,Adult Social Care and Health,ASCH,Third Party Payments,EGA,06/07/2018,04-10948,2456,Baily House
Nottinghamshire County Council,1111/1001,Adult Social Care and Health,ASCH,Third Party Payments,EGA,06/07/2018,04-10977,2656,Baily House
Nottinghamshire County Council,1111/1001,Adult Social Care and Health,ASCH,Third Party Payments,EGA,06/07/2018,04-10986,2356,Baily House
Nottinghamshire County Council,1111/1001,Adult Social Care and Health,ASCH,Third Party Payments,EGA,06/07/2018,04-11014,2456,Baily House
Nottinghamshire County Council,1111/1001,Adult Social Care and Health,ASCH,Third Party Payments,EGA,06/07/2018,04-11023,2376,Baily House
Nottinghamshire County Council,1111/1001,Adult Social Care and Health,ASCH,Third Party Payments,EGA,06/07/2018,04-11029,2376,Baily House
Nottinghamshire County Council,1111/1001,Adult Social Care and Health,ASCH,Third Party Payments,EGA,06/07/2018,04-11074,2356,Baily House
Nottinghamshire County Council,1111/1001,Adult Social Care and Health,ASCH,Third Party Payments,EGA,06/07/2018,04-11080,2456,Baily House
Nottinghamshire County Council,1111/1001,Adult Social Care and Health,ASCH,Third Party Payments,EGA,06/07/2018,04-11093,2256,Baily House
Nottinghamshire County Council,1111/1001,Adult Social Care and Health,ASCH,Third Party Payments,EGA,06/07/2018,04-11101,2376,Baily House
Nottinghamshire County Council,1111/1001,Adult Social Care and Health,ASCH,Third Party Payments,EGA,06/07/2018,04-11103,2376,Baily House
Nottinghamshire County Council,1111/1001,Adult Social Care and Health,ASCH,Third Party Payments,EGA,06/07/2018,04-10988,2016,Balmore Country House (My Care Ltd)
Nottinghamshire County Council,1111/1001,Adult Social Care and Health,ASCH,Third Party Payments,EGA,06/07/2018,04-11010,2016,Balmore Country House (My Care Ltd)
Nottinghamshire County Council,1111/1001,Adult Social Care and Health,ASCH,Third Party Payments,EGA,06/07/2018,04-11017,2016,Balmore Country House (My Care Ltd)
Nottinghamshire County Council,1111/1001,Adult Social Care and Health,ASCH,Third Party Payments,EGA,06/07/2018,04-11046,2260,Balmore Country House (My Care Ltd)
Nottinghamshire County Council,1111/1001,Adult Social Care and Health,ASCH,Third Party Payments,EGA,06/07/2018,04-11108,2856,Balmore Country House (My Care Ltd)
Nottinghamshire County Council,1111/1001,Adult Social Care and Health,ASCH,Third Party Payments,EGA,06/07/2018,04-11142,2016,Balmore Country House (My Care Ltd)
Nottinghamshire County Council,1111/1001,Adult Social Care and Health,ASCH,Third Party Payments,EGA,06/07/2018,04-11812,"6,394.36",Barley View (Lifeways)
Nottinghamshire County Council,1111/1001,Adult Social Care and Health,ASCH,Third Party Payments,EGA,06/07/2018,04-11877,"13,131.40",Barley View (Lifeways)
Nottinghamshire County Council,1111/1001,Adult Social Care and Health,ASCH,Third Party Payments,EGA,06/07/2018,04-11913,"6,290.48",Barley View (Lifeways)
Nottinghamshire County Council,1111/1001,Adult Social Care and Health,ASCH,Third Party Payments,EGA,06/07/2018,04-12057,"6,487.68",Barley View (Lifeways)
Nottinghamshire County Council,1111/1001,Adult Social Care and Health,ASCH,Third Party Payments,EGA,06/07/2018,04-10890,2392,Barnby Court C H (HC One)
Nottinghamshire County Council,1111/1001,Adult Social Care and Health,ASCH,Third Party Payments,EGA,06/07/2018,04-10909,2192,Barnby Court C H (HC One)
Nottinghamshire County Council,1111/1001,Adult Social Care and Health,ASCH,Third Party Payments,EGA,06/07/2018,04-10941,2192,Barnby Court C H (HC One)
Nottinghamshire County Council,1111/1001,Adult Social Care and Health,ASCH,Third Party Payments,EGA,06/07/2018,04-11006,2192,Barnby Court C H (HC One)
Nottinghamshire County Council,1111/1001,Adult Social Care and Health,ASCH,Third Party Payments,EGA,06/07/2018,04-11073,2192,Barnby Court C H (HC One)
Nottinghamshire County Council,1111/1001,Adult Social Care and Health,ASCH,Third Party Payments,EGA,06/07/2018,04-11075,2192,Barnby Court C H (HC One)
Nottinghamshire County Council,1111/1001,Adult Social Care and Health,ASCH,Third Party Payments,EGA,06/07/2018,04-11089,2192,Barnby Court C H (HC One)
Nottinghamshire County Council,1111/1001,Adult Social Care and Health,ASCH,Third Party Payments,EGA,06/07/2018,04-10907,2124,Bassingham Nursing Home
Nottinghamshire County Council,1111/1001,Adult Social Care and Health,ASCH,Third Party Payments,EGA,06/07/2018,04-10862,2568,Beauvale N H (HC One)
Nottinghamshire County Council,1111/1001,Adult Social Care and Health,ASCH,Third Party Payments,EGA,06/07/2018,04-10872,2192,Beauvale N H (HC One)
Nottinghamshire County Council,1111/1001,Adult Social Care and Health,ASCH,Third Party Payments,EGA,06/07/2018,04-10881,2608,Beauvale N H (HC One)
Nottinghamshire County Council,1111/1001,Adult Social Care and Health,ASCH,Third Party Payments,EGA,06/07/2018,04-10929,2428,Beauvale N H (HC One)
Nottinghamshire County Council,1111/1001,Adult Social Care and Health,ASCH,Third Party Payments,EGA,06/07/2018,04-10940,2426.28,Beauvale N H (HC One)
Nottinghamshire County Council,1111/1001,Adult Social Care and Health,ASCH,Third Party Payments,EGA,06/07/2018,04-10946,2428,Beauvale N H (HC One)
Nottinghamshire County Council,1111/1001,Adult Social Care and Health,ASCH,Third Party Payments,EGA,06/07/2018,04-10968,2192,Beauvale N H (HC One)
Nottinghamshire County Council,1111/1001,Adult Social Care and Health,ASCH,Third Party Payments,EGA,06/07/2018,04-10979,2192,Beauvale N H (HC One)
Nottinghamshire County Council,1111/1001,Adult Social Care and Health,ASCH,Third Party Payments,EGA,06/07/2018,04-11047,2428,Beauvale N H (HC One)
Nottinghamshire County Council,1111/1001,Adult Social Care and Health,ASCH,Third Party Payments,EGA,06/07/2018,04-11048,2428,Beauvale N H (HC One)
Nottinghamshire County Council,1111/1001,Adult Social Care and Health,ASCH,Third Party Payments,EGA,06/07/2018,04-11055,2548,Beauvale N H (HC One)
Nottinghamshire County Council,1111/1001,Adult Social Care and Health,ASCH,Third Party Payments,EGA,06/07/2018,04-11117,2192,Beauvale N H (HC One)
Nottinghamshire County Council,1111/1001,Adult Social Care and Health,ASCH,Third Party Payments,EGA,06/07/2018,04-11132,2428,Beauvale N H (HC One)
Nottinghamshire County Council,1111/1001,Adult Social Care and Health,ASCH,Third Party Payments,EGA,06/07/2018,04-10828,2380,Beech Court Care Home
Nottinghamshire County Council,1111/1001,Adult Social Care and Health,ASCH,Third Party Payments,EGA,06/07/2018,04-10966,2192,Beech Court Care Home
Nottinghamshire County Council,1111/1001,Adult Social Care and Health,ASCH,Third Party Payments,EGA,06/07/2018,04-10967,2320,Beech Court Care Home
Nottinghamshire County Council,1111/1001,Adult Social Care and Health,ASCH,Third Party Payments,EGA,06/07/2018,04-11042,2192,Beech Court Care Home
Nottinghamshire County Council,1111/1001,Adult Social Care and Health,ASCH,Third Party Payments,EGA,06/07/2018,04-11054,2192,Beech Court Care Home
Nottinghamshire County Council,1111/1001,Adult Social Care and Health,ASCH,Third Party Payments,EGA,06/07/2018,04-11088,2192,Beech Court Care Home
Nottinghamshire County Council,1111/1001,Adult Social Care and Health,ASCH,Third Party Payments,EGA,06/07/2018,04-11134,2192,Beech Court Care Home
Nottinghamshire County Council,1111/1001,Adult Social Care and Health,ASCH,Third Party Payments,EGA,06/07/2018,04-11143,2192,Beech Court Care Home
Nottinghamshire County Council,1111/1001,Adult Social Care and Health,ASCH,Third Party Payments,EGA,06/07/2018,04-10835,2456,Beech House Residential Home
Nottinghamshire County Council,1111/1001,Adult Social Care and Health,ASCH,Third Party Payments,EGA,06/07/2018,04-10868,2456,Beech House Residential Home
Nottinghamshire County Council,1111/1001,Adult Social Care and Health,ASCH,Third Party Payments,EGA,06/07/2018,04-10902,2456,Beech House Residential Home
Nottinghamshire County Council,1111/1001,Adult Social Care and Health,ASCH,Third Party Payments,EGA,06/07/2018,04-10939,2456,Beech House Residential Home
Nottinghamshire County Council,1111/1001,Adult Social Care and Health,ASCH,Third Party Payments,EGA,06/07/2018,04-10960,2456,Beech House Residential Home
Nottinghamshire County Council,1111/1001,Adult Social Care and Health,ASCH,Third Party Payments,EGA,06/07/2018,04-11015,2456,Beech House Residential Home
Nottinghamshire County Council,1111/1001,Adult Social Care and Health,ASCH,Third Party Payments,EGA,06/07/2018,04-11033,2456,Beech House Residential Home
Nottinghamshire County Council,1111/1001,Adult Social Care and Health,ASCH,Third Party Payments,EGA,06/07/2018,04-11057,2456,Beech House Residential Home
Nottinghamshire County Council,1111/1001,Adult Social Care and Health,ASCH,Third Party Payments,EGA,06/07/2018,04-11076,2456,Beech House Residential Home
Nottinghamshire County Council,1111/1001,Adult Social Care and Health,ASCH,Third Party Payments,EGA,06/07/2018,04-11077,2456,Beech House Residential Home
Nottinghamshire County Council,1111/1001,Adult Social Care and Health,ASCH,Third Party Payments,EGA,06/07/2018,04-11087,2256,Beech House Residential Home
Nottinghamshire County Council,1111/1001,Adult Social Care and Health,ASCH,Third Party Payments,EGA,06/07/2018,04-11091,2256,Beech House Residential Home
Nottinghamshire County Council,1111/1001,Adult Social Care and Health,ASCH,Third Party Payments,EGA,06/07/2018,04-11097,2456,Beech House Residential Home
Nottinghamshire County Council,1111/1001,Adult Social Care and Health,ASCH,Third Party Payments,EGA,06/07/2018,04-11106,2456,Beech House Residential Home
Nottinghamshire County Council,1111/1001,Adult Social Care and Health,ASCH,Third Party Payments,EGA,06/07/2018,04-11128,2456,Beech House Residential Home
Nottinghamshire County Council,1111/1001,Adult Social Care and Health,ASCH,Third Party Payments,EGA,06/07/2018,04-10864,12704.08,Beech Tree Hall
Nottinghamshire County Council,1111/1001,Adult Social Care and Health,ASCH,Third Party Payments,EGA,06/07/2018,04-10918,14701.84,Beech Tree Hall
Nottinghamshire County Council,1111/1001,Adult Social Care and Health,ASCH,Third Party Payments,EGA,06/07/2018,04-11028,17561.52,Beech Tree Hall
Nottinghamshire County Council,1111/1001,Adult Social Care and Health,ASCH,Third Party Payments,EGA,06/07/2018,04-11038,10812.8,Beech Tree Hall
Nottinghamshire County Council,1111/1001,Adult Social Care and Health,ASCH,Third Party Payments,EGA,06/07/2018,04-11070,2222.04,Beechdale House Nursing Home
Nottinghamshire County Council,1111/1001,Adult Social Care and Health,ASCH,Third Party Payments,EGA,06/07/2018,04-11125,2206.04,Beechdale House Nursing Home
Nottinghamshire County Council,1111/1001,Adult Social Care and Health,ASCH,Third Party Payments,EGA,06/07/2018,04-10839,2152,Beechdale Manor Care Home
Nottinghamshire County Council,1111/1001,Adult Social Care and Health,ASCH,Third Party Payments,EGA,06/07/2018,04-11026,2222.04,Beechdale Manor Care Home
Nottinghamshire County Council,1111/1001,Adult Social Care and Health,ASCH,Third Party Payments,EGA,06/07/2018,04-10866,1864,Beechdene Residential Home
Nottinghamshire County Council,1111/1001,Adult Social Care and Health,ASCH,Third Party Payments,EGA,06/07/2018,04-10884,1791.28,Beechdene Residential Home
Nottinghamshire County Council,1111/1001,Adult Social Care and Health,ASCH,Third Party Payments,EGA,06/07/2018,04-10912,2055.48,Beechdene Residential Home
Nottinghamshire County Council,1111/1001,Adult Social Care and Health,ASCH,Third Party Payments,EGA,06/07/2018,04-10922,1900.88,Beechdene Residential Home
Nottinghamshire County Council,1111/1001,Adult Social Care and Health,ASCH,Third Party Payments,EGA,06/07/2018,04-10950,1963.12,Beechdene Residential Home
Nottinghamshire County Council,1111/1001,Adult Social Care and Health,ASCH,Third Party Payments,EGA,06/07/2018,04-10954,1791.28,Beechdene Residential Home
Nottinghamshire County Council,1111/1001,Adult Social Care and Health,ASCH,Third Party Payments,EGA,06/07/2018,04-10956,1791.28,Beechdene Residential Home
Nottinghamshire County Council,1111/1001,Adult Social Care and Health,ASCH,Third Party Payments,EGA,06/07/2018,04-10994,1791.28,Beechdene Residential Home
Nottinghamshire County Council,1111/1001,Adult Social Care and Health,ASCH,Third Party Payments,EGA,06/07/2018,04-11008,2015.16,Beechdene Residential Home
Nottinghamshire County Council,1111/1001,Adult Social Care and Health,ASCH,Third Party Payments,EGA,06/07/2018,04-11035,1855.32,Beechdene Residential Home
Nottinghamshire County Council,1111/1001,Adult Social Care and Health,ASCH,Third Party Payments,EGA,06/07/2018,04-11052,1791.28,Beechdene Residential Home
Nottinghamshire County Council,1111/1001,Adult Social Care and Health,ASCH,Third Party Payments,EGA,06/07/2018,04-11085,2081.12,Beechdene Residential Home
Nottinghamshire County Council,1111/1001,Adult Social Care and Health,ASCH,Third Party Payments,EGA,06/07/2018,04-11120,1791.28,Beechdene Residential Home
Nottinghamshire County Council,1111/1001,Adult Social Care and Health,ASCH,Third Party Payments,EGA,06/07/2018,04-11129,1880.8,Beechdene Residential Home
Nottinghamshire County Council,1111/1001,Adult Social Care and Health,ASCH,Third Party Payments,EGA,06/07/2018,04-10865,2428,Beeches N H (HC One)
Nottinghamshire County Council,1111/1001,Adult Social Care and Health,ASCH,Third Party Payments,EGA,06/07/2018,04-10894,2428,Beeches N H (HC One)
Nottinghamshire County Council,1111/1001,Adult Social Care and Health,ASCH,Third Party Payments,EGA,06/07/2018,04-10898,2192,Beeches N H (HC One)
Nottinghamshire County Council,1111/1001,Adult Social Care and Health,ASCH,Third Party Payments,EGA,06/07/2018,04-10989,2428,Beeches N H (HC One)
Nottinghamshire County Council,1111/1001,Adult Social Care and Health,ASCH,Third Party Payments,EGA,06/07/2018,04-10990,2192,Beeches N H (HC One)
Nottinghamshire County Council,1111/1001,Adult Social Care and Health,ASCH,Third Party Payments,EGA,06/07/2018,04-11018,2192,Beeches N H (HC One)
Nottinghamshire County Council,1111/1001,Adult Social Care and Health,ASCH,Third Party Payments,EGA,06/07/2018,04-11022,2192,Beeches N H (HC One)
Nottinghamshire County Council,1111/1001,Adult Social Care and Health,ASCH,Third Party Payments,EGA,06/07/2018,04-11030,2428,Beeches N H (HC One)
Nottinghamshire County Council,1111/1001,Adult Social Care and Health,ASCH,Third Party Payments,EGA,06/07/2018,04-11039,2428,Beeches N H (HC One)
Nottinghamshire County Council,1111/1001,Adult Social Care and Health,ASCH,Third Party Payments,EGA,06/07/2018,04-11040,2192,Beeches N H (HC One)
Nottinghamshire County Council,1111/1001,Adult Social Care and Health,ASCH,Third Party Payments,EGA,06/07/2018,04-11041,2428,Beeches N H (HC One)
Nottinghamshire County Council,1111/1001,Adult Social Care and Health,ASCH,Third Party Payments,EGA,06/07/2018,04-11044,2428,Beeches N H (HC One)
Nottinghamshire County Council,1111/1001,Adult Social Care and Health,ASCH,Third Party Payments,EGA,06/07/2018,04-11051,2192,Beeches N H (HC One)
Nottinghamshire County Council,1111/1001,Adult Social Care and Health,ASCH,Third Party Payments,EGA,06/07/2018,04-11063,2428,Beeches N H (HC One)
Nottinghamshire County Council,1111/1001,Adult Social Care and Health,ASCH,Third Party Payments,EGA,06/07/2018,04-11116,2428,Beeches N H (HC One)
Nottinghamshire County Council,1111/1001,Adult Social Care and Health,ASCH,Third Party Payments,EGA,06/07/2018,04-11130,2428,Beeches N H (HC One)
Nottinghamshire County Council,1111/1001,Adult Social Care and Health,ASCH,Third Party Payments,EGA,06/07/2018,04-11137,2428,Beeches N H (HC One)
Nottinghamshire County Council,1111/1001,Adult Social Care and Health,ASCH,Third Party Payments,EGA,06/07/2018,04-10716,5043.4,Beechwood Nursing Home (NORSACA)
Nottinghamshire County Council,1111/1001,Adult Social Care and Health,ASCH,Third Party Payments,EGA,06/07/2018,04-10739,"5,043.40",Beechwood Nursing Home (NORSACA)
Nottinghamshire County Council,1111/1001,Adult Social Care and Health,ASCH,Third Party Payments,EGA,06/07/2018,04-10834,1972,Beeston Lodge Nursing Home
Nottinghamshire County Council,1111/1001,Adult Social Care and Health,ASCH,Third Party Payments,EGA,06/07/2018,04-10842,"1,972.00",Beeston Lodge Nursing Home
Nottinghamshire County Council,1111/1001,Adult Social Care and Health,ASCH,Third Party Payments,EGA,06/07/2018,04-10897,1972,Beeston Lodge Nursing Home
Nottinghamshire County Council,1111/1001,Adult Social Care and Health,ASCH,Third Party Payments,EGA,06/07/2018,04-10933,2112,Beeston Lodge Nursing Home
Nottinghamshire County Council,1111/1001,Adult Social Care and Health,ASCH,Third Party Payments,EGA,06/07/2018,04-10943,1972,Beeston Lodge Nursing Home
Nottinghamshire County Council,1111/1001,Adult Social Care and Health,ASCH,Third Party Payments,EGA,06/07/2018,04-10949,2544,Beeston Lodge Nursing Home
Nottinghamshire County Council,1111/1001,Adult Social Care and Health,ASCH,Third Party Payments,EGA,06/07/2018,04-11001,1972,Beeston Lodge Nursing Home
Nottinghamshire County Council,1111/1001,Adult Social Care and Health,ASCH,Third Party Payments,EGA,06/07/2018,04-11136,1972,Beeston Lodge Nursing Home
Nottinghamshire County Council,1111/1001,Adult Social Care and Health,ASCH,Third Party Payments,EGA,06/07/2018,04-11141,1972,Beeston Lodge Nursing Home
Nottinghamshire County Council,1111/1001,Adult Social Care and Health,ASCH,Third Party Payments,EGA,06/07/2018,04-11078,14840.72,Belmont Road (Blue Sky Care Ltd)
Nottinghamshire County Council,1111/1001,Adult Social Care and Health,ASCH,Third Party Payments,EGA,06/07/2018,04-10824,2380,Berry Hill Park(HC One)
Nottinghamshire County Council,1111/1001,Adult Social Care and Health,ASCH,Third Party Payments,EGA,06/07/2018,04-10831,2380,Berry Hill Park(HC One)
Nottinghamshire County Council,1111/1001,Adult Social Care and Health,ASCH,Third Party Payments,EGA,06/07/2018,04-10832,2380,Berry Hill Park(HC One)
Nottinghamshire County Council,1111/1001,Adult Social Care and Health,ASCH,Third Party Payments,EGA,06/07/2018,04-10836,"2,380.00",Berry Hill Park(HC One)
Nottinghamshire County Council,1111/1001,Adult Social Care and Health,ASCH,Third Party Payments,EGA,06/07/2018,04-10880,2240,Berry Hill Park(HC One)
Nottinghamshire County Council,1111/1001,Adult Social Care and Health,ASCH,Third Party Payments,EGA,06/07/2018,04-10883,2140,Berry Hill Park(HC One)
Nottinghamshire County Council,1111/1001,Adult Social Care and Health,ASCH,Third Party Payments,EGA,06/07/2018,04-10900,2140,Berry Hill Park(HC One)
Nottinghamshire County Council,1111/1001,Adult Social Care and Health,ASCH,Third Party Payments,EGA,06/07/2018,04-10925,2380,Berry Hill Park(HC One)
Nottinghamshire County Council,1111/1001,Adult Social Care and Health,ASCH,Third Party Payments,EGA,06/07/2018,04-10937,2380,Berry Hill Park(HC One)
Nottinghamshire County Council,1111/1001,Adult Social Care and Health,ASCH,Third Party Payments,EGA,06/07/2018,04-10938,2380,Berry Hill Park(HC One)
Nottinghamshire County Council,1111/1001,Adult Social Care and Health,ASCH,Third Party Payments,EGA,06/07/2018,04-10969,2480,Berry Hill Park(HC One)
Nottinghamshire County Council,1111/1001,Adult Social Care and Health,ASCH,Third Party Payments,EGA,06/07/2018,04-10992,2380,Berry Hill Park(HC One)
Nottinghamshire County Council,1111/1001,Adult Social Care and Health,ASCH,Third Party Payments,EGA,06/07/2018,04-10995,2380,Berry Hill Park(HC One)
Nottinghamshire County Council,1111/1001,Adult Social Care and Health,ASCH,Third Party Payments,EGA,06/07/2018,04-11050,2240,Berry Hill Park(HC One)
Nottinghamshire County Council,1111/1001,Adult Social Care and Health,ASCH,Third Party Payments,EGA,06/07/2018,04-11069,2380,Berry Hill Park(HC One)
Nottinghamshire County Council,1111/1001,Adult Social Care and Health,ASCH,Third Party Payments,EGA,06/07/2018,04-11072,2140,Berry Hill Park(HC One)
Nottinghamshire County Council,1111/1001,Adult Social Care and Health,ASCH,Third Party Payments,EGA,06/07/2018,04-11084,2380,Berry Hill Park(HC One)
Nottinghamshire County Council,1111/1001,Adult Social Care and Health,ASCH,Third Party Payments,EGA,06/07/2018,04-11105,2140,Berry Hill Park(HC One)
Nottinghamshire County Council,1111/1001,Adult Social Care and Health,ASCH,Third Party Payments,EGA,06/07/2018,04-11133,2380,Berry Hill Park(HC One)
Nottinghamshire County Council,1111/1001,Adult Social Care and Health,ASCH,Third Party Payments,EGA,06/07/2018,04-10837,"2,283.96",Blackwell Care Centre
Nottinghamshire County Council,1111/1001,Adult Social Care and Health,ASCH,Third Party Payments,EGA,06/07/2018,04-11027,2283.96,Blackwell Care Centre
Nottinghamshire County Council,1111/1001,Adult Social Care and Health,ASCH,Third Party Payments,EGA,06/07/2018,04-11115,2373.4,Blenheim Lodge Care Centre
Nottinghamshire County Council,1111/1001,Adult Social Care and Health,ASCH,Third Party Payments,EGA,06/07/2018,04-10845,2192,Bluebell Lodge
Nottinghamshire County Council,1111/1001,Adult Social Care and Health,ASCH,Third Party Payments,EGA,06/07/2018,04-10858,2192,Bluebell Lodge
Nottinghamshire County Council,1111/1001,Adult Social Care and Health,ASCH,Third Party Payments,EGA,06/07/2018,04-10867,2192,Bluebell Lodge
Nottinghamshire County Council,1111/1001,Adult Social Care and Health,ASCH,Third Party Payments,EGA,06/07/2018,04-10870,2192,Bluebell Lodge
Nottinghamshire County Council,1111/1001,Adult Social Care and Health,ASCH,Third Party Payments,EGA,06/07/2018,04-10874,2384,Bluebell Lodge
Nottinghamshire County Council,1111/1001,Adult Social Care and Health,ASCH,Third Party Payments,EGA,06/07/2018,04-10882,2192,Bluebell Lodge
Nottinghamshire County Council,1111/1001,Adult Social Care and Health,ASCH,Third Party Payments,EGA,06/07/2018,04-10889,2192,Bluebell Lodge
Nottinghamshire County Council,1111/1001,Adult Social Care and Health,ASCH,Third Party Payments,EGA,06/07/2018,04-10904,2192,Bluebell Lodge
Nottinghamshire County Council,1111/1001,Adult Social Care and Health,ASCH,Third Party Payments,EGA,06/07/2018,04-10906,2192,Bluebell Lodge
Nottinghamshire County Council,1111/1001,Adult Social Care and Health,ASCH,Third Party Payments,EGA,06/07/2018,04-10913,2192,Bluebell Lodge
Nottinghamshire County Council,1111/1001,Adult Social Care and Health,ASCH,Third Party Payments,EGA,06/07/2018,04-10917,1096,Bluebell Lodge
Nottinghamshire County Council,1111/1001,Adult Social Care and Health,ASCH,Third Party Payments,EGA,06/07/2018,04-10928,2192,Bluebell Lodge
Nottinghamshire County Council,1111/1001,Adult Social Care and Health,ASCH,Third Party Payments,EGA,06/07/2018,04-10951,2192,Bluebell Lodge
Nottinghamshire County Council,1111/1001,Adult Social Care and Health,ASCH,Third Party Payments,EGA,06/07/2018,04-10998,2192,Bluebell Lodge
Nottinghamshire County Council,1111/1001,Adult Social Care and Health,ASCH,Third Party Payments,EGA,06/07/2018,04-11005,2192,Bluebell Lodge
Nottinghamshire County Council,1111/1001,Adult Social Care and Health,ASCH,Third Party Payments,EGA,06/07/2018,04-11034,2192,Bluebell Lodge
Nottinghamshire County Council,1111/1001,Adult Social Care and Health,ASCH,Third Party Payments,EGA,06/07/2018,04-11064,2192,Bluebell Lodge
Nottinghamshire County Council,1111/1001,Adult Social Care and Health,ASCH,Third Party Payments,EGA,06/07/2018,04-11113,2192,Bluebell Lodge
Nottinghamshire County Council,1111/1001,Adult Social Care and Health,ASCH,Third Party Payments,EGA,06/07/2018,04-10829,2192,Blyth Country House Care Home
Nottinghamshire County Council,1111/1001,Adult Social Care and Health,ASCH,Third Party Payments,EGA,06/07/2018,04-10849,2428,Blyth Country House Care Home
Nottinghamshire County Council,1111/1001,Adult Social Care and Health,ASCH,Third Party Payments,EGA,06/07/2018,04-10850,"2,428.00",Blyth Country House Care Home
Nottinghamshire County Council,1111/1001,Adult Social Care and Health,ASCH,Third Party Payments,EGA,06/07/2018,04-10863,2428,Blyth Country House Care Home
Nottinghamshire County Council,1111/1001,Adult Social Care and Health,ASCH,Third Party Payments,EGA,06/07/2018,04-10876,2412,Blyth Country House Care Home
Nottinghamshire County Council,1111/1001,Adult Social Care and Health,ASCH,Third Party Payments,EGA,06/07/2018,04-10931,2428,Blyth Country House Care Home
Nottinghamshire County Council,1111/1001,Adult Social Care and Health,ASCH,Third Party Payments,EGA,06/07/2018,04-11086,2428,Blyth Country House Care Home
Nottinghamshire County Council,1111/1001,Adult Social Care and Health,ASCH,Third Party Payments,EGA,06/07/2018,04-10844,"1,816.00",Bowbridge Court (Ideal)
Nottinghamshire County Council,1111/1001,Adult Social Care and Health,ASCH,Third Party Payments,EGA,06/07/2018,04-10887,2044,Bowbridge Court (Ideal)
Nottinghamshire County Council,1111/1001,Adult Social Care and Health,ASCH,Third Party Payments,EGA,06/07/2018,04-10896,1816,Bowbridge Court (Ideal)
Nottinghamshire County Council,1111/1001,Adult Social Care and Health,ASCH,Third Party Payments,EGA,06/07/2018,04-10911,1816,Bowbridge Court (Ideal)
Nottinghamshire County Council,1111/1001,Adult Social Care and Health,ASCH,Third Party Payments,EGA,06/07/2018,04-10930,1816,Bowbridge Court (Ideal)
Nottinghamshire County Council,1111/1001,Adult Social Care and Health,ASCH,Third Party Payments,EGA,06/07/2018,04-10982,2016,Bowbridge Court (Ideal)
Nottinghamshire County Council,1111/1001,Adult Social Care and Health,ASCH,Third Party Payments,EGA,06/07/2018,04-10999,1816,Bowbridge Court (Ideal)
Nottinghamshire County Council,1111/1001,Adult Social Care and Health,ASCH,Third Party Payments,EGA,06/07/2018,04-11009,1816,Bowbridge Court (Ideal)
Nottinghamshire County Council,1111/1001,Adult Social Care and Health,ASCH,Third Party Payments,EGA,06/07/2018,04-11062,1816,Bowbridge Court (Ideal)
Nottinghamshire County Council,1111/1001,Adult Social Care and Health,ASCH,Third Party Payments,EGA,06/07/2018,04-11095,3160,Bowbridge Court (Ideal)
Nottinghamshire County Council,1111/1001,Adult Social Care and Health,ASCH,Third Party Payments,EGA,06/07/2018,04-11100,1816,Bowbridge Court (Ideal)
Nottinghamshire County Council,1111/1001,Adult Social Care and Health,ASCH,Third Party Payments,EGA,06/07/2018,04-11096,5724.4,Bracken Villa (Voyage)
Nottinghamshire County Council,1111/1001,Adult Social Care and Health,ASCH,Third Party Payments,EGA,06/07/2018,04-11126,2145.2,Brackendale House (Prime Life)
Nottinghamshire County Council,1111/1001,Adult Social Care and Health,ASCH,Third Party Payments,EGA,06/07/2018,04-10886,2140,Brailsford House Care Home
Nottinghamshire County Council,1111/1001,Adult Social Care and Health,ASCH,Third Party Payments,EGA,06/07/2018,04-10895,2140,Brailsford House Care Home
Nottinghamshire County Council,1111/1001,Adult Social Care and Health,ASCH,Third Party Payments,EGA,06/07/2018,04-10924,535,Brailsford House Care Home
Nottinghamshire County Council,1111/1001,Adult Social Care and Health,ASCH,Third Party Payments,EGA,06/07/2018,04-10945,2140,Brailsford House Care Home
Nottinghamshire County Council,1111/1001,Adult Social Care and Health,ASCH,Third Party Payments,EGA,06/07/2018,04-10983,2140,Brailsford House Care Home
Nottinghamshire County Council,1111/1001,Adult Social Care and Health,ASCH,Third Party Payments,EGA,06/07/2018,04-10997,2140,Brailsford House Care Home
Nottinghamshire County Council,1111/1001,Adult Social Care and Health,ASCH,Third Party Payments,EGA,06/07/2018,04-11068,2140,Brailsford House Care Home
Nottinghamshire County Council,1111/1001,Adult Social Care and Health,ASCH,Third Party Payments,EGA,06/07/2018,04-11139,2140,Brailsford House Care Home
Nottinghamshire County Council,1111/1001,Adult Social Care and Health,ASCH,Third Party Payments,EGA,06/07/2018,04-11122,5314.29,Bramble Lodge Residential Home
Nottinghamshire County Council,1111/1001,Adult Social Care and Health,ASCH,Third Party Payments,EGA,06/07/2018,04-11144,2289.6,Bramble Lodge Residential Home
Nottinghamshire County Council,1111/1001,Adult Social Care and Health,ASCH,Third Party Payments,EGA,06/07/2018,04-10840,"2,696.00",Bramcote Hills Care Home
Nottinghamshire County Council,1111/1001,Adult Social Care and Health,ASCH,Third Party Payments,EGA,06/07/2018,04-10846,2496,Bramcote Hills Care Home
Nottinghamshire County Council,1111/1001,Adult Social Care and Health,ASCH,Third Party Payments,EGA,06/07/2018,04-10873,2456,Bramcote Hills Care Home
Nottinghamshire County Council,1111/1001,Adult Social Care and Health,ASCH,Third Party Payments,EGA,06/07/2018,04-10875,2356,Bramcote Hills Care Home
Nottinghamshire County Council,1111/1001,Adult Social Care and Health,ASCH,Third Party Payments,EGA,06/07/2018,04-10888,2496,Bramcote Hills Care Home
Nottinghamshire County Council,1111/1001,Adult Social Care and Health,ASCH,Third Party Payments,EGA,06/07/2018,04-10927,2256,Bramcote Hills Care Home
Nottinghamshire County Council,1111/1001,Adult Social Care and Health,ASCH,Third Party Payments,EGA,06/07/2018,04-10974,2256,Bramcote Hills Care Home
Nottinghamshire County Council,1111/1001,Adult Social Care and Health,ASCH,Third Party Payments,EGA,06/07/2018,04-10996,2420.72,Bramcote Hills Care Home
Nottinghamshire County Council,1111/1001,Adult Social Care and Health,ASCH,Third Party Payments,EGA,06/07/2018,04-11016,2496,Bramcote Hills Care Home
Nottinghamshire County Council,1111/1001,Adult Social Care and Health,ASCH,Third Party Payments,EGA,06/07/2018,04-11019,2696,Bramcote Hills Care Home
Nottinghamshire County Council,1111/1001,Adult Social Care and Health,ASCH,Third Party Payments,EGA,06/07/2018,04-11056,2456,Bramcote Hills Care Home
Nottinghamshire County Council,1111/1001,Adult Social Care and Health,ASCH,Third Party Payments,EGA,06/07/2018,04-11060,2256,Bramcote Hills Care Home
Nottinghamshire County Council,1111/1001,Adult Social Care and Health,ASCH,Third Party Payments,EGA,06/07/2018,04-11079,2256,Bramcote Hills Care Home
Nottinghamshire County Council,1111/1001,Adult Social Care and Health,ASCH,Third Party Payments,EGA,06/07/2018,04-11098,2496,Bramcote Hills Care Home
Nottinghamshire County Council,1111/1001,Adult Social Care and Health,ASCH,Third Party Payments,EGA,06/07/2018,04-11118,2256,Bramcote Hills Care Home
Nottinghamshire County Council,1111/1001,Adult Social Care and Health,ASCH,Third Party Payments,EGA,06/07/2018,04-10825,2256,Bramwell
Nottinghamshire County Council,1111/1001,Adult Social Care and Health,ASCH,Third Party Payments,EGA,06/07/2018,04-10827,2256,Bramwell
Nottinghamshire County Council,1111/1001,Adult Social Care and Health,ASCH,Third Party Payments,EGA,06/07/2018,04-10830,2256,Bramwell
Nottinghamshire County Council,1111/1001,Adult Social Care and Health,ASCH,Third Party Payments,EGA,06/07/2018,04-10833,"3,264.00",Bramwell
Nottinghamshire County Council,1111/1001,Adult Social Care and Health,ASCH,Third Party Payments,EGA,06/07/2018,04-10841,"2,256.00",Bramwell
Nottinghamshire County Council,1111/1001,Adult Social Care and Health,ASCH,Third Party Payments,EGA,06/07/2018,04-10854,"2,256.00",Bramwell
Nottinghamshire County Council,1111/1001,Adult Social Care and Health,ASCH,Third Party Payments,EGA,06/07/2018,04-10856,"2,256.00",Bramwell
Nottinghamshire County Council,1111/1001,Adult Social Care and Health,ASCH,Third Party Payments,EGA,06/07/2018,04-10878,2256,Bramwell
Nottinghamshire County Council,1111/1001,Adult Social Care and Health,ASCH,Third Party Payments,EGA,06/07/2018,04-10893,2256,Bramwell
Nottinghamshire County Council,1111/1001,Adult Social Care and Health,ASCH,Third Party Payments,EGA,06/07/2018,04-10914,2256,Bramwell
Nottinghamshire County Council,1111/1001,Adult Social Care and Health,ASCH,Third Party Payments,EGA,06/07/2018,04-10920,2256,Bramwell
Nottinghamshire County Council,1111/1001,Adult Social Care and Health,ASCH,Third Party Payments,EGA,06/07/2018,04-10932,2256,Bramwell
Nottinghamshire County Council,1111/1001,Adult Social Care and Health,ASCH,Third Party Payments,EGA,06/07/2018,04-10935,2256,Bramwell
Nottinghamshire County Council,1111/1001,Adult Social Care and Health,ASCH,Third Party Payments,EGA,06/07/2018,04-10942,2256,Bramwell
Nottinghamshire County Council,1111/1001,Adult Social Care and Health,ASCH,Third Party Payments,EGA,06/07/2018,04-10944,2256,Bramwell
Nottinghamshire County Council,1111/1001,Adult Social Care and Health,ASCH,Third Party Payments,EGA,06/07/2018,04-10947,2256,Bramwell
Nottinghamshire County Council,1111/1001,Adult Social Care and Health,ASCH,Third Party Payments,EGA,06/07/2018,04-10955,2256,Bramwell
Nottinghamshire County Council,1111/1001,Adult Social Care and Health,ASCH,Third Party Payments,EGA,06/07/2018,04-10958,2256,Bramwell
Nottinghamshire County Council,1111/1001,Adult Social Care and Health,ASCH,Third Party Payments,EGA,06/07/2018,04-10965,2256,Bramwell
Nottinghamshire County Council,1111/1001,Adult Social Care and Health,ASCH,Third Party Payments,EGA,06/07/2018,04-10972,3264,Bramwell
Nottinghamshire County Council,1111/1001,Adult Social Care and Health,ASCH,Third Party Payments,EGA,06/07/2018,04-10981,2256,Bramwell
Nottinghamshire County Council,1111/1001,Adult Social Care and Health,ASCH,Third Party Payments,EGA,06/07/2018,04-10991,2256,Bramwell
Nottinghamshire County Council,1111/1001,Adult Social Care and Health,ASCH,Third Party Payments,EGA,06/07/2018,04-11000,2256,Bramwell
Nottinghamshire County Council,1111/1001,Adult Social Care and Health,ASCH,Third Party Payments,EGA,06/07/2018,04-11002,2256,Bramwell
Nottinghamshire County Council,1111/1001,Adult Social Care and Health,ASCH,Third Party Payments,EGA,06/07/2018,04-11003,2256,Bramwell
Nottinghamshire County Council,1111/1001,Adult Social Care and Health,ASCH,Third Party Payments,EGA,06/07/2018,04-11007,2256,Bramwell
Nottinghamshire County Council,1111/1001,Adult Social Care and Health,ASCH,Third Party Payments,EGA,06/07/2018,04-11011,2256,Bramwell
Nottinghamshire County Council,1111/1001,Adult Social Care and Health,ASCH,Third Party Payments,EGA,06/07/2018,04-11013,2256,Bramwell
Nottinghamshire County Council,1111/1001,Adult Social Care and Health,ASCH,Third Party Payments,EGA,06/07/2018,04-11024,2256,Bramwell
Nottinghamshire County Council,1111/1001,Adult Social Care and Health,ASCH,Third Party Payments,EGA,06/07/2018,04-11031,2256,Bramwell
Nottinghamshire County Council,1111/1001,Adult Social Care and Health,ASCH,Third Party Payments,EGA,06/07/2018,04-11043,2256,Bramwell
Nottinghamshire County Council,1111/1001,Adult Social Care and Health,ASCH,Third Party Payments,EGA,06/07/2018,04-11049,2256,Bramwell
Nottinghamshire County Council,1111/1001,Adult Social Care and Health,ASCH,Third Party Payments,EGA,06/07/2018,04-11059,2256,Bramwell
Nottinghamshire County Council,1111/1001,Adult Social Care and Health,ASCH,Third Party Payments,EGA,06/07/2018,04-11066,2256,Bramwell
Nottinghamshire County Council,1111/1001,Adult Social Care and Health,ASCH,Third Party Payments,EGA,06/07/2018,04-11102,2256,Bramwell
Nottinghamshire County Council,1111/1001,Adult Social Care and Health,ASCH,Third Party Payments,EGA,06/07/2018,04-11110,2256,Bramwell
Nottinghamshire County Council,1111/1001,Adult Social Care and Health,ASCH,Third Party Payments,EGA,06/07/2018,04-11111,2256,Bramwell
Nottinghamshire County Council,1111/1001,Adult Social Care and Health,ASCH,Third Party Payments,EGA,06/07/2018,04-11123,2256,Bramwell
Nottinghamshire County Council,1111/1001,Adult Social Care and Health,ASCH,Third Party Payments,EGA,06/07/2018,04-10823,2256,Braywood Gardens (Runwood)
Nottinghamshire County Council,1111/1001,Adult Social Care and Health,ASCH,Third Party Payments,EGA,06/07/2018,04-10826,2456,Braywood Gardens (Runwood)
Nottinghamshire County Council,1111/1001,Adult Social Care and Health,ASCH,Third Party Payments,EGA,06/07/2018,04-10838,"2,456.00",Braywood Gardens (Runwood)
Nottinghamshire County Council,1111/1001,Adult Social Care and Health,ASCH,Third Party Payments,EGA,06/07/2018,04-10843,"2,256.00",Braywood Gardens (Runwood)
Nottinghamshire County Council,1111/1001,Adult Social Care and Health,ASCH,Third Party Payments,EGA,06/07/2018,04-10853,"2,456.00",Braywood Gardens (Runwood)
Nottinghamshire County Council,1111/1001,Adult Social Care and Health,ASCH,Third Party Payments,EGA,06/07/2018,04-10869,2456,Braywood Gardens (Runwood)
Nottinghamshire County Council,1111/1001,Adult Social Care and Health,ASCH,Third Party Payments,EGA,06/07/2018,04-10877,2456,Braywood Gardens (Runwood)
Nottinghamshire County Council,1111/1001,Adult Social Care and Health,ASCH,Third Party Payments,EGA,06/07/2018,04-10885,2456,Braywood Gardens (Runwood)
Nottinghamshire County Council,1111/1001,Adult Social Care and Health,ASCH,Third Party Payments,EGA,06/07/2018,04-10910,2456,Braywood Gardens (Runwood)
Nottinghamshire County Council,1111/1001,Adult Social Care and Health,ASCH,Third Party Payments,EGA,06/07/2018,04-10916,2256,Braywood Gardens (Runwood)
Nottinghamshire County Council,1111/1001,Adult Social Care and Health,ASCH,Third Party Payments,EGA,06/07/2018,04-10921,1692,Braywood Gardens (Runwood)
Nottinghamshire County Council,1111/1001,Adult Social Care and Health,ASCH,Third Party Payments,EGA,06/07/2018,04-10936,2256,Braywood Gardens (Runwood)
Nottinghamshire County Council,1111/1001,Adult Social Care and Health,ASCH,Third Party Payments,EGA,06/07/2018,04-10952,2256,Braywood Gardens (Runwood)
Nottinghamshire County Council,1111/1001,Adult Social Care and Health,ASCH,Third Party Payments,EGA,06/07/2018,04-10953,2256,Braywood Gardens (Runwood)
Nottinghamshire County Council,1111/1001,Adult Social Care and Health,ASCH,Third Party Payments,EGA,06/07/2018,04-10957,2456,Braywood Gardens (Runwood)
Nottinghamshire County Council,1111/1001,Adult Social Care and Health,ASCH,Third Party Payments,EGA,06/07/2018,04-10961,2256,Braywood Gardens (Runwood)
Nottinghamshire County Council,1111/1001,Adult Social Care and Health,ASCH,Third Party Payments,EGA,06/07/2018,04-10963,2456,Braywood Gardens (Runwood)
Nottinghamshire County Council,1111/1001,Adult Social Care and Health,ASCH,Third Party Payments,EGA,06/07/2018,04-10970,2256,Braywood Gardens (Runwood)
Nottinghamshire County Council,1111/1001,Adult Social Care and Health,ASCH,Third Party Payments,EGA,06/07/2018,04-10975,2456,Braywood Gardens (Runwood)
Nottinghamshire County Council,1111/1001,Adult Social Care and Health,ASCH,Third Party Payments,EGA,06/07/2018,04-10976,1933.72,Braywood Gardens (Runwood)
Nottinghamshire County Council,1111/1001,Adult Social Care and Health,ASCH,Third Party Payments,EGA,06/07/2018,04-10980,2256,Braywood Gardens (Runwood)
Nottinghamshire County Council,1111/1001,Adult Social Care and Health,ASCH,Third Party Payments,EGA,06/07/2018,04-11012,2456,Braywood Gardens (Runwood)
Nottinghamshire County Council,1111/1001,Adult Social Care and Health,ASCH,Third Party Payments,EGA,06/07/2018,04-11020,2456,Braywood Gardens (Runwood)
Nottinghamshire County Council,1111/1001,Adult Social Care and Health,ASCH,Third Party Payments,EGA,06/07/2018,04-11021,2256,Braywood Gardens (Runwood)
Nottinghamshire County Council,1111/1001,Adult Social Care and Health,ASCH,Third Party Payments,EGA,06/07/2018,04-11025,2256,Braywood Gardens (Runwood)
Nottinghamshire County Council,1111/1001,Adult Social Care and Health,ASCH,Third Party Payments,EGA,06/07/2018,04-11032,2456,Braywood Gardens (Runwood)
Nottinghamshire County Council,1111/1001,Adult Social Care and Health,ASCH,Third Party Payments,EGA,06/07/2018,04-11045,2456,Braywood Gardens (Runwood)
Nottinghamshire County Council,1111/1001,Adult Social Care and Health,ASCH,Third Party Payments,EGA,06/07/2018,04-11053,2456,Braywood Gardens (Runwood)
Nottinghamshire County Council,1111/1001,Adult Social Care and Health,ASCH,Third Party Payments,EGA,06/07/2018,04-11058,2456,Braywood Gardens (Runwood)
Nottinghamshire County Council,1111/1001,Adult Social Care and Health,ASCH,Third Party Payments,EGA,06/07/2018,04-11061,564,Braywood Gardens (Runwood)
Nottinghamshire County Council,1111/1001,Adult Social Care and Health,ASCH,Third Party Payments,EGA,06/07/2018,04-11067,2456,Braywood Gardens (Runwood)
Nottinghamshire County Council,1111/1001,Adult Social Care and Health,ASCH,Third Party Payments,EGA,06/07/2018,04-11081,2256,Braywood Gardens (Runwood)
Nottinghamshire County Council,1111/1001,Adult Social Care and Health,ASCH,Third Party Payments,EGA,06/07/2018,04-11082,2256,Braywood Gardens (Runwood)
Nottinghamshire County Council,1111/1001,Adult Social Care and Health,ASCH,Third Party Payments,EGA,06/07/2018,04-11090,2456,Braywood Gardens (Runwood)
Nottinghamshire County Council,1111/1001,Adult Social Care and Health,ASCH,Third Party Payments,EGA,06/07/2018,04-11092,2456,Braywood Gardens (Runwood)
Nottinghamshire County Council,1111/1001,Adult Social Care and Health,ASCH,Third Party Payments,EGA,06/07/2018,04-11104,2256,Braywood Gardens (Runwood)
Nottinghamshire County Council,1111/1001,Adult Social Care and Health,ASCH,Third Party Payments,EGA,06/07/2018,04-11107,2256,Braywood Gardens (Runwood)
Nottinghamshire County Council,1111/1001,Adult Social Care and Health,ASCH,Third Party Payments,EGA,06/07/2018,04-11112,2456,Braywood Gardens (Runwood)
Nottinghamshire County Council,1111/1001,Adult Social Care and Health,ASCH,Third Party Payments,EGA,06/07/2018,04-11114,2456,Braywood Gardens (Runwood)
Nottinghamshire County Council,1111/1001,Adult Social Care and Health,ASCH,Third Party Payments,EGA,06/07/2018,04-11119,2456,Braywood Gardens (Runwood)
Nottinghamshire County Council,1111/1001,Adult Social Care and Health,ASCH,Third Party Payments,EGA,06/07/2018,04-11127,2456,Braywood Gardens (Runwood)
Nottinghamshire County Council,1111/1001,Adult Social Care and Health,ASCH,Third Party Payments,EGA,06/07/2018,04-11131,2256,Braywood Gardens (Runwood)
Nottinghamshire County Council,1111/1001,Adult Social Care and Health,ASCH,Third Party Payments,EGA,06/07/2018,04-11135,2256,Braywood Gardens (Runwood)
Nottinghamshire County Council,1111/1001,Adult Social Care and Health,ASCH,Third Party Payments,EGA,06/07/2018,04-11145,1692,Braywood Gardens (Runwood)
Nottinghamshire County Council,1111/1001,Adult Social Care and Health,ASCH,Third Party Payments,EGA,06/07/2018,04-10973,7504.92,Bridle Lodge (Creative Care)
Nottinghamshire County Council,1111/1001,Adult Social Care and Health,ASCH,Third Party Payments,EGA,06/07/2018,04-11037,7504.92,Bridle Lodge (Creative Care)
Nottinghamshire County Council,1111/1001,Adult Social Care and Health,ASCH,Third Party Payments,EGA,06/07/2018,04-10915,2124,Broad Oak Grange Care Home
Nottinghamshire County Council,1111/1001,Adult Social Care and Health,ASCH,Third Party Payments,EGA,06/07/2018,04-10848,"2,140.00",Broadgate Nursing Home
Nottinghamshire County Council,1111/1001,Adult Social Care and Health,ASCH,Third Party Payments,EGA,06/07/2018,04-10852,2140,Broadgate Nursing Home
Nottinghamshire County Council,1111/1001,Adult Social Care and Health,ASCH,Third Party Payments,EGA,06/07/2018,04-10871,2380,Broadgate Nursing Home
Nottinghamshire County Council,1111/1001,Adult Social Care and Health,ASCH,Third Party Payments,EGA,06/07/2018,04-10892,2380,Broadgate Nursing Home
Nottinghamshire County Council,1111/1001,Adult Social Care and Health,ASCH,Third Party Payments,EGA,06/07/2018,04-10908,2140,Broadgate Nursing Home
Nottinghamshire County Council,1111/1001,Adult Social Care and Health,ASCH,Third Party Payments,EGA,06/07/2018,04-10959,2380,Broadgate Nursing Home
Nottinghamshire County Council,1111/1001,Adult Social Care and Health,ASCH,Third Party Payments,EGA,06/07/2018,04-10984,2380,Broadgate Nursing Home
Nottinghamshire County Council,1111/1001,Adult Social Care and Health,ASCH,Third Party Payments,EGA,06/07/2018,04-10987,2460,Broadgate Nursing Home
Nottinghamshire County Council,1111/1001,Adult Social Care and Health,ASCH,Third Party Payments,EGA,06/07/2018,04-10993,2380,Broadgate Nursing Home
Nottinghamshire County Council,1111/1001,Adult Social Care and Health,ASCH,Third Party Payments,EGA,06/07/2018,04-11065,2380,Broadgate Nursing Home
Nottinghamshire County Council,1111/1001,Adult Social Care and Health,ASCH,Third Party Payments,EGA,06/07/2018,04-11071,2380,Broadgate Nursing Home
Nottinghamshire County Council,1111/1001,Adult Social Care and Health,ASCH,Third Party Payments,EGA,06/07/2018,04-11094,2380,Broadgate Nursing Home
Nottinghamshire County Council,1111/1001,Adult Social Care and Health,ASCH,Third Party Payments,EGA,06/07/2018,04-11124,2380,Broadgate Nursing Home
Nottinghamshire County Council,1111/1001,Adult Social Care and Health,ASCH,Third Party Payments,EGA,06/07/2018,04-11140,2380,Broadgate Nursing Home
Nottinghamshire County Council,1111/1001,Adult Social Care and Health,ASCH,Third Party Payments,EGA,06/07/2018,04-10860,2140,Broadlands Care Home
Nottinghamshire County Council,1111/1001,Adult Social Care and Health,ASCH,Third Party Payments,EGA,06/07/2018,04-10901,2140,Broadlands Care Home
Nottinghamshire County Council,1111/1001,Adult Social Care and Health,ASCH,Third Party Payments,EGA,06/07/2018,04-10978,2220,Broadlands Care Home
Nottinghamshire County Council,1111/1001,Adult Social Care and Health,ASCH,Third Party Payments,EGA,06/07/2018,04-11083,2140,Broadlands Care Home
Nottinghamshire County Council,1111/1001,Adult Social Care and Health,ASCH,Third Party Payments,EGA,06/07/2018,04-11109,2340,Broadlands Care Home
Nottinghamshire County Council,1111/1001,Adult Social Care and Health,ASCH,Third Party Payments,EGA,06/07/2018,04-11138,2140,Broadlands Care Home
Nottinghamshire County Council,1111/1001,Adult Social Care and Health,ASCH,Third Party Payments,EGA,06/07/2018,04-10923,5861.4,Broadoak Park Residential Home
Nottinghamshire County Council,1111/1001,Adult Social Care and Health,ASCH,Third Party Payments,EGA,06/07/2018,04-10962,4116.8,Broadoak Park Residential Home
Nottinghamshire County Council,1111/1001,Adult Social Care and Health,ASCH,Third Party Payments,EGA,06/07/2018,04-11004,5861.4,Broadoak Park Residential Home
Nottinghamshire County Council,1111/1001,Adult Social Care and Health,ASCH,Third Party Payments,EGA,06/07/2018,04-11036,5061.72,Broadoak Park Residential Home
Nottinghamshire County Council,1111/1001,Adult Social Care and Health,ASCH,Third Party Payments,EGA,06/07/2018,04-11099,9294.24,Broadoak Park Residential Home
Nottinghamshire County Council,1111/1001,Adult Social Care and Health,ASCH,Third Party Payments,EGA,06/07/2018,04-11121,8343.72,Broadoak Park Residential Home
Nottinghamshire County Council,1111/1001,Adult Social Care and Health,ASCH,Third Party Payments,EGA,06/07/2018,04-11779,"9,917.36",Bulwell (Lifeways)
Nottinghamshire County Council,1111/1001,Adult Social Care and Health,ASCH,Third Party Payments,EGA,06/07/2018,04-11926,"8,397.52",Bulwell (Lifeways)
Nottinghamshire County Council,1111/1001,Adult Social Care and Health,ASCH,Third Party Payments,EGA,06/07/2018,04-11937,"6,223.80",Bulwell (Lifeways)
Nottinghamshire County Council,1111/1001,Adult Social Care and Health,ASCH,Third Party Payments,EGA,06/07/2018,04-10964,8449.32,Burlington Villa (MGB)
Nottinghamshire County Council,1111/1001,Adult Social Care and Health,ASCH,Third Party Payments,EGA,06/07/2018,04-10985,5263.04,Burlington Villa (MGB)
Nottinghamshire County Council,1111/1001,Adult Social Care and Health,ASCH,Third Party Payments,EGA,06/07/2018,04-10851,"4,300.00",Byars Nursing Home
Nottinghamshire County Council,1111/1001,Adult Social Care and Health,ASCH,Third Party Payments,EGA,06/07/2018,04-10879,3232,Byars Nursing Home
Nottinghamshire County Council,1111/1001,Adult Social Care and Health,ASCH,Third Party Payments,EGA,06/07/2018,04-11302,"2,356.00",Camellia House Ltd
Nottinghamshire County Council,1111/1001,Adult Social Care and Health,ASCH,Third Party Payments,EGA,06/07/2018,04-11322,"2,524.00",Camellia House Ltd
Nottinghamshire County Council,1111/1001,Adult Social Care and Health,ASCH,Third Party Payments,EGA,06/07/2018,04-11278,3600,Campania Care Home (N Notaro Homes)
Nottinghamshire County Council,1111/1001,Adult Social Care and Health,ASCH,Third Party Payments,EGA,06/07/2018,04-11212,4840,Care @ Rainbows End
Nottinghamshire County Council,1111/1001,Adult Social Care and Health,ASCH,Third Party Payments,EGA,06/07/2018,04-11237,7281.64,Care @ Rainbows End
Nottinghamshire County Council,1111/1001,Adult Social Care and Health,ASCH,Third Party Payments,EGA,06/07/2018,04-11299,"8,618.32",Care @ Rainbows End
Nottinghamshire County Council,1111/1001,Adult Social Care and Health,ASCH,Third Party Payments,EGA,06/07/2018,04-11164,2140,Carlton Care Home
Nottinghamshire County Council,1111/1001,Adult Social Care and Health,ASCH,Third Party Payments,EGA,06/07/2018,04-11214,"2,140.00",Carlton Care Home
Nottinghamshire County Council,1111/1001,Adult Social Care and Health,ASCH,Third Party Payments,EGA,06/07/2018,04-11225,2380,Carlton Care Home
Nottinghamshire County Council,1111/1001,Adult Social Care and Health,ASCH,Third Party Payments,EGA,06/07/2018,04-11238,2380,Carlton Care Home
Nottinghamshire County Council,1111/1001,Adult Social Care and Health,ASCH,Third Party Payments,EGA,06/07/2018,04-11279,"2,380.00",Carlton Care Home
Nottinghamshire County Council,1111/1001,Adult Social Care and Health,ASCH,Third Party Payments,EGA,06/07/2018,04-11298,"2,380.00",Carlton Care Home
Nottinghamshire County Council,1111/1001,Adult Social Care and Health,ASCH,Third Party Payments,EGA,06/07/2018,04-11731,"6,920.00",Carrington Park (Heathcotes)
Nottinghamshire County Council,1111/1001,Adult Social Care and Health,ASCH,Third Party Payments,EGA,06/07/2018,04-11199,3802.2,Catherine Tam House
Nottinghamshire County Council,1111/1001,Adult Social Care and Health,ASCH,Third Party Payments,EGA,06/07/2018,04-11231,"3,802.20",Catherine Tam House
Nottinghamshire County Council,1111/1001,Adult Social Care and Health,ASCH,Third Party Payments,EGA,06/07/2018,04-11307,"3,802.20",Catherine Tam House
Nottinghamshire County Council,1111/1001,Adult Social Care and Health,ASCH,Third Party Payments,EGA,06/07/2018,04-11329,"4,048.36",Challenge House (Heritage)
Nottinghamshire County Council,1111/1001,Adult Social Care and Health,ASCH,Third Party Payments,EGA,06/07/2018,04-11343,"4,048.36",Challenge House (Heritage)
Nottinghamshire County Council,1111/1001,Adult Social Care and Health,ASCH,Third Party Payments,EGA,06/07/2018,04-11394,5969.36,Challenge House (Heritage)
Nottinghamshire County Council,1111/1001,Adult Social Care and Health,ASCH,Third Party Payments,EGA,06/07/2018,04-11406,5763.52,Challenge House (Heritage)
Nottinghamshire County Council,1111/1001,Adult Social Care and Health,ASCH,Third Party Payments,EGA,06/07/2018,04-11408,5834.56,Challenge House (Heritage)
Nottinghamshire County Council,1111/1001,Adult Social Care and Health,ASCH,Third Party Payments,EGA,06/07/2018,04-11198,2260,Charnwood C (Four Seasons)
Nottinghamshire County Council,1111/1001,Adult Social Care and Health,ASCH,Third Party Payments,EGA,06/07/2018,04-11211,"2,260.00",Charnwood C (Four Seasons)
Nottinghamshire County Council,1111/1001,Adult Social Care and Health,ASCH,Third Party Payments,EGA,06/07/2018,04-11224,"2,260.00",Charnwood C (Four Seasons)
Nottinghamshire County Council,1111/1001,Adult Social Care and Health,ASCH,Third Party Payments,EGA,06/07/2018,04-11227,2260,Charnwood C (Four Seasons)
Nottinghamshire County Council,1111/1001,Adult Social Care and Health,ASCH,Third Party Payments,EGA,06/07/2018,04-11229,"2,260.00",Charnwood C (Four Seasons)
Nottinghamshire County Council,1111/1001,Adult Social Care and Health,ASCH,Third Party Payments,EGA,06/07/2018,04-11241,"2,260.00",Charnwood C (Four Seasons)
Nottinghamshire County Council,1111/1001,Adult Social Care and Health,ASCH,Third Party Payments,EGA,06/07/2018,04-11242,2356,Charnwood C (Four Seasons)
Nottinghamshire County Council,1111/1001,Adult Social Care and Health,ASCH,Third Party Payments,EGA,06/07/2018,04-11251,"2,260.00",Charnwood C (Four Seasons)
Nottinghamshire County Council,1111/1001,Adult Social Care and Health,ASCH,Third Party Payments,EGA,06/07/2018,04-11265,"2,260.00",Charnwood C (Four Seasons)
Nottinghamshire County Council,1111/1001,Adult Social Care and Health,ASCH,Third Party Payments,EGA,06/07/2018,04-11281,"2,260.00",Charnwood C (Four Seasons)
Nottinghamshire County Council,1111/1001,Adult Social Care and Health,ASCH,Third Party Payments,EGA,06/07/2018,04-11295,2260,Charnwood C (Four Seasons)
Nottinghamshire County Council,1111/1001,Adult Social Care and Health,ASCH,Third Party Payments,EGA,06/07/2018,04-11313,"2,260.00",Charnwood C (Four Seasons)
Nottinghamshire County Council,1111/1001,Adult Social Care and Health,ASCH,Third Party Payments,EGA,06/07/2018,04-11317,2260,Charnwood C (Four Seasons)
Nottinghamshire County Council,1111/1001,Adult Social Care and Health,ASCH,Third Party Payments,EGA,06/07/2018,04-11323,2260,Charnwood C (Four Seasons)
Nottinghamshire County Council,1111/1001,Adult Social Care and Health,ASCH,Third Party Payments,EGA,06/07/2018,04-11166,2016,Charnwood H (Four Seasons)
Nottinghamshire County Council,1111/1001,Adult Social Care and Health,ASCH,Third Party Payments,EGA,06/07/2018,04-11169,2016,Charnwood H (Four Seasons)
Nottinghamshire County Council,1111/1001,Adult Social Care and Health,ASCH,Third Party Payments,EGA,06/07/2018,04-11183,2016,Charnwood H (Four Seasons)
Nottinghamshire County Council,1111/1001,Adult Social Care and Health,ASCH,Third Party Payments,EGA,06/07/2018,04-11209,"2,016.00",Charnwood H (Four Seasons)
Nottinghamshire County Council,1111/1001,Adult Social Care and Health,ASCH,Third Party Payments,EGA,06/07/2018,04-11220,2016,Charnwood H (Four Seasons)
Nottinghamshire County Council,1111/1001,Adult Social Care and Health,ASCH,Third Party Payments,EGA,06/07/2018,04-11243,2016,Charnwood H (Four Seasons)
Nottinghamshire County Council,1111/1001,Adult Social Care and Health,ASCH,Third Party Payments,EGA,06/07/2018,04-11245,2016,Charnwood H (Four Seasons)
Nottinghamshire County Council,1111/1001,Adult Social Care and Health,ASCH,Third Party Payments,EGA,06/07/2018,04-11248,2016,Charnwood H (Four Seasons)
Nottinghamshire County Council,1111/1001,Adult Social Care and Health,ASCH,Third Party Payments,EGA,06/07/2018,04-11250,"1,812.40",Charnwood H (Four Seasons)
Nottinghamshire County Council,1111/1001,Adult Social Care and Health,ASCH,Third Party Payments,EGA,06/07/2018,04-11255,"2,016.00",Charnwood H (Four Seasons)
Nottinghamshire County Council,1111/1001,Adult Social Care and Health,ASCH,Third Party Payments,EGA,06/07/2018,04-11261,"2,016.00",Charnwood H (Four Seasons)
Nottinghamshire County Council,1111/1001,Adult Social Care and Health,ASCH,Third Party Payments,EGA,06/07/2018,04-11277,"2,016.00",Charnwood H (Four Seasons)
Nottinghamshire County Council,1111/1001,Adult Social Care and Health,ASCH,Third Party Payments,EGA,06/07/2018,04-11303,2016,Charnwood H (Four Seasons)
Nottinghamshire County Council,1111/1001,Adult Social Care and Health,ASCH,Third Party Payments,EGA,06/07/2018,04-11311,"2,016.00",Charnwood H (Four Seasons)
Nottinghamshire County Council,1111/1001,Adult Social Care and Health,ASCH,Third Party Payments,EGA,06/07/2018,04-11316,2016,Charnwood H (Four Seasons)
Nottinghamshire County Council,1111/1001,Adult Social Care and Health,ASCH,Third Party Payments,EGA,06/07/2018,04-11318,2016,Charnwood H (Four Seasons)
Nottinghamshire County Council,1111/1001,Adult Social Care and Health,ASCH,Third Party Payments,EGA,06/07/2018,04-11319,"2,016.00",Charnwood H (Four Seasons)
Nottinghamshire County Council,1111/1001,Adult Social Care and Health,ASCH,Third Party Payments,EGA,06/07/2018,04-12734,6624.88,Chengun Care Homes Ltd
Nottinghamshire County Council,1111/1001,Adult Social Care and Health,ASCH,Third Party Payments,EGA,06/07/2018,04-12765,12211.8,Chengun Care Homes Ltd
Nottinghamshire County Council,1111/1001,Adult Social Care and Health,ASCH,Third Party Payments,EGA,06/07/2018,04-12816,8356,Chengun Care Homes Ltd
Nottinghamshire County Council,1111/1001,Adult Social Care and Health,ASCH,Third Party Payments,EGA,06/07/2018,04-11156,7642.56,Cherry Trees Residential Home
Nottinghamshire County Council,1111/1001,Adult Social Care and Health,ASCH,Third Party Payments,EGA,06/07/2018,04-11165,6666.12,Cherry Trees Residential Home
Nottinghamshire County Council,1111/1001,Adult Social Care and Health,ASCH,Third Party Payments,EGA,06/07/2018,04-11181,7642.56,Cherry Trees Residential Home
Nottinghamshire County Council,1111/1001,Adult Social Care and Health,ASCH,Third Party Payments,EGA,06/07/2018,04-11184,5150.8,Chestnut Grange (Voyage)
Nottinghamshire County Council,1111/1001,Adult Social Care and Health,ASCH,Third Party Payments,EGA,06/07/2018,04-11216,"5,500.00",Chestnut Grange (Voyage)
Nottinghamshire County Council,1111/1001,Adult Social Care and Health,ASCH,Third Party Payments,EGA,06/07/2018,04-11217,"5,942.12",Chestnut Grange (Voyage)
Nottinghamshire County Council,1111/1001,Adult Social Care and Health,ASCH,Third Party Payments,EGA,06/07/2018,04-11272,5991.88,Chestnut Grange (Voyage)
Nottinghamshire County Council,1111/1001,Adult Social Care and Health,ASCH,Third Party Payments,EGA,06/07/2018,04-11223,"16,516.58",Chetwynd House Care Home Ltd
Nottinghamshire County Council,1111/1001,Adult Social Care and Health,ASCH,Third Party Payments,EGA,06/07/2018,04-11249,667.29,Chetwynd House Care Home Ltd
Nottinghamshire County Council,1111/1001,Adult Social Care and Health,ASCH,Third Party Payments,EGA,06/07/2018,04-11308,667.28,Chetwynd House Care Home Ltd
Nottinghamshire County Council,1111/1001,Adult Social Care and Health,ASCH,Third Party Payments,EGA,06/07/2018,04-11201,18113.92,Chilwell House (Aspire)
Nottinghamshire County Council,1111/1001,Adult Social Care and Health,ASCH,Third Party Payments,EGA,06/07/2018,04-11174,7896.52,Christie Development Centre (Blue S
Nottinghamshire County Council,1111/1001,Adult Social Care and Health,ASCH,Third Party Payments,EGA,06/07/2018,04-11186,6768.64,Christie Development Centre (Blue S
Nottinghamshire County Council,1111/1001,Adult Social Care and Health,ASCH,Third Party Payments,EGA,06/07/2018,04-11197,"8,489.04",Christie Development Centre (Blue S
Nottinghamshire County Council,1111/1001,Adult Social Care and Health,ASCH,Third Party Payments,EGA,06/07/2018,04-11219,7325.56,Christie Development Centre (Blue S
Nottinghamshire County Council,1111/1001,Adult Social Care and Health,ASCH,Third Party Payments,EGA,06/07/2018,04-11292,"9,716.72",Christie Development Centre (Blue S
Nottinghamshire County Council,1111/1001,Adult Social Care and Health,ASCH,Third Party Payments,EGA,06/07/2018,04-11320,"8,322.56",Christie Development Centre (Blue S
Nottinghamshire County Council,1111/1001,Adult Social Care and Health,ASCH,Third Party Payments,EGA,06/07/2018,04-11151,3800,Church Farm at Skylarks
Nottinghamshire County Council,1111/1001,Adult Social Care and Health,ASCH,Third Party Payments,EGA,06/07/2018,04-11171,2800,Church Farm at Skylarks
Nottinghamshire County Council,1111/1001,Adult Social Care and Health,ASCH,Third Party Payments,EGA,06/07/2018,04-11177,3623,Church Farm at Skylarks
Nottinghamshire County Council,1111/1001,Adult Social Care and Health,ASCH,Third Party Payments,EGA,06/07/2018,04-11200,"3,162.00",Church Farm at Skylarks
Nottinghamshire County Council,1111/1001,Adult Social Care and Health,ASCH,Third Party Payments,EGA,06/07/2018,04-11213,"3,640.00",Church Farm at Skylarks
Nottinghamshire County Council,1111/1001,Adult Social Care and Health,ASCH,Third Party Payments,EGA,06/07/2018,04-11222,"3,296.00",Church Farm at Skylarks
Nottinghamshire County Council,1111/1001,Adult Social Care and Health,ASCH,Third Party Payments,EGA,06/07/2018,04-11234,3400,Church Farm at Skylarks
Nottinghamshire County Council,1111/1001,Adult Social Care and Health,ASCH,Third Party Payments,EGA,06/07/2018,04-11246,4240,Church Farm at Skylarks
Nottinghamshire County Council,1111/1001,Adult Social Care and Health,ASCH,Third Party Payments,EGA,06/07/2018,04-11259,4220,Church Farm at Skylarks
Nottinghamshire County Council,1111/1001,Adult Social Care and Health,ASCH,Third Party Payments,EGA,06/07/2018,04-11283,4129.12,Church Farm at Skylarks
Nottinghamshire County Council,1111/1001,Adult Social Care and Health,ASCH,Third Party Payments,EGA,06/07/2018,04-11309,4466.72,Church Farm at Skylarks
Nottinghamshire County Council,1111/1001,Adult Social Care and Health,ASCH,Third Party Payments,EGA,06/07/2018,04-11310,975,Church Farm at Skylarks
Nottinghamshire County Council,1111/1001,Adult Social Care and Health,ASCH,Third Party Payments,EGA,06/07/2018,04-11147,1972,Church Farm Nursing Home (Rusticus
Nottinghamshire County Council,1111/1001,Adult Social Care and Health,ASCH,Third Party Payments,EGA,06/07/2018,04-11149,1972,Church Farm Nursing Home (Rusticus
Nottinghamshire County Council,1111/1001,Adult Social Care and Health,ASCH,Third Party Payments,EGA,06/07/2018,04-11235,1972,Church Farm Nursing Home (Rusticus
Nottinghamshire County Council,1111/1001,Adult Social Care and Health,ASCH,Third Party Payments,EGA,06/07/2018,04-11280,1972,Church Farm Nursing Home (Rusticus
Nottinghamshire County Council,1111/1001,Adult Social Care and Health,ASCH,Third Party Payments,EGA,06/07/2018,04-11148,2672,Church Farm Nursing Home Ltd
Nottinghamshire County Council,1111/1001,Adult Social Care and Health,ASCH,Third Party Payments,EGA,06/07/2018,04-11155,3243.8,Church Farm Nursing Home Ltd
Nottinghamshire County Council,1111/1001,Adult Social Care and Health,ASCH,Third Party Payments,EGA,06/07/2018,04-11157,3263,Church Farm Nursing Home Ltd
Nottinghamshire County Council,1111/1001,Adult Social Care and Health,ASCH,Third Party Payments,EGA,06/07/2018,04-11176,2672,Church Farm Nursing Home Ltd
